Body Name,Body,Service Division Label,Service Division Code,Organisational Unit,Expenditure Category,Expenditure Code,CIPFA detailed expediture type,CIPFA detailed expediture code,Narrative,Date,Transaction number,Net Amount,Capital and Revenue,Supplier Name,Supplier ID,,
Chorley Borough Council,http://statistics.data.gov.uk/id/local-authority/30UE,Central Support Services,1009,Early Intervention,Other Contributions,40145,Grants and Subscriptions,5031,Local Authority Contribution to Active Lancashire 2020/21,25/11/2020,0150659,"1,500.00",Revenue,Active Lancashire,16348,,
Chorley Borough Council,http://statistics.data.gov.uk/id/local-authority/30UE,Central Support Services,1009,Customer & Digital,Telephones - Other,40085,Communication and Computing,5028,Adept Telecom - October 2020,20/11/2020,0150699,"1,609.64",Revenue,Adept Telecom PLC,77452,,
Chorley Borough Council,http://statistics.data.gov.uk/id/local-authority/30UE,Capital,Capital,Commercial Services,Architects Fees,03022,Capital Expenditure,Capital,Tenant liaison service from April 2020,13/11/2020,0149699,500.00,Capital,AEW Architects & Designers Ltd,66520,,
Chorley Borough Council,http://statistics.data.gov.uk/id/local-authority/30UE,Capital,Capital,Commercial Services,Architects Fees,03022,Capital Expenditure,Capital,"Proposed Units 2 to 5 sub-division and Management Suite, Chorley Market Walk Stage 0-3 - 2925.00 ",11/11/2020,0150347,"2,925.00",Capital,AEW Architects & Designers Ltd,66520,,
Chorley Borough Council,http://statistics.data.gov.uk/id/local-authority/30UE,Capital,Capital,Commercial Services,Architects Fees,03022,Capital Expenditure,Capital,"Proposed Units 2 to 5 sub-division and Management Suite, Chorley Market Walk Stage 0-3 - 2925.00 ",11/11/2020,0150371,562.50,Capital,AEW Architects & Designers Ltd,66520,,
Chorley Borough Council,http://statistics.data.gov.uk/id/local-authority/30UE,Corporate Management,1008,Policy & Governance,Cleaning Materials,40019,"Equipment, Furniture & Materia",5023,Stock code: OEFM0024 Utopia 3 Ply Face Mask General Use Non Medical Blue 18.00 per box QTY 6 boxes Total 108,27/11/2020,0150871,108.00,Revenue,Alliance Disposables Limited,59490,,
Chorley Borough Council,http://statistics.data.gov.uk/id/local-authority/30UE,Corporate Management,1008,Policy & Governance,Cleaning Materials,40019,"Equipment, Furniture & Materia",5023,Stock code: OEFM0025 Utopia 3 Ply Face Mask General Use Non Medical Black 18 per box of 50 QTY 4 boxes total 72,27/11/2020,0150871,72.00,Revenue,Alliance Disposables Limited,59490,,
Chorley Borough Council,http://statistics.data.gov.uk/id/local-authority/30UE,Corporate Management,1008,Policy & Governance,Cleaning Materials,40019,"Equipment, Furniture & Materia",5023,Stock code: OEFM0050 3 Ply Medical Mask IIR - ASTM Level 2 45 per box of 50 QTY 4 boxes Total 180,27/11/2020,0150871,180.00,Revenue,Alliance Disposables Limited,59490,,
Chorley Borough Council,http://statistics.data.gov.uk/id/local-authority/30UE,Unapportionable Central OHeads,1009,Customer & Digital,Bank Charges,40151,Miscellaneous Expenses,5034,add ac fee,18/11/2020,0149525,10.00,Revenue,Allpay Net Ltd,17242,,
Chorley Borough Council,http://statistics.data.gov.uk/id/local-authority/30UE,Unapportionable Central OHeads,1009,Customer & Digital,Bank Charges,40151,Miscellaneous Expenses,5034,post office,18/11/2020,0149525,676.99,Revenue,Allpay Net Ltd,17242,,
Chorley Borough Council,http://statistics.data.gov.uk/id/local-authority/30UE,Central Support Services,1009,Customer & Digital,Bank Charges,40151,Miscellaneous Expenses,5034,paypoint,18/11/2020,0149525,216.80,Revenue,Allpay Net Ltd,17242,,
Chorley Borough Council,http://statistics.data.gov.uk/id/local-authority/30UE,Central Support Services,1009,Customer & Digital,Bank Charges,40151,Miscellaneous Expenses,5034,webconn,18/11/2020,0149525,46.00,Revenue,Allpay Net Ltd,17242,,
Chorley Borough Council,http://statistics.data.gov.uk/id/local-authority/30UE,Central Support Services,1009,Customer & Digital,Bank Charges,40151,Miscellaneous Expenses,5034,All Pay,25/11/2020,0150515,957.42,Revenue,Allpay Net Ltd,17242,,
Chorley Borough Council,http://statistics.data.gov.uk/id/local-authority/30UE,Central Support Services,1009,Early Intervention,External Contractor,40198,Miscellaneous Expenses,5034,External Contractor -  Pest Control Service,20/11/2020,0149701,689.21,Revenue,ALPHA PEST CONTROL LIMITED,18208,,
Chorley Borough Council,http://statistics.data.gov.uk/id/local-authority/30UE,Central Support Services,1009,Early Intervention,External Contractor,40198,Miscellaneous Expenses,5034,External Contractor -  Pest Control Service,20/11/2020,0149951,"1,369.83",Revenue,ALPHA PEST CONTROL LIMITED,18208,,
Chorley Borough Council,http://statistics.data.gov.uk/id/local-authority/30UE,Central Support Services,1009,Early Intervention,External Contractor,40198,Miscellaneous Expenses,5034,External Contractor -  Pest Control Service,20/11/2020,0150183,623.81,Revenue,ALPHA PEST CONTROL LIMITED,18208,,
Chorley Borough Council,http://statistics.data.gov.uk/id/local-authority/30UE,Central Support Services,1009,Early Intervention,External Contractor,40198,Miscellaneous Expenses,5034,External Contractor -  Pest Control Service,20/11/2020,0150266,"1,059.24",Revenue,ALPHA PEST CONTROL LIMITED,18208,,
Chorley Borough Council,http://statistics.data.gov.uk/id/local-authority/30UE,Central Support Services,1009,Early Intervention,External Contractor,40198,Miscellaneous Expenses,5034,External Contractor -  Pest Control Service,20/11/2020,0150267,"1,259.42",Revenue,ALPHA PEST CONTROL LIMITED,18208,,
Chorley Borough Council,http://statistics.data.gov.uk/id/local-authority/30UE,Central Support Services,1009,Early Intervention,Pest Control,20039,Cleaning and Domestic Supplies,5012,Pest Control Services,13/11/2020,0150372,572.65,Revenue,ALPHA PEST CONTROL LIMITED,18208,,
Chorley Borough Council,http://statistics.data.gov.uk/id/local-authority/30UE,Central Support Services,1009,Early Intervention,Pest Control,20039,Cleaning and Domestic Supplies,5012,Pest Control Services,13/11/2020,0150373,382.84,Revenue,ALPHA PEST CONTROL LIMITED,18208,,
Chorley Borough Council,http://statistics.data.gov.uk/id/local-authority/30UE,Central Support Services,1009,Commercial Services,Burglar Alarms & Security Systems,20075,Fixtures and Fittings,5010,Intruder and Access systems reactive blanket,25/11/2020,0150703,633.56,Revenue,Amalgamated Ltd,78289,,
Chorley Borough Council,http://statistics.data.gov.uk/id/local-authority/30UE,Unapportionable Central OHeads,1009,Commercial Services,Fire Alarms,20072,Fixtures and Fittings,5010,Fire systems PPM Blanket,25/11/2020,0150704,291.20,Revenue,Amalgamated Ltd,78289,,
Chorley Borough Council,http://statistics.data.gov.uk/id/local-authority/30UE,Central Support Services,1009,Commercial Services,Burglar Alarms & Security Systems,20075,Fixtures and Fittings,5010,Intruder and Access systems reactive blanket,25/11/2020,0150724,348.90,Revenue,Amalgamated Ltd,78289,,
Chorley Borough Council,http://statistics.data.gov.uk/id/local-authority/30UE,Central Support Services,1009,Commercial Services,Fire Alarms,20072,Fixtures and Fittings,5010,Fire systems PPM Blanket,25/11/2020,0150732,"1,350.72",Revenue,Amalgamated Ltd,78289,,
Chorley Borough Council,http://statistics.data.gov.uk/id/local-authority/30UE,Central Support Services,1009,Customer & Digital,Computer Software-Additional,40102,Communication and Computing,5028,Amazon AWS web services - REDACTED Cloud charges Nov 2019- March 2020,27/11/2020,0149233,"2,269.47",Revenue,Amazon Web Services EMEA SARL,80604,,
Chorley Borough Council,http://statistics.data.gov.uk/id/local-authority/30UE,Central Support Services,1009,Customer & Digital,Computer Software-Additional,40102,Communication and Computing,5028,Amazon AWS web services - REDACTED Cloud charges May 2020,27/11/2020,0149285,"1,884.04",Revenue,Amazon Web Services EMEA SARL,80604,,
Chorley Borough Council,http://statistics.data.gov.uk/id/local-authority/30UE,Central Support Services,1009,Customer & Digital,Computer Software-Additional,40102,Communication and Computing,5028,Amazon AWS web services - REDACTED Cloud charges September 2020,27/11/2020,0150475,"2,073.13",Revenue,Amazon Web Services EMEA SARL,80604,,
Chorley Borough Council,http://statistics.data.gov.uk/id/local-authority/30UE,Central Support Services,1009,Customer & Digital,Computer Software-Additional,40102,Communication and Computing,5028,Amazon AWS web services - REDACTED Cloud charges October 2020,27/11/2020,0150494,"2,148.78",Revenue,Amazon Web Services EMEA SARL,80604,,
Chorley Borough Council,http://statistics.data.gov.uk/id/local-authority/30UE,Central Support Services,1009,Customer & Digital,Computer Software-Additional,40102,Communication and Computing,5028,Amazon AWS web services - REDACTED Cloud charges August 2020,27/11/2020,0150495,"2,011.62",Revenue,Amazon Web Services EMEA SARL,80604,,
Chorley Borough Council,http://statistics.data.gov.uk/id/local-authority/30UE,Central Support Services,1009,Customer & Digital,Computer Equipment-Purchase,40098,Communication and Computing,5028,Install comms cab and repair cabling at All Seasons Leisure Centre,20/11/2020,0149702,835.00,Revenue,Ampec,76813,,
Chorley Borough Council,http://statistics.data.gov.uk/id/local-authority/30UE,Central Support Services,1009,Customer & Digital,Computer Equipment-Purchase,40098,Communication and Computing,5028,Install comms cab and repair cabling at Clayton Brook Leisure Centre,20/11/2020,0149702,665.00,Revenue,Ampec,76813,,
Chorley Borough Council,http://statistics.data.gov.uk/id/local-authority/30UE,Central Support Services,1009,Customer & Digital,Computer Equipment-Purchase,40098,Communication and Computing,5028,Install comms cab and repair cabling at Brinscall Pool,20/11/2020,0149702,418.00,Revenue,Ampec,76813,,
Chorley Borough Council,http://statistics.data.gov.uk/id/local-authority/30UE,Unapportionable Central OHeads,1009,Policy & Governance,Exhibitions & Special Events,40158,Miscellaneous Expenses,5034,"50 wrapped gifts FROM BIRTH, 50 wrapped gifts AGE 3-5, 50 wrapped gifts AGE 6-8, 50 wrapped gifts for AGE 9+ ",20/11/2020,0150804,"1,095.00",Revenue,Andersons Wholesale,78268,,
Chorley Borough Council,http://statistics.data.gov.uk/id/local-authority/30UE,Open Spaces,1038,Early Intervention,Supplies-Grounds Maintenance,40025,"Equipment, Furniture & Materia",5023,"Lodge Bank Play Area railings - preparation, sanding and painting of the railings around the toddler play area and junior swing. ",20/11/2020,0150374,"2,764.00",Revenue,AP Broome Landscapes,67257,,
Chorley Borough Council,http://statistics.data.gov.uk/id/local-authority/30UE,Central Support Services,1009,Policy & Governance,IT Software - Annual Licences,40101,Communication and Computing,5028,3 month contract with Attain (email software),25/11/2020,0150207,750.00,Revenue,Attain Group Ltd,61771,,
Chorley Borough Council,http://statistics.data.gov.uk/id/local-authority/30UE,Service Management & Support,1009,Customer & Digital,Vehicles and Plant Maintenance,30045,Direct Transport Costs,5016,NU08 KOJ MOT Full Service Rear exhaust section replaced New tyre Rear brake shoes Rear brake cylinder,25/11/2020,0150424,352.27,Revenue,Autofit,78140,,
Chorley Borough Council,http://statistics.data.gov.uk/id/local-authority/30UE,Service Management & Support,1009,Customer & Digital,Vehicles and Plant Maintenance,30045,Direct Transport Costs,5016,MOT NU08 KOJ,25/11/2020,0150424,29.70,Revenue,Autofit,78140,,
Chorley Borough Council,http://statistics.data.gov.uk/id/local-authority/30UE,Central Support Services,1009,Customer & Digital,Newsletter Production,40166,Miscellaneous Expenses,5034,"Production of 2021 Waste Collection Calendars. 25 Versions, Quantity = 57,800. Anti-viral coating as per estimate : Q156371A",11/11/2020,0150166,"2,165.00",Revenue,B & D Print Services Ltd,76976,,
Chorley Borough Council,http://statistics.data.gov.uk/id/local-authority/30UE,Service Management & Support,1009,Customer & Digital,Hire Of Vehicles and Plant,30028,Contrct Hire & Operating Lease,5018,2 x John Deere 1580 with front mounted rotary cutting decks @ 24071.84 each 1 x Wessex gang mower @ 32860,18/11/2020,0150606,"1,242.40",Revenue,Balmers Garden Machinery,17075,,
Chorley Borough Council,http://statistics.data.gov.uk/id/local-authority/30UE,Central Support Services,1009,Early Intervention,Miscellaneous Expenses,40200,Miscellaneous Expenses,5034,"Order of native trees, orchard trees and bulbs for Great Knowley. Delivery date and location to be notified but expected Nov 2020",27/11/2020,0150854,694.60,Revenue,Bannister Hall Ltd,22515,,
Chorley Borough Council,http://statistics.data.gov.uk/id/local-authority/30UE,Central Support Services,1009,Early Intervention,Miscellaneous Expenses,40200,Miscellaneous Expenses,5034,,27/11/2020,0150854,222.00,Revenue,Bannister Hall Ltd,22515,,
Chorley Borough Council,http://statistics.data.gov.uk/id/local-authority/30UE,Control Accounts,Control,Policy & Governance,General Balances,00100,Balance Sheet,Balance,28th JULY 2020,30/11/2020,0148869,"5,962.75",Revenue,Barclaycard Commercial,59848,,
Chorley Borough Council,http://statistics.data.gov.uk/id/local-authority/30UE,Control Accounts,Control,Policy & Governance,General Balances,00100,Balance Sheet,Balance,28th June 20,30/11/2020,0149121,"3,658.18",Revenue,Barclaycard Commercial,59848,,
Chorley Borough Council,http://statistics.data.gov.uk/id/local-authority/30UE,Control Accounts,Control,Policy & Governance,General Balances,00100,Balance Sheet,Balance,28 August 2020,30/11/2020,0149122,"6,092.40",Revenue,Barclaycard Commercial,59848,,
Chorley Borough Council,http://statistics.data.gov.uk/id/local-authority/30UE,Control Accounts,Control,Policy & Governance,General Balances,00100,Balance Sheet,Balance,12 oct 20,30/11/2020,0149988,"3,466.04",Revenue,Barclaycard Commercial,59848,,
Chorley Borough Council,http://statistics.data.gov.uk/id/local-authority/30UE,Corporate Management,1008,Policy & Governance,Bank Charges,40151,Miscellaneous Expenses,5034,,30/11/2020,0148181,15.00,Revenue,Barclaycard Merchant Services,61601,,
Chorley Borough Council,http://statistics.data.gov.uk/id/local-authority/30UE,Corporate Management,1008,Policy & Governance,Bank Charges,40151,Miscellaneous Expenses,5034,,30/11/2020,0148181,425.62,Revenue,Barclaycard Merchant Services,61601,,
Chorley Borough Council,http://statistics.data.gov.uk/id/local-authority/30UE,Corporate Management,1008,Policy & Governance,Bank Charges,40151,Miscellaneous Expenses,5034,30 june,30/11/2020,0148182,15.00,Revenue,Barclaycard Merchant Services,61601,,
Chorley Borough Council,http://statistics.data.gov.uk/id/local-authority/30UE,Corporate Management,1008,Policy & Governance,Bank Charges,40151,Miscellaneous Expenses,5034,,30/11/2020,0148182,"1,084.52",Revenue,Barclaycard Merchant Services,61601,,
Chorley Borough Council,http://statistics.data.gov.uk/id/local-authority/30UE,Corporate Management,1008,Policy & Governance,Bank Charges,40151,Miscellaneous Expenses,5034,30 june,30/11/2020,0148184,15.00,Revenue,Barclaycard Merchant Services,61601,,
Chorley Borough Council,http://statistics.data.gov.uk/id/local-authority/30UE,Corporate Management,1008,Policy & Governance,Bank Charges,40151,Miscellaneous Expenses,5034,,30/11/2020,0148184,"2,121.97",Revenue,Barclaycard Merchant Services,61601,,
Chorley Borough Council,http://statistics.data.gov.uk/id/local-authority/30UE,Corporate Management,1008,Policy & Governance,Bank Charges,40151,Miscellaneous Expenses,5034,31 Aug 2020,30/11/2020,0149990,15.00,Revenue,Barclaycard Merchant Services,61601,,
Chorley Borough Council,http://statistics.data.gov.uk/id/local-authority/30UE,Corporate Management,1008,Policy & Governance,Bank Charges,40151,Miscellaneous Expenses,5034,31 Aug 2020,30/11/2020,0149990,"1,280.06",Revenue,Barclaycard Merchant Services,61601,,
Chorley Borough Council,http://statistics.data.gov.uk/id/local-authority/30UE,Corporate Management,1008,Policy & Governance,Bank Charges,40151,Miscellaneous Expenses,5034,31 Aug 2020,30/11/2020,0149991,15.00,Revenue,Barclaycard Merchant Services,61601,,
Chorley Borough Council,http://statistics.data.gov.uk/id/local-authority/30UE,Corporate Management,1008,Policy & Governance,Bank Charges,40151,Miscellaneous Expenses,5034,31 Aug 2020,30/11/2020,0149991,"2,450.79",Revenue,Barclaycard Merchant Services,61601,,
Chorley Borough Council,http://statistics.data.gov.uk/id/local-authority/30UE,Corporate Management,1008,Policy & Governance,Bank Charges,40151,Miscellaneous Expenses,5034,31 Aug 2020,30/11/2020,0149992,15.00,Revenue,Barclaycard Merchant Services,61601,,
Chorley Borough Council,http://statistics.data.gov.uk/id/local-authority/30UE,Corporate Management,1008,Policy & Governance,Bank Charges,40151,Miscellaneous Expenses,5034,31 Aug 2020,30/11/2020,0149992,509.38,Revenue,Barclaycard Merchant Services,61601,,
Chorley Borough Council,http://statistics.data.gov.uk/id/local-authority/30UE,Corporate Management,1008,Policy & Governance,Bank Charges,40151,Miscellaneous Expenses,5034,31 Jul 2020,30/11/2020,0150008,15.00,Revenue,Barclaycard Merchant Services,61601,,
Chorley Borough Council,http://statistics.data.gov.uk/id/local-authority/30UE,Corporate Management,1008,Policy & Governance,Bank Charges,40151,Miscellaneous Expenses,5034,31 Jul 2020,30/11/2020,0150008,"2,848.63",Revenue,Barclaycard Merchant Services,61601,,
Chorley Borough Council,http://statistics.data.gov.uk/id/local-authority/30UE,Corporate Management,1008,Policy & Governance,Bank Charges,40151,Miscellaneous Expenses,5034,31 July 2020,30/11/2020,0150009,15.00,Revenue,Barclaycard Merchant Services,61601,,
Chorley Borough Council,http://statistics.data.gov.uk/id/local-authority/30UE,Corporate Management,1008,Policy & Governance,Bank Charges,40151,Miscellaneous Expenses,5034,31 july 2020,30/11/2020,0150009,"1,023.72",Revenue,Barclaycard Merchant Services,61601,,
Chorley Borough Council,http://statistics.data.gov.uk/id/local-authority/30UE,Corporate Management,1008,Policy & Governance,Bank Charges,40151,Miscellaneous Expenses,5034,31 July 2020,30/11/2020,0150010,15.00,Revenue,Barclaycard Merchant Services,61601,,
Chorley Borough Council,http://statistics.data.gov.uk/id/local-authority/30UE,Corporate Management,1008,Policy & Governance,Bank Charges,40151,Miscellaneous Expenses,5034,31 July 2020,30/11/2020,0150010,841.75,Revenue,Barclaycard Merchant Services,61601,,
Chorley Borough Council,http://statistics.data.gov.uk/id/local-authority/30UE,Corporate Management,1008,Policy & Governance,Bank Charges,40151,Miscellaneous Expenses,5034,30 Sept 2020,30/11/2020,0150011,15.00,Revenue,Barclaycard Merchant Services,61601,,
Chorley Borough Council,http://statistics.data.gov.uk/id/local-authority/30UE,Corporate Management,1008,Policy & Governance,Bank Charges,40151,Miscellaneous Expenses,5034,30 Sept 2020,30/11/2020,0150011,"3,064.64",Revenue,Barclaycard Merchant Services,61601,,
Chorley Borough Council,http://statistics.data.gov.uk/id/local-authority/30UE,Corporate Management,1008,Policy & Governance,Bank Charges,40151,Miscellaneous Expenses,5034,30 Sept 2020,30/11/2020,0150014,15.00,Revenue,Barclaycard Merchant Services,61601,,
Chorley Borough Council,http://statistics.data.gov.uk/id/local-authority/30UE,Corporate Management,1008,Policy & Governance,Bank Charges,40151,Miscellaneous Expenses,5034,30 Sept 2020,30/11/2020,0150014,720.11,Revenue,Barclaycard Merchant Services,61601,,
Chorley Borough Council,http://statistics.data.gov.uk/id/local-authority/30UE,Corporate Management,1008,Policy & Governance,Bank Charges,40151,Miscellaneous Expenses,5034,30 Sept 2020,30/11/2020,0150015,15.00,Revenue,Barclaycard Merchant Services,61601,,
Chorley Borough Council,http://statistics.data.gov.uk/id/local-authority/30UE,Corporate Management,1008,Policy & Governance,Bank Charges,40151,Miscellaneous Expenses,5034,30 Sept 2020,30/11/2020,0150015,"1,404.59",Revenue,Barclaycard Merchant Services,61601,,
Chorley Borough Council,http://statistics.data.gov.uk/id/local-authority/30UE,Capital,Capital,Policy & Governance,Other Contractor,03012,Capital Expenditure,Capital,Four lines of beer & lager with bespoke Astley Hall branding as arranged with NAME REDACTED. ,18/11/2020,0150549,"1,827.00",Capital,Barrica Wines Limited,81102,,
Chorley Borough Council,http://statistics.data.gov.uk/id/local-authority/30UE,Central Support Services,1009,Policy & Governance,HR Recruitment - Advertising,15300,Indirect Employee Expenses,5002,HR Consultancy fees for NAME REDACTED (invoice no 486541),20/11/2020,0148961,"2,700.00",Revenue,Blackburn with Darwen Borough Council,21000,,
Chorley Borough Council,http://statistics.data.gov.uk/id/local-authority/30UE,Central Support Services,1009,Policy & Governance,HR Recruitment - Advertising,15300,Indirect Employee Expenses,5002,Consultancy Work provided by NAME REDACTED for 6 months,20/11/2020,0150268,"18,000.00",Revenue,Blackburn with Darwen Borough Council,21000,,
Chorley Borough Council,http://statistics.data.gov.uk/id/local-authority/30UE,Unapportionable Central OHeads,1009,Policy & Governance,HR Recruitment - Advertising,15300,Indirect Employee Expenses,5002,Fees for NAME REDACTED from 4th August to 25th September 2020,20/11/2020,0150269,"4,567.50",Revenue,Blackburn with Darwen Borough Council,21000,,
Chorley Borough Council,http://statistics.data.gov.uk/id/local-authority/30UE,Capital,Capital,Commercial Services,Other Contractor,03012,Capital Expenditure,Capital,"Please relocate the Telegraph pole as per quote. (OS grid Ref: 358557 417630 - Clifford Street, PR7 1FDChorley). ",11/11/2020,0150314,"6,947.85",Capital,British Telecom,17189,,
Chorley Borough Council,http://statistics.data.gov.uk/id/local-authority/30UE,Central Support Services,1009,Customer & Digital,Telephones - Rentals,40083,Communication and Computing,5028,reg charges,06/11/2020,0150270,"3,406.57",Revenue,British Telecommunications Plc,17131,,
Chorley Borough Council,http://statistics.data.gov.uk/id/local-authority/30UE,Central Support Services,1009,Customer & Digital,Telephones - Calls,40084,Communication and Computing,5028,use,06/11/2020,0150270,197.32,Revenue,British Telecommunications Plc,17131,,
Chorley Borough Council,http://statistics.data.gov.uk/id/local-authority/30UE,Central Support Services,1009,Customer & Digital,Telephones - Other,40085,Communication and Computing,5028,adjustments,06/11/2020,0150270,70.00,Revenue,British Telecommunications Plc,17131,,
Chorley Borough Council,http://statistics.data.gov.uk/id/local-authority/30UE,Capital,Capital,Commercial Services,Other Capital Related Fees,03024,Capital Expenditure,Capital,Building work in MW Extension Units a agreed with NAME REDACTED,13/11/2020,0150441,"4,731.54",Capital,Bryan Lee Building Contractors Ltd,78160,,
Chorley Borough Council,http://statistics.data.gov.uk/id/local-authority/30UE,Business Support,1095,Commercial Services,Planned Maintenance,20006,Repairs Maintenance & Alts,5005,Flagging at Primrose Gardens,13/11/2020,0150443,"5,435.23",Revenue,Bryan Lee Building Contractors Ltd,78160,,
Chorley Borough Council,http://statistics.data.gov.uk/id/local-authority/30UE,Capital,Capital,Commercial Services,Other Capital Related Fees,03024,Capital Expenditure,Capital,Cinema Apex Build up works,13/11/2020,0150444,443.70,Capital,Bryan Lee Building Contractors Ltd,78160,,
Chorley Borough Council,http://statistics.data.gov.uk/id/local-authority/30UE,Central Support Services,1009,Commercial Services,Miscellaneous Expenses,40200,Miscellaneous Expenses,5034,Store cupboards at Astley Comminuty Centre and Eaves Green Community Centre,13/11/2020,0150445,"4,076.40",Revenue,Bryan Lee Building Contractors Ltd,78160,,
Chorley Borough Council,http://statistics.data.gov.uk/id/local-authority/30UE,Unapportionable Central OHeads,1009,Commercial Services,Planned Maintenance,20006,Repairs Maintenance & Alts,5005,CCTV ducting Steeley Lane,13/11/2020,0150554,488.07,Revenue,Bryan Lee Building Contractors Ltd,78160,,
Chorley Borough Council,http://statistics.data.gov.uk/id/local-authority/30UE,Central Support Services,1009,Customer & Digital,Telephones - Rentals,40083,Communication and Computing,5028,underpass,20/11/2020,0150492,"8,520.27",Revenue,BT Redcare,21115,,
Chorley Borough Council,http://statistics.data.gov.uk/id/local-authority/30UE,Central Support Services,1009,Customer & Digital,Telephones - Rentals,40083,Communication and Computing,5028,astley village,20/11/2020,0150493,"17,712.06",Revenue,BT Redcare,21115,,
Chorley Borough Council,http://statistics.data.gov.uk/id/local-authority/30UE,Business Support,1095,Policy & Governance,Grants To Other Organisations,40127,Grants and Subscriptions,5031,big grant,27/11/2020,0150839,"3,275.14",Revenue,Buckshaw Bunnies Childcare Ltd (Gelston Manor Day,66660,,
Chorley Borough Council,http://statistics.data.gov.uk/id/local-authority/30UE,Capital,Capital,Policy & Governance,Other Contractor,03012,Capital Expenditure,Capital,50% of balance of fees owing for remaining time to date for work on the Astley Shop. 643.31,18/11/2020,0150678,643.31,Capital,BWD Limited,78590,,
Chorley Borough Council,http://statistics.data.gov.uk/id/local-authority/30UE,Service Management & Support,1009,Customer & Digital,Supplies-Grounds Maintenance,40025,"Equipment, Furniture & Materia",5023,Rowan Croft & High Meadow ponds 4 visits each at 150.00,25/11/2020,0148571,260.00,Revenue,C J Lyon,16579,,
Chorley Borough Council,http://statistics.data.gov.uk/id/local-authority/30UE,Service Management & Support,1009,Customer & Digital,Supplies-Grounds Maintenance,40025,"Equipment, Furniture & Materia",5023,"Bengal Street Depot, Chorley � Empty 3 interceptors and clear aco drains 12 visits at 450.00",25/11/2020,0148572,450.00,Revenue,C J Lyon,16579,,
Chorley Borough Council,http://statistics.data.gov.uk/id/local-authority/30UE,Service Management & Support,1009,Customer & Digital,Supplies-Grounds Maintenance,40025,"Equipment, Furniture & Materia",5023,"Bengal Street Depot, Chorley � Empty 3 interceptors and clear aco drains 12 visits at 450.00",25/11/2020,0148955,450.00,Revenue,C J Lyon,16579,,
Chorley Borough Council,http://statistics.data.gov.uk/id/local-authority/30UE,Service Management & Support,1009,Customer & Digital,Supplies-Grounds Maintenance,40025,"Equipment, Furniture & Materia",5023,Rowan Croft & High Meadow ponds 4 visits each at 150.00,25/11/2020,0150571,260.00,Revenue,C J Lyon,16579,,
Chorley Borough Council,http://statistics.data.gov.uk/id/local-authority/30UE,Central Support Services,1009,Commercial Services,Consultants` Fees,40077,Services,5027,gas serv pipe disconnection,20/11/2020,0149709,"2,422.00",Revenue,Cadent Gas Ltd,80824,,
Chorley Borough Council,http://statistics.data.gov.uk/id/local-authority/30UE,Homelessness,1075,Early Intervention,External Contractor,40198,Miscellaneous Expenses,5034,Provision of Accommodation Finding Service (24 hours) & Resettlement Service (6 hours) from 1st July 2020 to 30th Sept 2020,11/11/2020,0149711,"7,286.50",Revenue,Calico Enterprise,73338,,
Chorley Borough Council,http://statistics.data.gov.uk/id/local-authority/30UE,Central Support Services,1009,Policy & Governance,Employee Related Insurance,18003,Indirect Employee Expenses,5002,Group Life assurance Scheme 38736,27/11/2020,0150857,"1,000.00",Revenue,Canada Life,22284,,
Chorley Borough Council,http://statistics.data.gov.uk/id/local-authority/30UE,Building Control,1090,Customer & Digital,Agency Staff,13000,Direct Employee Expenses,5001,Building Control Support Staffing at Chorley Borough Council,25/11/2020,0149712,"37,391.75",Revenue,Capita Business Services Ltd,17151,,
Chorley Borough Council,http://statistics.data.gov.uk/id/local-authority/30UE,Corporate Management,1008,Customer & Digital,Publicity - Advertising,40157,Miscellaneous Expenses,5034,match off against credit,25/11/2020,0150733,"4,673.73",Revenue,Capita Business Services Ltd,17151,,
Chorley Borough Council,http://statistics.data.gov.uk/id/local-authority/30UE,Building Control,1090,Customer & Digital,Agency Staff,13000,Direct Employee Expenses,5001,Building Control Support Staffing at Chorley Borough Council,25/11/2020,0150858,"9,226.04",Revenue,Capita Business Services Ltd,17151,,
Chorley Borough Council,http://statistics.data.gov.uk/id/local-authority/30UE,Building Control,1090,Customer & Digital,Agency Staff,13000,Direct Employee Expenses,5001,Building Control Support Staffing at Chorley Borough Council,25/11/2020,0150859,"9,639.00",Revenue,Capita Business Services Ltd,17151,,
Chorley Borough Council,http://statistics.data.gov.uk/id/local-authority/30UE,Building Control,1090,Customer & Digital,Agency Staff,13000,Direct Employee Expenses,5001,Building Control Support Staffing at Chorley Borough Council,25/11/2020,0150860,"2,641.40",Revenue,Capita Business Services Ltd,17151,,
Chorley Borough Council,http://statistics.data.gov.uk/id/local-authority/30UE,Building Control,1090,Customer & Digital,Agency Staff,13000,Direct Employee Expenses,5001,Building Control Support Staffing at Chorley Borough Council,25/11/2020,0150861,"7,809.00",Revenue,Capita Business Services Ltd,17151,,
Chorley Borough Council,http://statistics.data.gov.uk/id/local-authority/30UE,Homelessness,1075,Early Intervention,Miscellaneous Expenses,40200,Miscellaneous Expenses,5034,28/10/2020 & 30/10/2020 Premium Online Science Party 3-4pm,11/11/2020,0150271,260.00,Revenue,Captain Fantastic,80922,,
Chorley Borough Council,http://statistics.data.gov.uk/id/local-authority/30UE,Building Control,1090,Customer & Digital,Professional Fees,40063,Services,5027,Checking of structural calculations regarding the plan checking element of submitted plans for compliance of building regulations,11/11/2020,0149934,637.00,Revenue,Carr Faulkner Associates,17493,,
Chorley Borough Council,http://statistics.data.gov.uk/id/local-authority/30UE,Central Support Services,1009,Policy & Governance,Agency Staff,13000,Direct Employee Expenses,5001,po used in full in error on previous invoice,04/11/2020,0149432,"2,750.00",Revenue,Castlefield Recruitment Limited,80454,,
Chorley Borough Council,http://statistics.data.gov.uk/id/local-authority/30UE,Unapportionable Central OHeads,1009,Policy & Governance,Agency Staff,13000,Direct Employee Expenses,5001,NAME REDACTED - Interim Deputy Director of Finance for 4 days per week over a 4 month period,04/11/2020,0149536,"2,200.00",Revenue,Castlefield Recruitment Limited,80454,,
Chorley Borough Council,http://statistics.data.gov.uk/id/local-authority/30UE,Central Support Services,1009,Policy & Governance,Agency Staff,13000,Direct Employee Expenses,5001,NAME REDACTED - Interim Deputy Director of Finance for 4 days per week over a 4 month period,06/11/2020,0149713,"2,200.00",Revenue,Castlefield Recruitment Limited,80454,,
Chorley Borough Council,http://statistics.data.gov.uk/id/local-authority/30UE,Central Support Services,1009,Policy & Governance,Agency Staff,13000,Direct Employee Expenses,5001,NAME REDACTED - Interim Deputy Director of Finance for 4 days per week over a 4 month period,06/11/2020,0149887,"2,200.00",Revenue,Castlefield Recruitment Limited,80454,,
Chorley Borough Council,http://statistics.data.gov.uk/id/local-authority/30UE,Unapportionable Central OHeads,1009,Policy & Governance,Agency Staff,13000,Direct Employee Expenses,5001,NAME REDACTED - Interim Deputy Director of Finance for 4 days per week over a 4 month period,04/11/2020,0149994,"2,200.00",Revenue,Castlefield Recruitment Limited,80454,,
Chorley Borough Council,http://statistics.data.gov.uk/id/local-authority/30UE,Unapportionable Central OHeads,1009,Policy & Governance,Agency Staff,13000,Direct Employee Expenses,5001,Interim Deputy CFO - NAME REDACTED - Director of Finance 4 x Days per/week 3 x Months agency cover,25/11/2020,0150346,"1,100.00",Revenue,Castlefield Recruitment Limited,80454,,
Chorley Borough Council,http://statistics.data.gov.uk/id/local-authority/30UE,Unapportionable Central OHeads,1009,Policy & Governance,Agency Staff,13000,Direct Employee Expenses,5001,NAME REDACTED - Interim Deputy Director of Finance for 4 days per week over a 4 month period,25/11/2020,0150472,"2,200.00",Revenue,Castlefield Recruitment Limited,80454,,
Chorley Borough Council,http://statistics.data.gov.uk/id/local-authority/30UE,Unapportionable Central OHeads,1009,Policy & Governance,Agency Staff,13000,Direct Employee Expenses,5001,Interim Deputy CFO - NAME REDACTED - Director of Finance 4 x Days per/week 3 x Months agency cover,25/11/2020,0150734,"2,200.00",Revenue,Castlefield Recruitment Limited,80454,,
Chorley Borough Council,http://statistics.data.gov.uk/id/local-authority/30UE,Central Support Services,1009,Policy & Governance,Agency Staff,13000,Direct Employee Expenses,5001,Interim Deputy CFO - NAME REDACTED - Director of Finance 4 x Days per/week 3 x Months agency cover,27/11/2020,0150864,"2,200.00",Revenue,Castlefield Recruitment Limited,80454,,
Chorley Borough Council,http://statistics.data.gov.uk/id/local-authority/30UE,Corporate Management,1008,Commercial Services,Miscellaneous Expenses,40200,Miscellaneous Expenses,5034,Building Sanitisation for Covid 19 across all council sites. regular spraying and out break additional spraying,13/11/2020,0150565,"6,160.00",Revenue,Castus Solutions Limited,78812,,
Chorley Borough Council,http://statistics.data.gov.uk/id/local-authority/30UE,Corporate Management,1008,Commercial Services,Miscellaneous Expenses,40200,Miscellaneous Expenses,5034,Building Sanitisation for Covid 19 across all council sites. regular spraying and out break additional spraying,13/11/2020,0150567,"6,160.00",Revenue,Castus Solutions Limited,78812,,
Chorley Borough Council,http://statistics.data.gov.uk/id/local-authority/30UE,Corporate Management,1008,Commercial Services,Miscellaneous Expenses,40200,Miscellaneous Expenses,5034,Building Sanitisation for Covid 19 across all council sites. regular spraying and out break additional spraying,13/11/2020,0150568,"6,510.00",Revenue,Castus Solutions Limited,78812,,
Chorley Borough Council,http://statistics.data.gov.uk/id/local-authority/30UE,Corporate Management,1008,Commercial Services,Miscellaneous Expenses,40200,Miscellaneous Expenses,5034,Building Sanitisation for Covid 19 across all council sites. regular spraying and out break additional spraying,13/11/2020,0150569,"5,740.00",Revenue,Castus Solutions Limited,78812,,
Chorley Borough Council,http://statistics.data.gov.uk/id/local-authority/30UE,Corporate Management,1008,Commercial Services,Miscellaneous Expenses,40200,Miscellaneous Expenses,5034,Building Sanitisation for Covid 19 across all council sites. regular spraying and out break additional spraying,13/11/2020,0150570,"5,740.00",Revenue,Castus Solutions Limited,78812,,
Chorley Borough Council,http://statistics.data.gov.uk/id/local-authority/30UE,Service Management & Support,1009,Customer & Digital,Vehicles and Plant Maintenance,30045,Direct Transport Costs,5016,Handwash system for FL66 OUX As per email quote 266.88,20/11/2020,0147231,266.88,Revenue,Central Bodyshop Ltd,19511,,
Chorley Borough Council,http://statistics.data.gov.uk/id/local-authority/30UE,Capital,Capital,Commercial Services,Main Contractor,03007,Capital Expenditure,Capital,Structural report for Astley Hall Renovation,25/11/2020,0150448,350.00,Capital,CFA Structures Ltd,78548,,
Chorley Borough Council,http://statistics.data.gov.uk/id/local-authority/30UE,Recognised Cap Grants & Conts,,Customer & Digital,Contributions Parish Councils,40144,Grants and Subscriptions,5031,cil receipt for 1st apr to 30th sept 2020,06/11/2020,0149995,"2,855.18",Revenue,Charnock Richard Parish Cncl,16206,,
Chorley Borough Council,http://statistics.data.gov.uk/id/local-authority/30UE,Parking Services,1066,Commercial Services,External Contractors,50008,Private Contractors,5042,"Processing 074 - Provision of Notice.Processing Services for 01.04.2020-31.03.2021 Automated Telephone, Internet Payments",18/11/2020,0150593,412.65,Revenue,Chipside Ltd,22063,,
Chorley Borough Council,http://statistics.data.gov.uk/id/local-authority/30UE,Parking Services,1066,Commercial Services,External Contractors,50008,Private Contractors,5042,"Processing 010, 011, 075, 076, 077, 079, 080, 085, 086, MIPERMIT FEES, MIPERMIT CHARGE, ELECPAYBANKFEE",25/11/2020,0150631,580.95,Revenue,Chipside Ltd,22063,,
Chorley Borough Council,http://statistics.data.gov.uk/id/local-authority/30UE,Parking Services,1066,Commercial Services,External Contractors,50008,Private Contractors,5042,"Processing 010, 011, 075, 076, 077, 079, 080, 085, 086, MIPERMIT FEES, MIPERMIT CHARGE, ELECPAYBANKFEE",25/11/2020,0150632,278.70,Revenue,Chipside Ltd,22063,,
Chorley Borough Council,http://statistics.data.gov.uk/id/local-authority/30UE,Regulatory Services,1048,Customer & Digital,Taxi Testing & Vehicle Safety Report,40234,Services,5027,mot,11/11/2020,0149996,"1,206.70",Revenue,Chorley Autocare Ltd,17110,,
Chorley Borough Council,http://statistics.data.gov.uk/id/local-authority/30UE,Corporate Management,1008,Customer & Digital,Taxi Testing & Vehicle Safety Report,40234,Services,5027,taxi,11/11/2020,0149996,188.10,Revenue,Chorley Autocare Ltd,17110,,
Chorley Borough Council,http://statistics.data.gov.uk/id/local-authority/30UE,Corporate Management,1008,Customer & Digital,Taxi Testing & Vehicle Safety Report,40234,Services,5027,oct 2020,18/11/2020,0150658,"1,371.25",Revenue,Chorley Autocare Ltd,17110,,
Chorley Borough Council,http://statistics.data.gov.uk/id/local-authority/30UE,Regulatory Services,1048,Customer & Digital,Taxi Testing & Vehicle Safety Report,40234,Services,5027,test,18/11/2020,0150658,213.75,Revenue,Chorley Autocare Ltd,17110,,
Chorley Borough Council,http://statistics.data.gov.uk/id/local-authority/30UE,Service Management & Support,1009,Customer & Digital,Supplies-Grounds Maintenance,40025,"Equipment, Furniture & Materia",5023,"Supply & delivery:  1x 30L oxygen, 1x 30L Argon 5, 1x 30L Acetylene Inc. 3 x 50.00 bottles deposits and  3 x 75.00 gas fill",11/11/2020,0150254,225.00,Revenue,Chorley Bottled Gas Ltd,19484,,
Chorley Borough Council,http://statistics.data.gov.uk/id/local-authority/30UE,Service Management & Support,1009,Customer & Digital,Supplies-Grounds Maintenance,40025,"Equipment, Furniture & Materia",5023,non vat,11/11/2020,0150254,150.00,Revenue,Chorley Bottled Gas Ltd,19484,,
Chorley Borough Council,http://statistics.data.gov.uk/id/local-authority/30UE,Capital,Capital,Early Intervention,Grants,03002,Capital Expenditure,Capital,ADDRESS REDACTED,27/11/2020,0150912,"3,785.00",Capital,Chorley Community Housing - Rent Account,20531,,
Chorley Borough Council,http://statistics.data.gov.uk/id/local-authority/30UE,Central Support Services,1009,Policy & Governance,Tools & Equipment - Purchase,40003,"Equipment, Furniture & Materia",5023,As per quote 25192 Supply of various light bulbs. 13/10/20 Total 567.49,18/11/2020,0149924,567.49,Revenue,Chorley Electrical Traders Ltd,16330,,
Chorley Borough Council,http://statistics.data.gov.uk/id/local-authority/30UE,Unapportionable Central OHeads,1009,Policy & Governance,Tools & Equipment - Purchase,40003,"Equipment, Furniture & Materia",5023,Crompton lamps 18W/T8/ 840 cool white. x 3 boxes. Sylvania luxline plus 14w/T5/840 cool white G5  x 3 boxes.,18/11/2020,0150608,405.75,Revenue,Chorley Electrical Traders Ltd,16330,,
Chorley Borough Council,http://statistics.data.gov.uk/id/local-authority/30UE,Service Management & Support,1009,Customer & Digital,Vehicles and Plant Maintenance,30045,Direct Transport Costs,5016,PO67 BYU Call out New tyre fitting on site Disposal,11/11/2020,0150380,455.40,Revenue,Chorley Tyres,53719,,
Chorley Borough Council,http://statistics.data.gov.uk/id/local-authority/30UE,Community Development,1097,Policy & Governance,Core Funding Grants,40133,Grants and Subscriptions,5031,Annual commission for the provision of a support service for vulnerable adults (women) in Chorley,18/11/2020,0150426,"7,500.00",Revenue,Chorley Womens Centre,17036,,
Chorley Borough Council,http://statistics.data.gov.uk/id/local-authority/30UE,Central Support Services,1009,Early Intervention,Children's Activities,40188,Miscellaneous Expenses,5034,Lancashire Breaktime Respite Care by Inspire Youth Zone Summer Holidays Total 2700,25/11/2020,0150735,"2,700.00",Revenue,Chorley Youth Zone,77339,,
Chorley Borough Council,http://statistics.data.gov.uk/id/local-authority/30UE,Community Development,1097,Policy & Governance,Citizens Advice Bureau,40125,Grants and Subscriptions,5031,Annual commission for provision of Advice Services in Chorley from 1 Jun 20 to 31 Mar 21 (2nd instalment for 1 Oct to 31 Dec),18/11/2020,0149888,"14,200.00",Revenue,Citizens Advice Lancashire,17035,,
Chorley Borough Council,http://statistics.data.gov.uk/id/local-authority/30UE,Central Support Services,1009,Policy & Governance,Computer Software-Additional,40102,Communication and Computing,5028,"Full server migration of live and test financial systems environments for South Ribble & Chorley, inc application & SQL servers",06/11/2020,0149873,"10,010.00",Revenue,Civica UK Limited,17463,,
Chorley Borough Council,http://statistics.data.gov.uk/id/local-authority/30UE,Unapportionable Central OHeads,1009,Policy & Governance,IT Software - Annual Licences,40101,Communication and Computing,5028,Civica Digital email maintenance and license Nov 20 to Oct 21,04/11/2020,0149875,"1,169.89",Revenue,Civica UK Limited,17463,,
Chorley Borough Council,http://statistics.data.gov.uk/id/local-authority/30UE,Unapportionable Central OHeads,1009,Commercial Services,General Repairs - Reactive,20004,Repairs Maintenance & Alts,5005,Blanket reactive,25/11/2020,0150736,"1,649.09",Revenue,Classic Lifts Limited,20897,,
Chorley Borough Council,http://statistics.data.gov.uk/id/local-authority/30UE,Recognised Cap Grants & Conts,,Customer & Digital,Contributions Parish Councils,40144,Grants and Subscriptions,5031,CIL receipt for period 1st APril - 30th September,04/11/2020,0149997,"35,707.46",Revenue,Clayton-Le-Woods Parish Coun.,17024,,
Chorley Borough Council,http://statistics.data.gov.uk/id/local-authority/30UE,Capital,Capital,Policy & Governance,Other Contractor,03012,Capital Expenditure,Capital,Carlingwood Superb Quality Night Light Candles 25 pack x 96; Tidyz Degradable Doggy Bags w/ Tie Handles 75 pack x 19,04/11/2020,0150172,523.20,Capital,Clearance Kind - MTS Global Imports Ltd,80957,,
Chorley Borough Council,http://statistics.data.gov.uk/id/local-authority/30UE,Corporate Management,1008,Policy & Governance,Cleaning Materials,40019,"Equipment, Furniture & Materia",5023,BNG12 Blue Nitrile Gloves Size Medium 13.65 per box QTY 10 boxes Total 136.65,27/11/2020,0150737,136.50,Revenue,CMUK Visual Safety Ltd,22496,,
Chorley Borough Council,http://statistics.data.gov.uk/id/local-authority/30UE,Corporate Management,1008,Policy & Governance,Cleaning Materials,40019,"Equipment, Furniture & Materia",5023,BNG13 Blue Nitrile Gloves Size Large 13.65 per box QTY 10 boxes Total 136.50,27/11/2020,0150737,136.50,Revenue,CMUK Visual Safety Ltd,22496,,
Chorley Borough Council,http://statistics.data.gov.uk/id/local-authority/30UE,Capital,Capital,Commercial Services,Main Contractor,03007,Capital Expenditure,Capital,"Disconnect 355mm LP Gas Service from 180mm LP main in Union St including Network Analysis, Non-Routine Operation",18/11/2020,0150644,"17,497.00",Capital,Complete Sustainability Solutions,80558,,
Chorley Borough Council,http://statistics.data.gov.uk/id/local-authority/30UE,Capital,Capital,Early Intervention,Main Contractor,03007,Capital Expenditure,Capital,Quote JE 7246 20  New path linking The Elms to Carr Brook Linear Park to specification,11/11/2020,0150423,"2,866.90",Capital,Conservation Contracts North West,20520,,
Chorley Borough Council,http://statistics.data.gov.uk/id/local-authority/30UE,Capital,Capital,Early Intervention,Main Contractor,03007,Capital Expenditure,Capital,Fencing of the river back at strategic locations along Carr Brook to prevent access by dogs,25/11/2020,0150739,"2,000.00",Capital,Conservation Contracts North West,20520,,
Chorley Borough Council,http://statistics.data.gov.uk/id/local-authority/30UE,Recognised Cap Grants & Conts,,Customer & Digital,Contributions Parish Councils,40144,Grants and Subscriptions,5031,CIL Receipt for period 1st April - 30th September 2020,04/11/2020,0149998,"1,830.54",Revenue,Coppull Parish Council,17025,,
Chorley Borough Council,http://statistics.data.gov.uk/id/local-authority/30UE,Unapportionable Central OHeads,1009,Commercial Services,General Repairs - Reactive,20004,Repairs Maintenance & Alts,5005,Reactive blanket,11/11/2020,0150459,464.66,Revenue,Corlett Electrical Eng Co Ltd,16271,,
Chorley Borough Council,http://statistics.data.gov.uk/id/local-authority/30UE,Unapportionable Central OHeads,1009,Commercial Services,Asset Maintenance Fund,20012,Repairs Maintenance & Alts,5005,Refugee blanket order,11/11/2020,0150471,463.32,Revenue,Corlett Electrical Eng Co Ltd,16271,,
Chorley Borough Council,http://statistics.data.gov.uk/id/local-authority/30UE,Business Support,1095,Commercial Services,Planned Maintenance,20006,Repairs Maintenance & Alts,5005,Install sockets for data cabinets,11/11/2020,0150528,"2,319.83",Revenue,Corlett Electrical Eng Co Ltd,16271,,
Chorley Borough Council,http://statistics.data.gov.uk/id/local-authority/30UE,Unapportionable Central OHeads,1009,Commercial Services,General Repairs - Reactive,20004,Repairs Maintenance & Alts,5005,Reactive blanket,25/11/2020,0150534,298.84,Revenue,Corlett Electrical Eng Co Ltd,16271,,
Chorley Borough Council,http://statistics.data.gov.uk/id/local-authority/30UE,Central Support Services,1009,Commercial Services,Planned Maintenance,20006,Repairs Maintenance & Alts,5005,PPM blanket order,11/11/2020,0150535,452.67,Revenue,Corlett Electrical Eng Co Ltd,16271,,
Chorley Borough Council,http://statistics.data.gov.uk/id/local-authority/30UE,Unapportionable Central OHeads,1009,Commercial Services,General Repairs - Reactive,20004,Repairs Maintenance & Alts,5005,Reactive blanket,25/11/2020,0150740,600.00,Revenue,Corlett Electrical Eng Co Ltd,16271,,
Chorley Borough Council,http://statistics.data.gov.uk/id/local-authority/30UE,Capital,Capital,Commercial Services,Other Capital Related Fees,03024,Capital Expenditure,Capital,Install new cables to CCTV at MW Extension,25/11/2020,0150785,"1,628.19",Capital,Corlett Electrical Eng Co Ltd,16271,,
Chorley Borough Council,http://statistics.data.gov.uk/id/local-authority/30UE,Capital,Capital,Commercial Services,Main Contractor,03007,Capital Expenditure,Capital,All seasons leisure centre external lighting repairs,18/11/2020,0150792,900.00,Capital,Corlett Electrical Eng Co Ltd,16271,,
Chorley Borough Council,http://statistics.data.gov.uk/id/local-authority/30UE,Unapportionable Central OHeads,1009,Commercial Services,General Repairs - Reactive,20004,Repairs Maintenance & Alts,5005,Reactive blanket,25/11/2020,0150803,254.48,Revenue,Corlett Electrical Eng Co Ltd,16271,,
Chorley Borough Council,http://statistics.data.gov.uk/id/local-authority/30UE,Homelessness,1075,Commercial Services,Gas,20014,Energy Costs,5006,aug to sept,06/11/2020,0150003,314.81,Revenue,Corona Energy Retail 2 Ltd,67249,,
Chorley Borough Council,http://statistics.data.gov.uk/id/local-authority/30UE,Recreation & Sport,1037,Commercial Services,Gas,20014,Energy Costs,5006,aug to sept 2020,06/11/2020,0150053,327.85,Revenue,Corona Energy Retail 2 Ltd,67249,,
Chorley Borough Council,http://statistics.data.gov.uk/id/local-authority/30UE,Central Support Services,1009,Commercial Services,Gas,20014,Energy Costs,5006,aug to sept 20,06/11/2020,0150056,445.46,Revenue,Corona Energy Retail 2 Ltd,67249,,
Chorley Borough Council,http://statistics.data.gov.uk/id/local-authority/30UE,Business Support,1095,Commercial Services,Gas,20014,Energy Costs,5006,sept to oct 2020,04/11/2020,0150208,"1,159.80",Revenue,Corona Energy Retail 2 Ltd,67249,,
Chorley Borough Council,http://statistics.data.gov.uk/id/local-authority/30UE,Corporate Management,1008,Customer & Digital,Items For Resale,40027,"Equipment, Furniture & Materia",5023,240 L Neo plastic wheeled bin (GREEN) Quantity = 300     with Chorley logo,18/11/2020,0150381,"5,085.00",Revenue,Craemer UK Ltd,64712,,
Chorley Borough Council,http://statistics.data.gov.uk/id/local-authority/30UE,Central Support Services,1009,Commercial Services,Professional Fees,40063,Services,5027,match off against credit 0043618,20/11/2020,0150806,"1,750.00",Revenue,Curtins Consulting Limited,20049,,
Chorley Borough Council,http://statistics.data.gov.uk/id/local-authority/30UE,Corporate Management,1008,Policy & Governance,Miscellaneous Expenses,40200,Miscellaneous Expenses,5034,Hire of 8 portable handwash stations @ 45 each per week. 21st  Sept  to 18th Oct 2020 (4 weeks) Invoice no. 3115,18/11/2020,0150446,"1,440.00",Revenue,Cyril Unsworth Ltd,78887,,
Chorley Borough Council,http://statistics.data.gov.uk/id/local-authority/30UE,Service Management & Support,1009,Customer & Digital,Supplies-Grounds Maintenance,40025,"Equipment, Furniture & Materia",5023,"Transport of 32ft Portakabin From Wigan lane to Yarrow depot on Bolton Road, Chorley. As Agreed with NAME REDACTED",11/11/2020,0150542,250.00,Revenue,D Cain & Son Ltd,21353,,
Chorley Borough Council,http://statistics.data.gov.uk/id/local-authority/30UE,Capital,Capital,Early Intervention,Grants,03002,Capital Expenditure,Capital,ADDRESS REDACTED,11/11/2020,0150406,"5,583.00",Capital,D J Bathing,78482,,
Chorley Borough Council,http://statistics.data.gov.uk/id/local-authority/30UE,Central Support Services,1009,Customer & Digital,Computer Equipment-Purchase,40098,Communication and Computing,5028,1 x Brother printer for Cotswold,20/11/2020,0150272,289.00,Revenue,DAC Technology Ltd,76398,,
Chorley Borough Council,http://statistics.data.gov.uk/id/local-authority/30UE,Central Support Services,1009,Customer & Digital,Computer Equipment-Purchase,40098,Communication and Computing,5028,DELIVERY,20/11/2020,0150272,12.00,Revenue,DAC Technology Ltd,76398,,
Chorley Borough Council,http://statistics.data.gov.uk/id/local-authority/30UE,Central Support Services,1009,Customer & Digital,Computer Equipment-Purchase,40098,Communication and Computing,5028,"8x ProLabs CBL-10GSFP-DAC-2M-C, 8 x red 4m patch leads, 8x green 4m patch leads",27/11/2020,0150273,291.20,Revenue,DAC Technology Ltd,76398,,
Chorley Borough Council,http://statistics.data.gov.uk/id/local-authority/30UE,Building Control,1090,Customer & Digital,Agency Staff,13000,Direct Employee Expenses,5001,Agency Fees for NAME REDACTED Building Control Officer 29 hours wk ending 11.09.2020 plus travel costs,11/11/2020,0149497,"1,379.65",Revenue,Deekay Technical Recruit Ltd,17160,,
Chorley Borough Council,http://statistics.data.gov.uk/id/local-authority/30UE,Building Control,1090,Customer & Digital,Agency Staff,13000,Direct Employee Expenses,5001,Agency Fees for NAME REDACTED Building Control Officer 29 hrs wk ending 16.10.2020 plus travelling costs invoice 00137062,11/11/2020,0150245,"1,376.05",Revenue,Deekay Technical Recruit Ltd,17160,,
Chorley Borough Council,http://statistics.data.gov.uk/id/local-authority/30UE,Building Control,1090,Customer & Digital,Agency Staff,13000,Direct Employee Expenses,5001,Agency Fees for NAME REDACTED Building Control Officer 29 hrs wk ending 02.10.2020 plus travelling costs invoice 00136826,11/11/2020,0150246,"1,376.50",Revenue,Deekay Technical Recruit Ltd,17160,,
Chorley Borough Council,http://statistics.data.gov.uk/id/local-authority/30UE,Building Control,1090,Customer & Digital,Agency Staff,13000,Direct Employee Expenses,5001,Agency Fees for NAME REDACTED Building Control Officer 29 hrs wk ending 23.10.2020 incl travelling costs  invoice 00137195,11/11/2020,0150264,"1,368.85",Revenue,Deekay Technical Recruit Ltd,17160,,
Chorley Borough Council,http://statistics.data.gov.uk/id/local-authority/30UE,Building Control,1090,Customer & Digital,Agency Staff,13000,Direct Employee Expenses,5001,Agency Fees for NAME REDACTED Building Control Officer 31 hrs wk ending 25.09.2020 plus travelling costs invoice 00136704,11/11/2020,0150274,"1,462.85",Revenue,Deekay Technical Recruit Ltd,17160,,
Chorley Borough Council,http://statistics.data.gov.uk/id/local-authority/30UE,Building Control,1090,Customer & Digital,Agency Staff,13000,Direct Employee Expenses,5001,Agency Fees for NAME REDACTED Building Control Officer 29 hrs wk ending 09.10.2020 plus travelling costs invoice 00136942,11/11/2020,0150275,"1,378.30",Revenue,Deekay Technical Recruit Ltd,17160,,
Chorley Borough Council,http://statistics.data.gov.uk/id/local-authority/30UE,Building Control,1090,Customer & Digital,Agency Staff,13000,Direct Employee Expenses,5001,Agency Fees for NAME REDACTED building Control Officer 29 hrs wk ending 30.10.2020 plus travel costs,20/11/2020,0150487,"1,376.50",Revenue,Deekay Technical Recruit Ltd,17160,,
Chorley Borough Council,http://statistics.data.gov.uk/id/local-authority/30UE,Control Accounts,Control,Policy & Governance,General Balances,00100,Balance Sheet,Balance,CMS,04/11/2020,0150016,450.58,Revenue,Department for Work and Pensions,80469,,
Chorley Borough Council,http://statistics.data.gov.uk/id/local-authority/30UE,Control Accounts,Control,Policy & Governance,General Balances,00100,Balance Sheet,Balance,Child Maint attrahchment of earnings,27/11/2020,0150832,450.58,Revenue,Department for Work and Pensions,80469,,
Chorley Borough Council,http://statistics.data.gov.uk/id/local-authority/30UE,Unapportionable Central OHeads,1009,Commercial Services,Asset Maintenance Fund,20012,Repairs Maintenance & Alts,5005,Refugee reactive,11/11/2020,0150023,834.28,Revenue,EFT Construction,78195,,
Chorley Borough Council,http://statistics.data.gov.uk/id/local-authority/30UE,Corporate Management,1008,Commercial Services,Miscellaneous Expenses,40200,Miscellaneous Expenses,5034,Training Webinars for the Covid-19 Business Support 4 Webinars at 415 each,11/11/2020,0150276,"1,037.50",Revenue,EJS Marketing,80609,,
Chorley Borough Council,http://statistics.data.gov.uk/id/local-authority/30UE,Corporate Management,1008,Commercial Services,Miscellaneous Expenses,40200,Miscellaneous Expenses,5034,Training Webinars for the Covid-19 Business Support 4 Webinars at 415 each,13/11/2020,0150476,518.75,Revenue,EJS Marketing,80609,,
Chorley Borough Council,http://statistics.data.gov.uk/id/local-authority/30UE,Homelessness,1075,Commercial Services,Laundry,40042,"Clothing, Uniforms and Laundry",5025,"Bedding, cleaning and delivery services for September 2020",04/11/2020,0150222,"1,004.32",Revenue,Elis UK Ltd,20799,,
Chorley Borough Council,http://statistics.data.gov.uk/id/local-authority/30UE,Central Support Services,1009,Commercial Services,Professional Fees,40063,Services,5027,"Site Investigation, Geotechnical and Monitoring",18/11/2020,0150594,"2,950.00",Revenue,Environmental Engineering Partnership Limited,78457,,
Chorley Borough Council,http://statistics.data.gov.uk/id/local-authority/30UE,Business Support,1095,Commercial Services,Internet Charges,40104,Communication and Computing,5028,"April 2020 to March 2021 Connect Service Growth Edition: software charge, cloud primary / backup circuits",11/11/2020,0150452,"3,810.00",Revenue,Essensys Ltd,77836,,
Chorley Borough Council,http://statistics.data.gov.uk/id/local-authority/30UE,Recognised Cap Grants & Conts,,Customer & Digital,Contributions Parish Councils,40144,Grants and Subscriptions,5031,CIL receipt for period 1st April - 30th September 2020,04/11/2020,0150042,"1,051.26",Revenue,Euxton Parish Council,16838,,
Chorley Borough Council,http://statistics.data.gov.uk/id/local-authority/30UE,Service Management & Support,1009,Customer & Digital,Vehicles and Plant Maintenance,30045,Direct Transport Costs,5016,"BRG 1.5X1.25X1.25 BUSH  x6, FLAP-DEFLECTOR x3, HINGE x4, BUSH-FLNG 1/2``X5/8``X1/ 4, PIN-LIFT RAM x2, DR",06/11/2020,0150209,333.41,Revenue,F R Sharrock Ltd,18091,,
Chorley Borough Council,http://statistics.data.gov.uk/id/local-authority/30UE,Corporate Management,1008,Customer & Digital,Unitary Payment(S),50009,Private Contractors,5042,Provision of waste and recycling collection services 2020-2021,13/11/2020,0150349,"186,604.68",Revenue,FCC Environment Services (UK) Limited,77903,,
Chorley Borough Council,http://statistics.data.gov.uk/id/local-authority/30UE,Central Support Services,1009,Commercial Services,Consultants` Fees,40077,Services,5027,Architectural services to RIBA Stage 4 for the Alker Lane development project,11/11/2020,0150526,"16,298.00",Revenue,Fletcher Rae (UK) Limited,80432,,
Chorley Borough Council,http://statistics.data.gov.uk/id/local-authority/30UE,Central Support Services,1009,Commercial Services,Professional Fees,40063,Services,5027,Multi-Disciplinary Design Team,11/11/2020,0149193,"2,149.38",Revenue,Frank Whittle Partnership Limited,76928,,
Chorley Borough Council,http://statistics.data.gov.uk/id/local-authority/30UE,Business Support,1095,Commercial Services,Gas,20014,Energy Costs,5006,ADDRESS REDACTED,18/11/2020,0150686,284.38,Revenue,Gazprom Energy,56502,,
Chorley Borough Council,http://statistics.data.gov.uk/id/local-authority/30UE,Capital,Capital,Commercial Services,Main Contractor,03007,Capital Expenditure,Capital,Heritage Consultant for Astley Hall Renovation Scheme,11/11/2020,0150525,"10,222.00",Capital,Geoff W Maybank,64389,,
Chorley Borough Council,http://statistics.data.gov.uk/id/local-authority/30UE,Central Support Services,1009,Commercial Services,Professional Fees,40063,Services,5027,"Feasibility master-planning, in accordance with the appended fee proposal.",25/11/2020,0148905,"2,850.00",Revenue,Gilling Dod,72454,,
Chorley Borough Council,http://statistics.data.gov.uk/id/local-authority/30UE,Service Management & Support,1009,Customer & Digital,Supplies-Grounds Maintenance,40025,"Equipment, Furniture & Materia",5023,Order for 26 August 2020 for Go Plant fleet services 4 x weed ripper brush/ Mixed poly metal brushes 107.87each 46 delivery,11/11/2020,0149728,477.48,Revenue,Go Plant Fleet Services Ltd,80857,,
Chorley Borough Council,http://statistics.data.gov.uk/id/local-authority/30UE,Service Management & Support,1009,Customer & Digital,Hire Of Vehicles and Plant,30028,Contrct Hire & Operating Lease,5018,3 Year Contract hire 1x Schmidt Swingo 200+ as per ITT including servicing and Maintenance,04/11/2020,0150210,"2,019.85",Revenue,Go Plant Fleet Services Ltd,80857,,
Chorley Borough Council,http://statistics.data.gov.uk/id/local-authority/30UE,Service Management & Support,1009,Customer & Digital,Hire Of Vehicles and Plant,30028,Contrct Hire & Operating Lease,5018,3 Year Contract hire 1x Johnston CN101 as per ITT including servicing and Maintenance,04/11/2020,0150211,"1,762.23",Revenue,Go Plant Fleet Services Ltd,80857,,
Chorley Borough Council,http://statistics.data.gov.uk/id/local-authority/30UE,Service Management & Support,1009,Customer & Digital,Hire Of Vehicles and Plant,30028,Contrct Hire & Operating Lease,5018,3 Year Contract Hire Chassis mounted sweeper as per ITT. Including servicing and Maintenance. to be paid monthly in arrears,04/11/2020,0150212,"2,772.31",Revenue,Go Plant Fleet Services Ltd,80857,,
Chorley Borough Council,http://statistics.data.gov.uk/id/local-authority/30UE,Service Management & Support,1009,Customer & Digital,Hire Of Vehicles and Plant,30028,Contrct Hire & Operating Lease,5018,3 Year Contract hire 1x Schmidt Swingo 200+ as per ITT including servicing and Maintenance,04/11/2020,0150213,"2,019.85",Revenue,Go Plant Fleet Services Ltd,80857,,
Chorley Borough Council,http://statistics.data.gov.uk/id/local-authority/30UE,Service Management & Support,1009,Customer & Digital,Supplies-Grounds Maintenance,40025,"Equipment, Furniture & Materia",5023,12 X Jonston C101 brushes @33.52 each 46 delivery,25/11/2020,0150709,458.85,Revenue,Go Plant Fleet Services Ltd,80857,,
Chorley Borough Council,http://statistics.data.gov.uk/id/local-authority/30UE,Service Management & Support,1009,Customer & Digital,Supplies-Grounds Maintenance,40025,"Equipment, Furniture & Materia",5023,10x Johnston C101 mixed poly wire brushes @32.49 each 46 carriage charge,25/11/2020,0150719,381.22,Revenue,Go Plant Fleet Services Ltd,80857,,
Chorley Borough Council,http://statistics.data.gov.uk/id/local-authority/30UE,Capital,Capital,Commercial Services,Main Contractor,03007,Capital Expenditure,Capital,Alker Lane Cost Plan Production,11/11/2020,0150421,375.00,Capital,Gosling Construction Services,78380,,
Chorley Borough Council,http://statistics.data.gov.uk/id/local-authority/30UE,Central Support Services,1009,Commercial Services,Consultants` Fees,40077,Services,5027,General QS at Bengal St,11/11/2020,0150422,568.75,Revenue,Gosling Construction Services,78380,,
Chorley Borough Council,http://statistics.data.gov.uk/id/local-authority/30UE,Capital,Capital,Commercial Services,Main Contractor,03007,Capital Expenditure,Capital,General QS at Alker Lane,11/11/2020,0150422,"1,251.25",Capital,Gosling Construction Services,78380,,
Chorley Borough Council,http://statistics.data.gov.uk/id/local-authority/30UE,Central Support Services,1009,Commercial Services,Consultants` Fees,40077,Services,5027,General QS at Tatton,11/11/2020,0150422,"4,192.50",Revenue,Gosling Construction Services,78380,,
Chorley Borough Council,http://statistics.data.gov.uk/id/local-authority/30UE,Central Support Services,1009,Commercial Services,Consultants` Fees,40077,Services,5027,General QS at Buckshaw,11/11/2020,0150422,243.75,Revenue,Gosling Construction Services,78380,,
Chorley Borough Council,http://statistics.data.gov.uk/id/local-authority/30UE,Central Support Services,1009,Commercial Services,Consultants` Fees,40077,Services,5027,General QS at Buzz /FHSF,11/11/2020,0150422,812.50,Revenue,Gosling Construction Services,78380,,
Chorley Borough Council,http://statistics.data.gov.uk/id/local-authority/30UE,Central Support Services,1009,Commercial Services,Consultants` Fees,40077,Services,5027,General QS at Cowling,11/11/2020,0150422,81.25,Revenue,Gosling Construction Services,78380,,
Chorley Borough Council,http://statistics.data.gov.uk/id/local-authority/30UE,Central Support Services,1009,Commercial Services,Consultants` Fees,40077,Services,5027,General QS at Camelot,11/11/2020,0150422,81.25,Revenue,Gosling Construction Services,78380,,
Chorley Borough Council,http://statistics.data.gov.uk/id/local-authority/30UE,Capital,Capital,Commercial Services,Main Contractor,03007,Capital Expenditure,Capital,General QS Services @ Alker Lane - 5.25 days,11/11/2020,0150543,"1,706.25",Capital,Gosling Construction Services,78380,,
Chorley Borough Council,http://statistics.data.gov.uk/id/local-authority/30UE,Central Support Services,1009,Commercial Services,Consultants` Fees,40077,Services,5027,General QS Services @ Tatton - 12 days,11/11/2020,0150543,"3,900.00",Revenue,Gosling Construction Services,78380,,
Chorley Borough Council,http://statistics.data.gov.uk/id/local-authority/30UE,Central Support Services,1009,Commercial Services,Consultants` Fees,40077,Services,5027,General QS Services @ Buckshaw - 1/2 day,11/11/2020,0150543,162.50,Revenue,Gosling Construction Services,78380,,
Chorley Borough Council,http://statistics.data.gov.uk/id/local-authority/30UE,Central Support Services,1009,Commercial Services,Consultants` Fees,40077,Services,5027,General QS Services @ Buzz Bingo - 2.5 days,11/11/2020,0150543,812.50,Revenue,Gosling Construction Services,78380,,
Chorley Borough Council,http://statistics.data.gov.uk/id/local-authority/30UE,Economic Development,1096,Commercial Services,Professional Fees,40063,Services,5027,"Covered Market Refurb & Upgrade Works, progress & complete the covered market improvements, Cost & progress reporting",18/11/2020,0150604,149.99,Revenue,Gosling Construction Services,78380,,
Chorley Borough Council,http://statistics.data.gov.uk/id/local-authority/30UE,Economic Development,1096,Commercial Services,Professional Fees,40063,Services,5027,"Procurement,  inc Agreement of strategy for the works, Prep of documents, Identification of a tender list for each package",18/11/2020,0150604,299.98,Revenue,Gosling Construction Services,78380,,
Chorley Borough Council,http://statistics.data.gov.uk/id/local-authority/30UE,Economic Development,1096,Commercial Services,Professional Fees,40063,Services,5027,Detailed Planning & Logistics Development of a detailed works programme including all necessary updates as works proceed,18/11/2020,0150604,599.95,Revenue,Gosling Construction Services,78380,,
Chorley Borough Council,http://statistics.data.gov.uk/id/local-authority/30UE,Economic Development,1096,Commercial Services,Professional Fees,40063,Services,5027,"Visiting Supervision Provision of qualified visiting supervision to: Check and respond to RAMS, Project Manage the works",18/11/2020,0150604,599.95,Revenue,Gosling Construction Services,78380,,
Chorley Borough Council,http://statistics.data.gov.uk/id/local-authority/30UE,Economic Development,1096,Commercial Services,Professional Fees,40063,Services,5027,Design Management Work with the design team to develop the design and meet the Client brief Support the Architect ,18/11/2020,0150604,300.13,Revenue,Gosling Construction Services,78380,,
Chorley Borough Council,http://statistics.data.gov.uk/id/local-authority/30UE,Capital,Capital,Commercial Services,Main Contractor,03007,Capital Expenditure,Capital,"Re Buzz Bingo, Chorley photo survey",18/11/2020,0150706,650.00,Capital,Gosling Construction Services,78380,,
Chorley Borough Council,http://statistics.data.gov.uk/id/local-authority/30UE,Economic Development,1096,Commercial Services,Professional Fees,40063,Services,5027,To carry out the following works: Render 130m2 of panels under and around shutters on Chorley market Using Parex Monorex,20/11/2020,0150812,"4,200.00",Revenue,GPS Plastering,80998,,
Chorley Borough Council,http://statistics.data.gov.uk/id/local-authority/30UE,Economic Development,1096,Commercial Services,Professional Fees,40063,Services,5027,Materials,20/11/2020,0150812,"4,110.00",Revenue,GPS Plastering,80998,,
Chorley Borough Council,http://statistics.data.gov.uk/id/local-authority/30UE,Central Support Services,1009,Customer & Digital,Vandalism Repairs,20005,Repairs Maintenance & Alts,5005,Graffiti contract July 2020 - ongoing,11/11/2020,0150045,565.00,Revenue,Graffiti Away Ltd,78340,,
Chorley Borough Council,http://statistics.data.gov.uk/id/local-authority/30UE,Corporate Management,1008,Policy & Governance,External Audit,40064,Services,5027,Chorley Council Main Audit Fee 2020-21,04/11/2020,0149435,"8,711.50",Revenue,Grant Thornton UK LLP,57322,,
Chorley Borough Council,http://statistics.data.gov.uk/id/local-authority/30UE,Corporate Management,1008,Policy & Governance,External Audit,40064,Services,5027,Chorley Council 2019-20 additional fee as set out in the Audit Plan,04/11/2020,0149938,"9,470.00",Revenue,Grant Thornton UK LLP,57322,,
Chorley Borough Council,http://statistics.data.gov.uk/id/local-authority/30UE,Corporate Management,1008,Commercial Services,Publicity - Advertising,40157,Miscellaneous Expenses,5034,"Social Media for Market Walk, Chorley.  July 2020 - March 2021 @500 per month Total 4500 + VAT",06/11/2020,0150226,500.00,Revenue,Gravity,77837,,
Chorley Borough Council,http://statistics.data.gov.uk/id/local-authority/30UE,Corporate Management,1008,Policy & Governance,Miscellaneous Expenses,40200,Miscellaneous Expenses,5034,Hire of mobile hand wash basins from 1st October 2020 to 31st October 2020 Contract no. 22944 Invoice number 22626,13/11/2020,0150249,"1,440.00",Revenue,Hallmark Catering,78575,,
Chorley Borough Council,http://statistics.data.gov.uk/id/local-authority/30UE,Recognised Cap Grants & Conts,,Customer & Digital,Contributions Parish Councils,40144,Grants and Subscriptions,5031,CIL receipt for period 1st April - 30th September 2020,04/11/2020,0150073,"1,354.35",Revenue,Heath Charnock Parish Council,16208,,
Chorley Borough Council,http://statistics.data.gov.uk/id/local-authority/30UE,Central Support Services,1009,Early Intervention,Miscellaneous Expenses,40200,Miscellaneous Expenses,5034,neighbourhood work,18/11/2020,0150074,250.00,Revenue,Help The Homeless (Chorley),16716,,
Chorley Borough Council,http://statistics.data.gov.uk/id/local-authority/30UE,Central Support Services,1009,Commercial Services,General Repairs - Reactive,20004,Repairs Maintenance & Alts,5005,Blanket reactive,25/11/2020,0150841,260.00,Revenue,Henry Nightingale & Son,17923,,
Chorley Borough Council,http://statistics.data.gov.uk/id/local-authority/30UE,Unapportionable Central OHeads,1009,Commercial Services,General Repairs - Reactive,20004,Repairs Maintenance & Alts,5005,Blanket reactive,25/11/2020,0150842,360.00,Revenue,Henry Nightingale & Son,17923,,
Chorley Borough Council,http://statistics.data.gov.uk/id/local-authority/30UE,Recognised Cap Grants & Conts,,Customer & Digital,Contributions Parish Councils,40144,Grants and Subscriptions,5031,Cil receipt for period 1st April - 30th Sept 2020,04/11/2020,0150075,"1,793.98",Revenue,Hoghton Parish Council,16188,,
Chorley Borough Council,http://statistics.data.gov.uk/id/local-authority/30UE,Community Development,1097,Policy & Governance,Core Funding Grants,40133,Grants and Subscriptions,5031,Annual commission for the provision of a Children and families support service in Chorley,18/11/2020,0150544,"11,000.00",Revenue,Home-Start Central Lancashire Ltd,20585,,
Chorley Borough Council,http://statistics.data.gov.uk/id/local-authority/30UE,Central Support Services,1009,Commercial Services,Miscellaneous Expenses,40200,Miscellaneous Expenses,5034,Demolition of the Former Stagecoach Bus Depot (Eaves Lane Chorley),11/11/2020,0150277,"23,649.12",Revenue,Howard Stott Demolition Ltd,80713,,
Chorley Borough Council,http://statistics.data.gov.uk/id/local-authority/30UE,Recreation & Sport,1037,Customer & Digital,Computer Equipment-Purchase,40098,Communication and Computing,5028,"Professional Services 3 x 650 Total 1,950",27/11/2020,0150076,"1,950.00",Revenue,Hybrit LLP,77925,,
Chorley Borough Council,http://statistics.data.gov.uk/id/local-authority/30UE,Central Support Services,1009,Customer & Digital,Telephones - Other,40085,Communication and Computing,5028,Hybrit SIP charges Oct 20,27/11/2020,0150384,585.00,Revenue,Hybrit LLP,77925,,
Chorley Borough Council,http://statistics.data.gov.uk/id/local-authority/30UE,Corporate Management,1008,Policy & Governance,Other Fees,40212,Miscellaneous Expenses,5034,Subsidy for the provision of a meals on wheels service in Chorley up to 8 November,18/11/2020,0150690,"2,108.96",Revenue,I Care GB Ltd,77247,,
Chorley Borough Council,http://statistics.data.gov.uk/id/local-authority/30UE,Central Support Services,1009,Customer & Digital,Computer Equipment - Security,40106,Communication and Computing,5028,NW WARP,06/11/2020,0150215,"2,205.00",Revenue,iNetwork (Tameside Council),19554,,
Chorley Borough Council,http://statistics.data.gov.uk/id/local-authority/30UE,Corporate Management,1008,Customer & Digital,Clinical Waste Collection,50007,Private Contractors,5042,collection and disposal of Clinical Waste from domestic properties in the Chorley area. April 2020 to March 2021,25/11/2020,0150623,922.14,Revenue,Initial,78488,,
Chorley Borough Council,http://statistics.data.gov.uk/id/local-authority/30UE,Corporate Management,1008,Customer & Digital,Clinical Waste Collection,50007,Private Contractors,5042,collection and disposal of Clinical Waste from domestic properties in the Chorley area. April 2020 to March 2021,25/11/2020,0150624,"1,006.64",Revenue,Initial,78488,,
Chorley Borough Council,http://statistics.data.gov.uk/id/local-authority/30UE,Corporate Management,1008,Customer & Digital,Clinical Waste Collection,50007,Private Contractors,5042,collection and disposal of Clinical Waste from domestic properties in the Chorley area. April 2020 to March 2021,25/11/2020,0150626,"1,023.54",Revenue,Initial,78488,,
Chorley Borough Council,http://statistics.data.gov.uk/id/local-authority/30UE,Other Short Term Creditors,,Policy & Governance,General Balances,00100,Balance Sheet,Balance,Tax and NI for election Payment,04/11/2020,0149670,402.80,Revenue,Inland Revenue 065/CH1094A,77147,,
Chorley Borough Council,http://statistics.data.gov.uk/id/local-authority/30UE,Central Support Services,1009,Commercial Services,General Repairs - Reactive,20004,Repairs Maintenance & Alts,5005,Adaptation works to fire door handles to enable access from outside,13/11/2020,0150550,596.00,Revenue,J P F Systems Ltd t/a The Automatic Door Company,78216,,
Chorley Borough Council,http://statistics.data.gov.uk/id/local-authority/30UE,Central Support Services,1009,Commercial Services,General Repairs - Reactive,20004,Repairs Maintenance & Alts,5005,Repair and alteration works to doors at Primrose Gardens,13/11/2020,0150551,300.95,Revenue,J P F Systems Ltd t/a The Automatic Door Company,78216,,
Chorley Borough Council,http://statistics.data.gov.uk/id/local-authority/30UE,Central Support Services,1009,Commercial Services,General Repairs - Reactive,20004,Repairs Maintenance & Alts,5005,Repair and alteration works to doors at Primrose Gardens,13/11/2020,0150552,255.00,Revenue,J P F Systems Ltd t/a The Automatic Door Company,78216,,
Chorley Borough Council,http://statistics.data.gov.uk/id/local-authority/30UE,Recreation & Sport,1037,Early Intervention,Miscellaneous Expenses,40200,Miscellaneous Expenses,5034,SE847 DOLPHIN WAVE COMMERCIAL 100 POOL CLEANER,04/11/2020,0149730,"3,600.00",Revenue,J P Lennard Limited,80934,,
Chorley Borough Council,http://statistics.data.gov.uk/id/local-authority/30UE,Democratic Represent and  Mgnt,1007,Early Intervention,Miscellaneous Expenses,40200,Miscellaneous Expenses,5034,1 x SE847 DOLPHIN WAVE COMMERCIAL 100 POOL CLEANER,11/11/2020,0149731,"3,600.00",Revenue,J P Lennard Limited,80934,,
Chorley Borough Council,http://statistics.data.gov.uk/id/local-authority/30UE,Democratic Represent and  Mgnt,1007,Early Intervention,Miscellaneous Expenses,40200,Miscellaneous Expenses,5034,6 x SU1867 ROADJACK 8 BATTERY POWERED SPEAKER SYSTEM,25/11/2020,0149732,"1,065.50",Revenue,J P Lennard Limited,80934,,
Chorley Borough Council,http://statistics.data.gov.uk/id/local-authority/30UE,Central Support Services,1009,Policy & Governance,Consultants` Fees,40077,Services,5027,Chorley Council Asset Valuations 2019-20 as per quote,27/11/2020,0148555,"15,000.00",Revenue,Jacobs UK Ltd,78489,,
Chorley Borough Council,http://statistics.data.gov.uk/id/local-authority/30UE,Culture & Heritage,1036,Policy & Governance,Exhibitions & Special Events,40158,Miscellaneous Expenses,5034,Artist - Exhibition `Elements`,11/11/2020,0150385,"1,250.00",Revenue,James Summerbell,80941,,
Chorley Borough Council,http://statistics.data.gov.uk/id/local-authority/30UE,Capital,Capital,Commercial Services,Main Contractor,03007,Capital Expenditure,Capital,Release of Retention,25/11/2020,0150657,"2,597.27",Capital,John Wade Groundworks Ltd,76676,,
Chorley Borough Council,http://statistics.data.gov.uk/id/local-authority/30UE,Development Control,1091,Customer & Digital,Statutory Notices,40160,Miscellaneous Expenses,5034,Planning Public Notices to appear in the Chorley Guardian April 2020 to March 2021,04/11/2020,0150278,550.62,Revenue,JPI Media - Johnston Publishing Ltd,20072,,
Chorley Borough Council,http://statistics.data.gov.uk/id/local-authority/30UE,Capital,Capital,Early Intervention,Grants,03002,Capital Expenditure,Capital,ADDRESS REDACTED,18/11/2020,0149170,"5,797.50",Capital,K Berry Ltd,16421,,
Chorley Borough Council,http://statistics.data.gov.uk/id/local-authority/30UE,Economic Development,1096,Commercial Services,Protective Clothing,40040,"Clothing, Uniforms and Laundry",5025,Patrol shirt (red/black) Qty 6 - Medium and Qty 2 - X Small Left breast - Chorley Council Right breast - M logo ,11/11/2020,0150279,540.20,Revenue,Keltic Clothing,21988,,
Chorley Borough Council,http://statistics.data.gov.uk/id/local-authority/30UE,Parking Services,1066,Commercial Services,Uniforms,40039,"Clothing, Uniforms and Laundry",5025,"(CEO) White ladies pilot shirt, short sleeve Qty 1 � Size 14 Left breast embroidered in red with Chorley Council",11/11/2020,0150279,9.95,Revenue,Keltic Clothing,21988,,
Chorley Borough Council,http://statistics.data.gov.uk/id/local-authority/30UE,Corporate Management,1008,Commercial Services,Miscellaneous Expenses,40200,Miscellaneous Expenses,5034,"4 x Yellow Softshell Jackets Chorley Council embroidered in black on the left breast only  Sizes: 1 Med, 2 Lge, 1 XXL",25/11/2020,0150761,277.55,Revenue,Keltic Clothing,21988,,
Chorley Borough Council,http://statistics.data.gov.uk/id/local-authority/30UE,Service Management & Support,1009,Customer & Digital,Protective Clothing,40040,"Clothing, Uniforms and Laundry",5025,"Quantity x 3 Size 8, x 3 Size 9, x3 Size 10, x 3 Size 12 Safety Boot  @42.13 pair x 2 Size 8 Chukka Boot",25/11/2020,0150084,131.56,Revenue,Key Engineering & Hygene Supplies,51615,,
Chorley Borough Council,http://statistics.data.gov.uk/id/local-authority/30UE,Service Management & Support,1009,Customer & Digital,Protective Clothing,40040,"Clothing, Uniforms and Laundry",5025,Bppts,25/11/2020,0150084,573.14,Revenue,Key Engineering & Hygene Supplies,51615,,
Chorley Borough Council,http://statistics.data.gov.uk/id/local-authority/30UE,Corporate Management,1008,Commercial Services,Miscellaneous Expenses,40200,Miscellaneous Expenses,5034,50 Hand Sanitisers cartridges and 30 dispensers,04/11/2020,0150086,285.34,Revenue,Key Engineering & Hygene Supplies,51615,,
Chorley Borough Council,http://statistics.data.gov.uk/id/local-authority/30UE,Corporate Management,1008,Customer & Digital,Miscellaneous Expenses,40200,Miscellaneous Expenses,5034,5 x box of 50 Type 2R face masks @20.00each,04/11/2020,0150228,100.00,Revenue,Key Engineering & Hygene Supplies,51615,,
Chorley Borough Council,http://statistics.data.gov.uk/id/local-authority/30UE,Corporate Management,1008,Customer & Digital,Miscellaneous Expenses,40200,Miscellaneous Expenses,5034,20 x Disposable face shield @4.17each,04/11/2020,0150228,83.40,Revenue,Key Engineering & Hygene Supplies,51615,,
Chorley Borough Council,http://statistics.data.gov.uk/id/local-authority/30UE,Corporate Management,1008,Customer & Digital,Miscellaneous Expenses,40200,Miscellaneous Expenses,5034,1 x case of 10 boxes Disposable nitrile gloves powder free  size Large,04/11/2020,0150228,97.60,Revenue,Key Engineering & Hygene Supplies,51615,,
Chorley Borough Council,http://statistics.data.gov.uk/id/local-authority/30UE,Service Management & Support,1009,Customer & Digital,Protective Clothing,40040,"Clothing, Uniforms and Laundry",5025,"Quantity x 2- Size 12, x2 Size 7, x2 Size 10, Black Safety Boot @42.13 each Quantity x 20 PS33- Safety spectacles,",04/11/2020,0150230,252.78,Revenue,Key Engineering & Hygene Supplies,51615,,
Chorley Borough Council,http://statistics.data.gov.uk/id/local-authority/30UE,Service Management & Support,1009,Customer & Digital,Protective Clothing,40040,"Clothing, Uniforms and Laundry",5025,safety specs,04/11/2020,0150230,31.00,Revenue,Key Engineering & Hygene Supplies,51615,,
Chorley Borough Council,http://statistics.data.gov.uk/id/local-authority/30UE,Service Management & Support,1009,Customer & Digital,Supplies-Grounds Maintenance,40025,"Equipment, Furniture & Materia",5023,"Quantity x5- Size XL, x 3- Size LS460 Yellow HI-Vis � length Portwest S460 traffic jacket, EN343 Class 3, breathable waterproof",11/11/2020,0150356,129.04,Revenue,Key Engineering & Hygene Supplies,51615,,
Chorley Borough Council,http://statistics.data.gov.uk/id/local-authority/30UE,Service Management & Support,1009,Customer & Digital,Supplies-Grounds Maintenance,40025,"Equipment, Furniture & Materia",5023,"Quantity x 3- XXL, x2- XL, x3- L, x4- M S463 ``High-Vis, Yellow, Waterproof Bomber Jacket Polyester PU-coated waterproof, ",11/11/2020,0150356,193.56,Revenue,Key Engineering & Hygene Supplies,51615,,
Chorley Borough Council,http://statistics.data.gov.uk/id/local-authority/30UE,Service Management & Support,1009,Customer & Digital,Supplies-Grounds Maintenance,40025,"Equipment, Furniture & Materia",5023,"Quantity x 10- Size M UC122 Uneek UC122 Polo Shirt 190gsm, 100% cotton, colour red Streetscene c/w  Chorley Council white ",11/11/2020,0150356,48.40,Revenue,Key Engineering & Hygene Supplies,51615,,
Chorley Borough Council,http://statistics.data.gov.uk/id/local-authority/30UE,Service Management & Support,1009,Customer & Digital,Supplies-Grounds Maintenance,40025,"Equipment, Furniture & Materia",5023,"Quantity x 10- L x10- XL Uneek UC502 Classic Hooded Sweatshirt, colour red, Garment weight: 300 GSM, 50% Polyester 50% ",11/11/2020,0150356,84.80,Revenue,Key Engineering & Hygene Supplies,51615,,
Chorley Borough Council,http://statistics.data.gov.uk/id/local-authority/30UE,Service Management & Support,1009,Customer & Digital,Supplies-Grounds Maintenance,40025,"Equipment, Furniture & Materia",5023,"Quantity x 5- XL x 5-M x5- L UC203 Uneek UC203, crew neck  sweatshirt colour red, 50% cotton, 50% polyester 300g",11/11/2020,0150356,92.10,Revenue,Key Engineering & Hygene Supplies,51615,,
Chorley Borough Council,http://statistics.data.gov.uk/id/local-authority/30UE,Service Management & Support,1009,Customer & Digital,Supplies-Grounds Maintenance,40025,"Equipment, Furniture & Materia",5023,"Quantity x 5- XL x2- S x2- M TRF532 Regatta Thor III Zip Fleece Jacket 10RE500, colour  red, 380gm 100% Polyester Super Anti-",11/11/2020,0150356,94.41,Revenue,Key Engineering & Hygene Supplies,51615,,
Chorley Borough Council,http://statistics.data.gov.uk/id/local-authority/30UE,Control Accounts,Control,Policy & Governance,General Balances,00100,Balance Sheet,Balance,Monthly Deductions,13/11/2020,0150088,"1,380.51",Revenue,Labour Councillors Association,17577,,
Chorley Borough Council,http://statistics.data.gov.uk/id/local-authority/30UE,Control Accounts,Control,Policy & Governance,General Balances,00100,Balance Sheet,Balance,Monthly Deductions,13/11/2020,0150089,"1,674.23",Revenue,Labour Councillors Association,17577,,
Chorley Borough Council,http://statistics.data.gov.uk/id/local-authority/30UE,Control Accounts,Control,Policy & Governance,General Balances,00100,Balance Sheet,Balance,Monthly deductions,25/11/2020,0150828,"1,422.47",Revenue,Labour Councillors Association,17577,,
Chorley Borough Council,http://statistics.data.gov.uk/id/local-authority/30UE,Capital,Capital,Early Intervention,Grants,03002,Capital Expenditure,Capital,ADDRESS REDACTED,18/11/2020,0149168,"5,250.00",Capital,Lancashire County Council,17758,,
Chorley Borough Council,http://statistics.data.gov.uk/id/local-authority/30UE,Capital,Capital,Early Intervention,Grants,03002,Capital Expenditure,Capital,ADDRESS REDACTED,18/11/2020,0149169,"1,125.38",Capital,Lancashire County Council,17758,,
Chorley Borough Council,http://statistics.data.gov.uk/id/local-authority/30UE,Capital,Capital,Policy & Governance,Grants,03002,Capital Expenditure,Capital,ADDRESS REDACTED,06/11/2020,0149787,"3,709.01",Capital,Lancashire County Council,17758,,
Chorley Borough Council,http://statistics.data.gov.uk/id/local-authority/30UE,Development Control,1091,Customer & Digital,Tools & Equipment - Purchase,40003,"Equipment, Furniture & Materia",5023,Service Level Agreement for Archaeology for 2020 - 2021 (Year 2),06/11/2020,0150235,"5,723.00",Revenue,Lancashire County Council,17758,,
Chorley Borough Council,http://statistics.data.gov.uk/id/local-authority/30UE,Capital,Capital,Early Intervention,Grants,03002,Capital Expenditure,Capital,ADDRESS REDACTED,11/11/2020,0150414,"2,930.00",Capital,Lancashire County Council,17758,,
Chorley Borough Council,http://statistics.data.gov.uk/id/local-authority/30UE,Capital,Capital,Early Intervention,Grants,03002,Capital Expenditure,Capital,ADDRESS REDACTED,13/11/2020,0150561,"3,665.00",Capital,Lancashire County Council,17758,,
Chorley Borough Council,http://statistics.data.gov.uk/id/local-authority/30UE,Central Support Services,1009,Commercial Services,Miscellaneous Expenses,40200,Miscellaneous Expenses,5034,Hoarding permit for the former Stagecoach Bus Depot on Eaves Lane Chorley 12.10.20 - 01.03.2022 Licence ref 26011,11/11/2020,0150090,"2,190.00",Revenue,Lancashire County Council Highways,18845,,
Chorley Borough Council,http://statistics.data.gov.uk/id/local-authority/30UE,Democratic Represent and  Mgnt,1007,Early Intervention,Grounds Maintenance Contractor,20043,Grounds Maintenance Costs,5013,FAO NAME REDACTED - Sign Shop. As per discussion with NAME REDACTED from the Friends of Astley Park. Waymarker ,18/11/2020,0150539,259.00,Revenue,Lancashire County Council Highways,18845,,
Chorley Borough Council,http://statistics.data.gov.uk/id/local-authority/30UE,Central Support Services,1009,Commercial Services,Planned Maintenance,20006,Repairs Maintenance & Alts,5005,PPM blanket for boiler services,25/11/2020,0150768,"2,806.00",Revenue,Lancashire Gas Services Ltd,78192,,
Chorley Borough Council,http://statistics.data.gov.uk/id/local-authority/30UE,Central Support Services,1009,Commercial Services,General Repairs - Reactive,20004,Repairs Maintenance & Alts,5005,Reactive blanket,25/11/2020,0150769,291.00,Revenue,Lancashire Gas Services Ltd,78192,,
Chorley Borough Council,http://statistics.data.gov.uk/id/local-authority/30UE,Unapportionable Central OHeads,1009,Commercial Services,General Repairs - Reactive,20004,Repairs Maintenance & Alts,5005,Reactive blanket,25/11/2020,0150772,301.38,Revenue,Lancashire Gas Services Ltd,78192,,
Chorley Borough Council,http://statistics.data.gov.uk/id/local-authority/30UE,Unapportionable Central OHeads,1009,Commercial Services,General Repairs - Reactive,20004,Repairs Maintenance & Alts,5005,Reactive blanket,25/11/2020,0150776,133.00,Revenue,Lancashire Gas Services Ltd,78192,,
Chorley Borough Council,http://statistics.data.gov.uk/id/local-authority/30UE,Unapportionable Central OHeads,1009,Commercial Services,General Repairs - Reactive,20004,Repairs Maintenance & Alts,5005,MATERIALS,25/11/2020,0150776,175.86,Revenue,Lancashire Gas Services Ltd,78192,,
Chorley Borough Council,http://statistics.data.gov.uk/id/local-authority/30UE,Unapportionable Central OHeads,1009,Policy & Governance,Pensions Increase Act Payments,18005,Indirect Employee Expenses,5002,CAY 20,30/11/2020,0147991,"17,557.88",Revenue,Lancashire Pensions Services DD ONLY,16696,,
Chorley Borough Council,http://statistics.data.gov.uk/id/local-authority/30UE,Unapportionable Central OHeads,1009,Policy & Governance,Pensions Increase Act Payments,18005,Indirect Employee Expenses,5002,CAY MAy20,30/11/2020,0147992,"17,505.21",Revenue,Lancashire Pensions Services DD ONLY,16696,,
Chorley Borough Council,http://statistics.data.gov.uk/id/local-authority/30UE,Unapportionable Central OHeads,1009,Policy & Governance,Pensions Increase Act Payments,18005,Indirect Employee Expenses,5002,cAY Aug 20,30/11/2020,0150091,"17,454.52",Revenue,Lancashire Pensions Services DD ONLY,16696,,
Chorley Borough Council,http://statistics.data.gov.uk/id/local-authority/30UE,Other Short Term Creditors,,Policy & Governance,General Balances,00100,Balance Sheet,Balance,Ees pension contribution,30/11/2020,0150280,"43,157.27",Revenue,Lancashire Pensions Services DD ONLY,16696,,
Chorley Borough Council,http://statistics.data.gov.uk/id/local-authority/30UE,Other Short Term Creditors,,Policy & Governance,General Balances,00100,Balance Sheet,Balance,Ees pension contribution,30/11/2020,0150281,"46,373.63",Revenue,Lancashire Pensions Services DD ONLY,16696,,
Chorley Borough Council,http://statistics.data.gov.uk/id/local-authority/30UE,Other Short Term Creditors,,Policy & Governance,General Balances,00100,Balance Sheet,Balance,Ees pension contribution,30/11/2020,0150301,"46,704.78",Revenue,Lancashire Pensions Services DD ONLY,16696,,
Chorley Borough Council,http://statistics.data.gov.uk/id/local-authority/30UE,Other Short Term Creditors,,Policy & Governance,General Balances,00100,Balance Sheet,Balance,pension contribution jun 20,30/11/2020,0150302,"42,267.86",Revenue,Lancashire Pensions Services DD ONLY,16696,,
Chorley Borough Council,http://statistics.data.gov.uk/id/local-authority/30UE,Other Short Term Creditors,,Policy & Governance,General Balances,00100,Balance Sheet,Balance,Ees pension contribution,30/11/2020,0150303,"43,174.78",Revenue,Lancashire Pensions Services DD ONLY,16696,,
Chorley Borough Council,http://statistics.data.gov.uk/id/local-authority/30UE,Other Short Term Creditors,,Policy & Governance,General Balances,00100,Balance Sheet,Balance,Ees pesion contribution,30/11/2020,0150304,"43,134.77",Revenue,Lancashire Pensions Services DD ONLY,16696,,
Chorley Borough Council,http://statistics.data.gov.uk/id/local-authority/30UE,Other Short Term Creditors,,Policy & Governance,General Balances,00100,Balance Sheet,Balance,Ees pension cont,30/11/2020,0150916,"43,174.78",Revenue,Lancashire Pensions Services DD ONLY,16696,,
Chorley Borough Council,http://statistics.data.gov.uk/id/local-authority/30UE,Service Management & Support,1009,Customer & Digital,Vehicles and Plant Maintenance,30045,Direct Transport Costs,5016,As per Job number 5362 PN66RCU - PTO Fault / Hydraulic Levels Low - Investigate body fault and found faulty sweep blade ,11/11/2020,0150369,297.62,Revenue,Lancashire Waste Services,78129,,
Chorley Borough Council,http://statistics.data.gov.uk/id/local-authority/30UE,Central Support Services,1009,Customer & Digital,External Contractor,40198,Miscellaneous Expenses,5034,Removal of dumped caravan on Ackhurst Car park. As per email quotation received from NAME REDACTED,18/11/2020,0150683,500.00,Revenue,Lancashire Waste Services,78129,,
Chorley Borough Council,http://statistics.data.gov.uk/id/local-authority/30UE,Precepts and Collection Fund,Precepts,Policy & Governance,LCFA Precept,02011,Precepts & Collection Fund,Precept,LCFA CTax precepts,30/11/2020,0147993,"268,413.00",Revenue,Lancs Combined Fire Authority,17768,,
Chorley Borough Council,http://statistics.data.gov.uk/id/local-authority/30UE,Collection Fund Revenue Accoun,,Policy & Governance,NNDR Fire Share,02037,Precepts & Collection Fund,Precept,LCFA BRates precepts,30/11/2020,0147993,"24,488.00",Revenue,Lancs Combined Fire Authority,17768,,
Chorley Borough Council,http://statistics.data.gov.uk/id/local-authority/30UE,Precepts and Collection Fund,Precepts,Policy & Governance,LCFA Precept,02011,Precepts & Collection Fund,Precept,LCFA C-TAX PRECEPTS,30/11/2020,0148500,"268,413.00",Revenue,Lancs Combined Fire Authority,17768,,
Chorley Borough Council,http://statistics.data.gov.uk/id/local-authority/30UE,Collection Fund Revenue Accoun,,Policy & Governance,NNDR Fire Share,02037,Precepts & Collection Fund,Precept,LCFA B-RATES PRECEPTS,30/11/2020,0148500,"24,488.00",Revenue,Lancs Combined Fire Authority,17768,,
Chorley Borough Council,http://statistics.data.gov.uk/id/local-authority/30UE,Precepts and Collection Fund,Precepts,Policy & Governance,LCFA Precept,02011,Precepts & Collection Fund,Precept,LCFA Ctax pret,30/11/2020,0149166,"268,413.00",Revenue,Lancs Combined Fire Authority,17768,,
Chorley Borough Council,http://statistics.data.gov.uk/id/local-authority/30UE,Collection Fund Revenue Accoun,,Policy & Governance,NNDR Fire Share,02037,Precepts & Collection Fund,Precept,LCFA B-Rates r,30/11/2020,0149166,"24,488.00",Revenue,Lancs Combined Fire Authority,17768,,
Chorley Borough Council,http://statistics.data.gov.uk/id/local-authority/30UE,Precepts and Collection Fund,Precepts,Policy & Governance,LCFA Precept,02011,Precepts & Collection Fund,Precept,LCFA Ctax precepts,30/11/2020,0150814,"268,413.00",Revenue,Lancs Combined Fire Authority,17768,,
Chorley Borough Council,http://statistics.data.gov.uk/id/local-authority/30UE,Collection Fund Revenue Accoun,,Policy & Governance,NNDR Fire Share,02037,Precepts & Collection Fund,Precept,LCFA BRates precepts,30/11/2020,0150814,"24,488.00",Revenue,Lancs Combined Fire Authority,17768,,
Chorley Borough Council,http://statistics.data.gov.uk/id/local-authority/30UE,Central Support Services,1009,Policy & Governance,Professional Fees,40063,Services,5027,Pre purchased 60 hours of VAT consultancy for Chorley & South Ribble Borough Councils,04/11/2020,0149402,"9,600.00",Revenue,LAVAT Consulting Ltd,76942,,
Chorley Borough Council,http://statistics.data.gov.uk/id/local-authority/30UE,Central Support Services,1009,Policy & Governance,Professional Fees,40063,Services,5027,PS Tax Club Membership for Chorley & South Ribble Borough Councils for 6 months,04/11/2020,0149402,"2,507.50",Revenue,LAVAT Consulting Ltd,76942,,
Chorley Borough Council,http://statistics.data.gov.uk/id/local-authority/30UE,Economic Development,1096,Chief Executive,Training Course Fees,17010,Indirect Employee Expenses,5002,Home PT postgraduate taught tuition fees,20/11/2020,0150450,"1,322.00",Revenue,Leeds Beckett University,78518,,
Chorley Borough Council,http://statistics.data.gov.uk/id/local-authority/30UE,Central Support Services,1009,Commercial Services,Survey Expenses,40069,Services,5027,Earthworks and Drainage review G&T Site,11/11/2020,0150370,375.00,Revenue,Lees Roxburgh Ltd,80768,,
Chorley Borough Council,http://statistics.data.gov.uk/id/local-authority/30UE,Unapportionable Central OHeads,1009,Policy & Governance,Service Fees,40056,Services,5027,Driver Management Fee and Electronic Fee,18/11/2020,0150319,531.60,Revenue,Licence Bureau Limited,71233,,
Chorley Borough Council,http://statistics.data.gov.uk/id/local-authority/30UE,Capital,Capital,Commercial Services,Main Contractor,03007,Capital Expenditure,Capital,Project management services for Astley Hall Restoration project,25/11/2020,0150497,"2,186.00",Capital,Linchpin Ltd,80779,,
Chorley Borough Council,http://statistics.data.gov.uk/id/local-authority/30UE,Corporate Management,1008,Policy & Governance,Treasury Management Service,40065,Services,5027,Treasury Management Services for the period 01/04/2020 - 30/09/2020,04/11/2020,0149738,"7,625.00",Revenue,Link Treasury Services Limited,16428,,
Chorley Borough Council,http://statistics.data.gov.uk/id/local-authority/30UE,Business Support,1095,Commercial Services,Stationery,40050,"Printing, Stationery & General",5026,TK 5230C @ 73.89 X2 Kyocera printer cartridges,11/11/2020,0150415,147.78,Revenue,Lyreco UK Ltd,17623,,
Chorley Borough Council,http://statistics.data.gov.uk/id/local-authority/30UE,Business Support,1095,Commercial Services,Stationery,40050,"Printing, Stationery & General",5026,TK5230M x 2 @ 73.89 Kyocera printer cartridges,11/11/2020,0150415,147.78,Revenue,Lyreco UK Ltd,17623,,
Chorley Borough Council,http://statistics.data.gov.uk/id/local-authority/30UE,Business Support,1095,Commercial Services,Stationery,40050,"Printing, Stationery & General",5026,TK5230Y x 1 @ 73.89,11/11/2020,0150415,73.89,Revenue,Lyreco UK Ltd,17623,,
Chorley Borough Council,http://statistics.data.gov.uk/id/local-authority/30UE,Culture & Heritage,1036,Policy & Governance,Conservation Of Exhibits,40059,Services,5027,Transport very fragile tapestries. 5.25m x 2.55m 3.8m x 2.55m 3.2m x 2.55m 2.55m x 2.55m Chorley to Bristol & Return,18/11/2020,0150564,997.00,Revenue,M & G Transport and Technical Services,22443,,
Chorley Borough Council,http://statistics.data.gov.uk/id/local-authority/30UE,Service Management & Support,1009,Customer & Digital,Grounds Maintenance Contractor,20043,Grounds Maintenance Costs,5013,Tree work completed August - October 2020. Invoice 51.,11/11/2020,0150449,"5,230.00",Revenue,M J Walker,62044,,
Chorley Borough Council,http://statistics.data.gov.uk/id/local-authority/30UE,Capital,Capital,Early Intervention,Grants,03002,Capital Expenditure,Capital,ADDRESS REDACTED,13/11/2020,0150560,"3,545.00",Capital,M.J Park Building Contractors,20367,,
Chorley Borough Council,http://statistics.data.gov.uk/id/local-authority/30UE,Recognised Cap Grants & Conts,,Customer & Digital,Contributions Parish Councils,40144,Grants and Subscriptions,5031,CIL receipt for period 1st of April - 30th September 2020,04/11/2020,0150094,"9,696.60",Revenue,Mawdesley Parish Council,17570,,
Chorley Borough Council,http://statistics.data.gov.uk/id/local-authority/30UE,Unapportionable Central OHeads,1009,Commercial Services,Planned Maintenance,20006,Repairs Maintenance & Alts,5005,Blanket PPM,25/11/2020,0150693,621.24,Revenue,Maxigiene Environmental Services Ltd,67160,,
Chorley Borough Council,http://statistics.data.gov.uk/id/local-authority/30UE,Open Spaces,1038,Customer & Digital,Playground Equipment,40008,"Equipment, Furniture & Materia",5023,Supply 20 ton of play sand to Astley Park Supply 20 ton of play sand to Yarrow Valley Country Park,25/11/2020,0150573,947.04,Revenue,Mc & Ma Stewart (Haulage Ltd),16627,,
Chorley Borough Council,http://statistics.data.gov.uk/id/local-authority/30UE,Collection Fund Revenue Accoun,,Policy & Governance,Transitional Protection,02033,Precepts & Collection Fund,Precept,trans protn contrib,30/11/2020,0147976,"6,808.00",Revenue,Ministry of Housing Communities & Local Government,16280,,
Chorley Borough Council,http://statistics.data.gov.uk/id/local-authority/30UE,Collection Fund Revenue Accoun,,Policy & Governance,NNDR Central Share,02034,Precepts & Collection Fund,Precept,central shre BR,30/11/2020,0147976,"1,109,495.00",Revenue,Ministry of Housing Communities & Local Government,16280,,
Chorley Borough Council,http://statistics.data.gov.uk/id/local-authority/30UE,Collection Fund Revenue Accoun,,Policy & Governance,NNDR Central Share,02034,Precepts & Collection Fund,Precept,deficit coll fund,30/11/2020,0147976,"-2,509.00",Revenue,Ministry of Housing Communities & Local Government,16280,,
Chorley Borough Council,http://statistics.data.gov.uk/id/local-authority/30UE,Collection Fund Revenue Accoun,,Policy & Governance,Transitional Protection,02033,Precepts & Collection Fund,Precept,trans protn contrib,30/11/2020,0147994,"6,808.00",Revenue,Ministry of Housing Communities & Local Government,16280,,
Chorley Borough Council,http://statistics.data.gov.uk/id/local-authority/30UE,Collection Fund Revenue Accoun,,Policy & Governance,NNDR Central Share,02034,Precepts & Collection Fund,Precept,deficit collection fund,30/11/2020,0147994,"-2,508.00",Revenue,Ministry of Housing Communities & Local Government,16280,,
Chorley Borough Council,http://statistics.data.gov.uk/id/local-authority/30UE,Collection Fund Revenue Accoun,,Policy & Governance,Transitional Protection,02033,Precepts & Collection Fund,Precept,trans protn contrib,30/11/2020,0147995,"6,807.00",Revenue,Ministry of Housing Communities & Local Government,16280,,
Chorley Borough Council,http://statistics.data.gov.uk/id/local-authority/30UE,Collection Fund Revenue Accoun,,Policy & Governance,NNDR Central Share,02034,Precepts & Collection Fund,Precept,deficit collection fund,30/11/2020,0147995,"-2,508.00",Revenue,Ministry of Housing Communities & Local Government,16280,,
Chorley Borough Council,http://statistics.data.gov.uk/id/local-authority/30UE,Collection Fund Revenue Accoun,,Policy & Governance,Transitional Protection,02033,Precepts & Collection Fund,Precept,trans protn contr,30/11/2020,0147996,"6,808.00",Revenue,Ministry of Housing Communities & Local Government,16280,,
Chorley Borough Council,http://statistics.data.gov.uk/id/local-authority/30UE,Collection Fund Revenue Accoun,,Policy & Governance,NNDR Central Share,02034,Precepts & Collection Fund,Precept,deficit collection fund,30/11/2020,0147996,"-2,508.00",Revenue,Ministry of Housing Communities & Local Government,16280,,
Chorley Borough Council,http://statistics.data.gov.uk/id/local-authority/30UE,Collection Fund Revenue Accoun,,Policy & Governance,Transitional Protection,02033,Precepts & Collection Fund,Precept,trans protn cont,30/11/2020,0148915,"6,051.00",Revenue,Ministry of Housing Communities & Local Government,16280,,
Chorley Borough Council,http://statistics.data.gov.uk/id/local-authority/30UE,Collection Fund Revenue Accoun,,Policy & Governance,NNDR Central Share,02034,Precepts & Collection Fund,Precept,central share BR,30/11/2020,0148915,"986,217.00",Revenue,Ministry of Housing Communities & Local Government,16280,,
Chorley Borough Council,http://statistics.data.gov.uk/id/local-authority/30UE,Collection Fund Revenue Accoun,,Policy & Governance,NNDR Central Share,02034,Precepts & Collection Fund,Precept,deficit coll,30/11/2020,0148915,"-2,229.00",Revenue,Ministry of Housing Communities & Local Government,16280,,
Chorley Borough Council,http://statistics.data.gov.uk/id/local-authority/30UE,Collection Fund Revenue Accoun,,Policy & Governance,Transitional Protection,02033,Precepts & Collection Fund,Precept,trans protn contributions,30/11/2020,0150096,"6,051.00",Revenue,Ministry of Housing Communities & Local Government,16280,,
Chorley Borough Council,http://statistics.data.gov.uk/id/local-authority/30UE,Collection Fund Revenue Accoun,,Policy & Governance,NNDR Central Share,02034,Precepts & Collection Fund,Precept,central share br,30/11/2020,0150096,"986,218.00",Revenue,Ministry of Housing Communities & Local Government,16280,,
Chorley Borough Council,http://statistics.data.gov.uk/id/local-authority/30UE,Collection Fund Revenue Accoun,,Policy & Governance,NNDR Central Share,02034,Precepts & Collection Fund,Precept,deficit collection fund,30/11/2020,0150096,"-2,230.00",Revenue,Ministry of Housing Communities & Local Government,16280,,
Chorley Borough Council,http://statistics.data.gov.uk/id/local-authority/30UE,Collection Fund Revenue Accoun,,Policy & Governance,Transitional Protection,02033,Precepts & Collection Fund,Precept,trans protn contributions,30/11/2020,0150098,"6,052.00",Revenue,Ministry of Housing Communities & Local Government,16280,,
Chorley Borough Council,http://statistics.data.gov.uk/id/local-authority/30UE,Collection Fund Revenue Accoun,,Policy & Governance,NNDR Central Share,02034,Precepts & Collection Fund,Precept,central share br,30/11/2020,0150098,"1,540,965.00",Revenue,Ministry of Housing Communities & Local Government,16280,,
Chorley Borough Council,http://statistics.data.gov.uk/id/local-authority/30UE,Collection Fund Revenue Accoun,,Policy & Governance,NNDR Central Share,02034,Precepts & Collection Fund,Precept,deficit collection fund,30/11/2020,0150098,"-2,229.00",Revenue,Ministry of Housing Communities & Local Government,16280,,
Chorley Borough Council,http://statistics.data.gov.uk/id/local-authority/30UE,Capital,Capital,Early Intervention,Grants,03002,Capital Expenditure,Capital,ADDRESS REDACTED,18/11/2020,0150097,"5,318.47",Capital,Mint Northwest Ltd,65607,,
Chorley Borough Council,http://statistics.data.gov.uk/id/local-authority/30UE,Capital,Capital,Early Intervention,Grants,03002,Capital Expenditure,Capital,ADDRESS REDACTED,04/11/2020,0150298,"4,992.36",Capital,Mint Northwest Ltd,65607,,
Chorley Borough Council,http://statistics.data.gov.uk/id/local-authority/30UE,Capital,Capital,Early Intervention,Grants,03002,Capital Expenditure,Capital,ADDRESS REDACTED,18/11/2020,0150411,"6,955.86",Capital,Mint Northwest Ltd,65607,,
Chorley Borough Council,http://statistics.data.gov.uk/id/local-authority/30UE,Capital,Capital,Early Intervention,Grants,03002,Capital Expenditure,Capital,ADDRESS REDACTED,18/11/2020,0150412,"4,368.88",Capital,Mint Northwest Ltd,65607,,
Chorley Borough Council,http://statistics.data.gov.uk/id/local-authority/30UE,Capital,Capital,Early Intervention,Grants,03002,Capital Expenditure,Capital,ADDRESS REDACTED,18/11/2020,0150413,"5,039.29",Capital,Mint Northwest Ltd,65607,,
Chorley Borough Council,http://statistics.data.gov.uk/id/local-authority/30UE,Capital,Capital,Early Intervention,Grants,03002,Capital Expenditure,Capital,ADDRESS REDACTED,13/11/2020,0150559,"5,288.95",Capital,Mint Northwest Ltd,65607,,
Chorley Borough Council,http://statistics.data.gov.uk/id/local-authority/30UE,Planning Policy,1092,Commercial Services,Legal Fees,40171,Miscellaneous Expenses,5034,Counsel`s Advice in the matter of Land at Wigan Lane Chorley,25/11/2020,0149474,"2,750.00",Revenue,Miss Rebecca Cattermole,78532,,
Chorley Borough Council,http://statistics.data.gov.uk/id/local-authority/30UE,Private Sector HSG Renewal,1073,Early Intervention,External Contractor,40198,Miscellaneous Expenses,5034,Ref 3841,27/11/2020,0150558,82.50,Revenue,Mobility Care Services,70841,,
Chorley Borough Council,http://statistics.data.gov.uk/id/local-authority/30UE,Private Sector HSG Renewal,1073,Early Intervention,External Contractor,40198,Miscellaneous Expenses,5034,Ref 3851,27/11/2020,0150558,49.50,Revenue,Mobility Care Services,70841,,
Chorley Borough Council,http://statistics.data.gov.uk/id/local-authority/30UE,Private Sector HSG Renewal,1073,Early Intervention,External Contractor,40198,Miscellaneous Expenses,5034,Ref 3856,27/11/2020,0150558,49.50,Revenue,Mobility Care Services,70841,,
Chorley Borough Council,http://statistics.data.gov.uk/id/local-authority/30UE,Private Sector HSG Renewal,1073,Early Intervention,External Contractor,40198,Miscellaneous Expenses,5034,Ref 3858,27/11/2020,0150558,256.00,Revenue,Mobility Care Services,70841,,
Chorley Borough Council,http://statistics.data.gov.uk/id/local-authority/30UE,Private Sector HSG Renewal,1073,Early Intervention,External Contractor,40198,Miscellaneous Expenses,5034,Ref 3867,27/11/2020,0150558,128.00,Revenue,Mobility Care Services,70841,,
Chorley Borough Council,http://statistics.data.gov.uk/id/local-authority/30UE,Private Sector HSG Renewal,1073,Early Intervention,External Contractor,40198,Miscellaneous Expenses,5034,Ref 3868,27/11/2020,0150558,115.50,Revenue,Mobility Care Services,70841,,
Chorley Borough Council,http://statistics.data.gov.uk/id/local-authority/30UE,Private Sector HSG Renewal,1073,Early Intervention,External Contractor,40198,Miscellaneous Expenses,5034,Ref 3890,27/11/2020,0150558,111.00,Revenue,Mobility Care Services,70841,,
Chorley Borough Council,http://statistics.data.gov.uk/id/local-authority/30UE,Private Sector HSG Renewal,1073,Early Intervention,External Contractor,40198,Miscellaneous Expenses,5034,Ref 3891,27/11/2020,0150558,128.00,Revenue,Mobility Care Services,70841,,
Chorley Borough Council,http://statistics.data.gov.uk/id/local-authority/30UE,Private Sector HSG Renewal,1073,Early Intervention,External Contractor,40198,Miscellaneous Expenses,5034,Ref 3892,27/11/2020,0150558,111.00,Revenue,Mobility Care Services,70841,,
Chorley Borough Council,http://statistics.data.gov.uk/id/local-authority/30UE,Private Sector HSG Renewal,1073,Early Intervention,External Contractor,40198,Miscellaneous Expenses,5034,Ref 3893,27/11/2020,0150558,60.00,Revenue,Mobility Care Services,70841,,
Chorley Borough Council,http://statistics.data.gov.uk/id/local-authority/30UE,Private Sector HSG Renewal,1073,Early Intervention,External Contractor,40198,Miscellaneous Expenses,5034,Ref 3898,27/11/2020,0150558,180.00,Revenue,Mobility Care Services,70841,,
Chorley Borough Council,http://statistics.data.gov.uk/id/local-authority/30UE,Private Sector HSG Renewal,1073,Early Intervention,External Contractor,40198,Miscellaneous Expenses,5034,Ref 3899,27/11/2020,0150558,65.00,Revenue,Mobility Care Services,70841,,
Chorley Borough Council,http://statistics.data.gov.uk/id/local-authority/30UE,Private Sector HSG Renewal,1073,Early Intervention,External Contractor,40198,Miscellaneous Expenses,5034,Ref 3902,27/11/2020,0150558,66.00,Revenue,Mobility Care Services,70841,,
Chorley Borough Council,http://statistics.data.gov.uk/id/local-authority/30UE,Private Sector HSG Renewal,1073,Early Intervention,External Contractor,40198,Miscellaneous Expenses,5034,Ref 3903,27/11/2020,0150558,66.00,Revenue,Mobility Care Services,70841,,
Chorley Borough Council,http://statistics.data.gov.uk/id/local-authority/30UE,Private Sector HSG Renewal,1073,Early Intervention,External Contractor,40198,Miscellaneous Expenses,5034,Ref 3913,27/11/2020,0150558,367.00,Revenue,Mobility Care Services,70841,,
Chorley Borough Council,http://statistics.data.gov.uk/id/local-authority/30UE,Private Sector HSG Renewal,1073,Early Intervention,External Contractor,40198,Miscellaneous Expenses,5034,Ref 3916,27/11/2020,0150558,70.00,Revenue,Mobility Care Services,70841,,
Chorley Borough Council,http://statistics.data.gov.uk/id/local-authority/30UE,Private Sector HSG Renewal,1073,Early Intervention,External Contractor,40198,Miscellaneous Expenses,5034,Ref 3917,27/11/2020,0150558,33.00,Revenue,Mobility Care Services,70841,,
Chorley Borough Council,http://statistics.data.gov.uk/id/local-authority/30UE,Private Sector HSG Renewal,1073,Early Intervention,External Contractor,40198,Miscellaneous Expenses,5034,Ref 3918,27/11/2020,0150558,66.00,Revenue,Mobility Care Services,70841,,
Chorley Borough Council,http://statistics.data.gov.uk/id/local-authority/30UE,Private Sector HSG Renewal,1073,Early Intervention,External Contractor,40198,Miscellaneous Expenses,5034,Ref 3925,27/11/2020,0150558,350.00,Revenue,Mobility Care Services,70841,,
Chorley Borough Council,http://statistics.data.gov.uk/id/local-authority/30UE,Service Management & Support,1009,Customer & Digital,Refuse Collection,20037,Cleaning and Domestic Supplies,5012,As per Quote number- 2685NWHW And also Removal of asbestos and plasterboard included,25/11/2020,0150477,395.00,Revenue,Neales Waste Management,17583,,
Chorley Borough Council,http://statistics.data.gov.uk/id/local-authority/30UE,Service Management & Support,1009,Customer & Digital,Refuse Collection,20037,Cleaning and Domestic Supplies,5012,As per Quote number- 2685NWHW And also Removal of asbestos and plasterboard included,25/11/2020,0150486,610.00,Revenue,Neales Waste Management,17583,,
Chorley Borough Council,http://statistics.data.gov.uk/id/local-authority/30UE,Business Support,1095,Commercial Services,Security Service,40062,Services,5027,To provide evening Site Security Services at Market Walk Shopping Centre from 5pm until midnight 7 days a week. ,11/11/2020,0150100,526.75,Revenue,New Concept Security NW Ltd T/A New Concept Goup,80488,,
Chorley Borough Council,http://statistics.data.gov.uk/id/local-authority/30UE,Business Support,1095,Commercial Services,Security Service,40062,Services,5027,To provide evening Site Security Services at Market Walk Shopping Centre from 5pm until midnight 7 days a week. ,11/11/2020,0150217,526.75,Revenue,New Concept Security NW Ltd T/A New Concept Goup,80488,,
Chorley Borough Council,http://statistics.data.gov.uk/id/local-authority/30UE,Business Support,1095,Commercial Services,Security Service,40062,Services,5027,To provide evening Site Security Services at Market Walk Shopping Centre from 5pm until midnight 7 days a week. ,20/11/2020,0150365,526.75,Revenue,New Concept Security NW Ltd T/A New Concept Goup,80488,,
Chorley Borough Council,http://statistics.data.gov.uk/id/local-authority/30UE,Business Support,1095,Commercial Services,Security Service,40062,Services,5027,To provide evening Site Security Services at Market Walk Shopping Centre from 5pm until midnight 7 days a week. ,25/11/2020,0150574,526.75,Revenue,New Concept Security NW Ltd T/A New Concept Goup,80488,,
Chorley Borough Council,http://statistics.data.gov.uk/id/local-authority/30UE,Business Support,1095,Commercial Services,Security Service,40062,Services,5027,To provide evening Site Security Services at Market Walk Shopping Centre from 5pm until midnight 7 days a week. ,20/11/2020,0150698,526.75,Revenue,New Concept Security NW Ltd T/A New Concept Goup,80488,,
Chorley Borough Council,http://statistics.data.gov.uk/id/local-authority/30UE,Central Support Services,1009,Commercial Services,Professional Fees,40063,Services,5027,Completion of a GRIP2 Feasibility Study (Buckshaw Parkway),11/11/2020,0150386,"20,000.00",Revenue,Northern Trains Limited,20299,,
Chorley Borough Council,http://statistics.data.gov.uk/id/local-authority/30UE,Homelessness,1075,Commercial Services,Electricity,20013,Energy Costs,5006,1/4/20 30/4/20,11/11/2020,0149279,421.66,Revenue,Npower Commercial Gas,16814,,
Chorley Borough Council,http://statistics.data.gov.uk/id/local-authority/30UE,Homelessness,1075,Commercial Services,Electricity,20013,Energy Costs,5006,1/5/20 to 31/5/20,11/11/2020,0149280,435.95,Revenue,Npower Commercial Gas,16814,,
Chorley Borough Council,http://statistics.data.gov.uk/id/local-authority/30UE,Parking Services,1066,Commercial Services,Electricity,20013,Energy Costs,5006,1/9/20 to 30/9/20,11/11/2020,0150106,432.35,Revenue,Npower Commercial Gas,16814,,
Chorley Borough Council,http://statistics.data.gov.uk/id/local-authority/30UE,Business Support,1095,Commercial Services,Electricity,20013,Energy Costs,5006,1/9/20 to 30/9/20,11/11/2020,0150108,635.75,Revenue,Npower Commercial Gas,16814,,
Chorley Borough Council,http://statistics.data.gov.uk/id/local-authority/30UE,Homelessness,1075,Commercial Services,Electricity,20013,Energy Costs,5006,1/6/20 to 30/6/20,11/11/2020,0150109,421.66,Revenue,Npower Commercial Gas,16814,,
Chorley Borough Council,http://statistics.data.gov.uk/id/local-authority/30UE,Democratic Represent and  Mgnt,1007,Commercial Services,Electricity,20013,Energy Costs,5006,1/9/20 to 30/9/20,11/11/2020,0150116,"1,063.31",Revenue,Npower Commercial Gas,16814,,
Chorley Borough Council,http://statistics.data.gov.uk/id/local-authority/30UE,Homelessness,1075,Commercial Services,Electricity,20013,Energy Costs,5006,1/9/20 to 31/9/20,11/11/2020,0150128,270.49,Revenue,Npower Commercial Gas,16814,,
Chorley Borough Council,http://statistics.data.gov.uk/id/local-authority/30UE,Central Support Services,1009,Commercial Services,Electricity,20013,Energy Costs,5006,1/9/20 to 30/9/20,11/11/2020,0150130,"3,093.22",Revenue,Npower Commercial Gas,16814,,
Chorley Borough Council,http://statistics.data.gov.uk/id/local-authority/30UE,Unapportionable Central OHeads,1009,Commercial Services,Electricity,20013,Energy Costs,5006,1/9/20 to 30/9/20,11/11/2020,0150131,852.93,Revenue,Npower Commercial Gas,16814,,
Chorley Borough Council,http://statistics.data.gov.uk/id/local-authority/30UE,Central Support Services,1009,Commercial Services,Electricity,20013,Energy Costs,5006,1/9/20 to 30/9/20,11/11/2020,0150132,"1,789.13",Revenue,Npower Commercial Gas,16814,,
Chorley Borough Council,http://statistics.data.gov.uk/id/local-authority/30UE,Community Development,1097,Commercial Services,Electricity,20013,Energy Costs,5006,1/9/20 to 30/9/20,11/11/2020,0150134,"3,289.86",Revenue,Npower Commercial Gas,16814,,
Chorley Borough Council,http://statistics.data.gov.uk/id/local-authority/30UE,Central Support Services,1009,Commercial Services,Electricity,20013,Energy Costs,5006,1/7/20 to 30/9/20,11/11/2020,0150137,"1,012.29",Revenue,Npower Commercial Gas,16814,,
Chorley Borough Council,http://statistics.data.gov.uk/id/local-authority/30UE,Open Spaces,1038,Commercial Services,Electricity,20013,Energy Costs,5006,1/8/20 to 31/8/20,11/11/2020,0150140,"1,098.97",Revenue,Npower Commercial Gas,16814,,
Chorley Borough Council,http://statistics.data.gov.uk/id/local-authority/30UE,Parking Services,1066,Commercial Services,Electricity,20013,Energy Costs,5006,1/7/20 to 30/9,11/11/2020,0150146,409.21,Revenue,Npower Commercial Gas,16814,,
Chorley Borough Council,http://statistics.data.gov.uk/id/local-authority/30UE,Business Support,1095,Commercial Services,Electricity,20013,Energy Costs,5006,1/9/20 to 30/9/20,11/11/2020,0150147,369.08,Revenue,Npower Commercial Gas,16814,,
Chorley Borough Council,http://statistics.data.gov.uk/id/local-authority/30UE,Central Support Services,1009,Commercial Services,Electricity,20013,Energy Costs,5006,1/4/20 to 30/6/20,11/11/2020,0150149,"1,001.27",Revenue,Npower Commercial Gas,16814,,
Chorley Borough Council,http://statistics.data.gov.uk/id/local-authority/30UE,Parking Services,1066,Commercial Services,Electricity,20013,Energy Costs,5006,1/8/20 to 30/8/20,11/11/2020,0150155,472.14,Revenue,Npower Commercial Gas,16814,,
Chorley Borough Council,http://statistics.data.gov.uk/id/local-authority/30UE,Business Support,1095,Commercial Services,Electricity,20013,Energy Costs,5006,1/8/20 31/8/20,11/11/2020,0150158,657.68,Revenue,Npower Commercial Gas,16814,,
Chorley Borough Council,http://statistics.data.gov.uk/id/local-authority/30UE,Homelessness,1075,Commercial Services,Electricity,20013,Energy Costs,5006,1/6/20 to 30/6/20,11/11/2020,0150160,279.28,Revenue,Npower Commercial Gas,16814,,
Chorley Borough Council,http://statistics.data.gov.uk/id/local-authority/30UE,Parking Services,1066,Commercial Services,Electricity,20013,Energy Costs,5006,1/4/20 30/6/20,11/11/2020,0150163,404.77,Revenue,Npower Commercial Gas,16814,,
Chorley Borough Council,http://statistics.data.gov.uk/id/local-authority/30UE,Parking Services,1066,Commercial Services,External Contractors,50008,Private Contractors,5042,"off street car park enforcement, cash collection, cash counting and third party bulk cash collections for 01.04.20 - 31.10.20",11/11/2020,0150479,"5,207.42",Revenue,NSL Limited,67253,,
Chorley Borough Council,http://statistics.data.gov.uk/id/local-authority/30UE,Central Support Services,1009,Customer & Digital,Miscellaneous Expenses,40200,Miscellaneous Expenses,5034,"To supply paint, rub down & paint  handrails, bollards & fence at Water St steps",11/11/2020,0149808,320.00,Revenue,Nuchoice Limited,75454,,
Chorley Borough Council,http://statistics.data.gov.uk/id/local-authority/30UE,Service Management & Support,1009,Customer & Digital,Supplies-Grounds Maintenance,40025,"Equipment, Furniture & Materia",5023,5 x Sand and repaint memorial benches 2 x repair memorial benches,04/11/2020,0150218,420.00,Revenue,Nuchoice Limited,75454,,
Chorley Borough Council,http://statistics.data.gov.uk/id/local-authority/30UE,Service Management & Support,1009,Customer & Digital,Supplies-Grounds Maintenance,40025,"Equipment, Furniture & Materia",5023,3 x sand and repaint memorial benches 1 x stainless steel memorial plaque,04/11/2020,0150219,265.00,Revenue,Nuchoice Limited,75454,,
Chorley Borough Council,http://statistics.data.gov.uk/id/local-authority/30UE,Democratic Represent and  Mgnt,1007,Early Intervention,Supplies-Grounds Maintenance,40025,"Equipment, Furniture & Materia",5023,Refurbished wooden slat and metal frame bench for Great Knowley Open Space,11/11/2020,0150297,300.00,Revenue,Nuchoice Limited,75454,,
Chorley Borough Council,http://statistics.data.gov.uk/id/local-authority/30UE,Open Spaces,1038,Early Intervention,Supplies-Grounds Maintenance,40025,"Equipment, Furniture & Materia",5023,Painting to play equipment at Manor Road Play Area.  200 plus cost of materials as per email exchange dated 12/11/2020,25/11/2020,0150758,300.00,Revenue,Nuchoice Limited,75454,,
Chorley Borough Council,http://statistics.data.gov.uk/id/local-authority/30UE,Democratic Represent and  Mgnt,1007,Early Intervention,Grounds Maintenance Contractor,20043,Grounds Maintenance Costs,5013,2 refurbished benches and anchor pins for Astley Park (Nature) Trail,27/11/2020,0150862,530.00,Revenue,Nuchoice Limited,75454,,
Chorley Borough Council,http://statistics.data.gov.uk/id/local-authority/30UE,Central Support Services,1009,Chief Executive,Legal Fees,40171,Miscellaneous Expenses,5034,Professional fees,13/11/2020,0149914,300.00,Revenue,Oriel Chambers - Miss Catherine Ellis,80823,,
Chorley Borough Council,http://statistics.data.gov.uk/id/local-authority/30UE,Recreation & Sport,1037,Early Intervention,Miscellaneous Expenses,40200,Miscellaneous Expenses,5034,All Seasons Gym Equipment Barbell Sets Barbell racks Reebok Studio Sets Yoga mats Mat hanger,11/11/2020,0150224,"4,948.46",Revenue,Origin Fitness,80874,,
Chorley Borough Council,http://statistics.data.gov.uk/id/local-authority/30UE,Corporate Management,1008,Early Intervention,Miscellaneous Expenses,40200,Miscellaneous Expenses,5034,Hotel Fees NAME REDACTED 18.05.20 to 24.05.20 420.00,11/11/2020,0150256,350.00,Revenue,Parr Hall Farm,76175,,
Chorley Borough Council,http://statistics.data.gov.uk/id/local-authority/30UE,Corporate Management,1008,Early Intervention,Miscellaneous Expenses,40200,Miscellaneous Expenses,5034,Hotel Fees NAME REDACTED 03.08.20 to 09.08.20 367.50,11/11/2020,0150257,350.00,Revenue,Parr Hall Farm,76175,,
Chorley Borough Council,http://statistics.data.gov.uk/id/local-authority/30UE,Recreation & Sport,1037,Commercial Services,Miscellaneous Expenses,40200,Miscellaneous Expenses,5034,Ply Blue Cleaning Roll (Centrefeed) 7.37 10 x 6 CP-02411 Total = 73.70,25/11/2020,0149749,73.70,Revenue,Pattersons Holdings (Bristol),77537,,
Chorley Borough Council,http://statistics.data.gov.uk/id/local-authority/30UE,Democratic Represent and  Mgnt,1007,Commercial Services,Miscellaneous Expenses,40200,Miscellaneous Expenses,5034,BLUE TORK S-FOLD HAND TOWEL 1PLY  (4000SHT) 14.27 1 X 4000 AE234,25/11/2020,0149749,11.42,Revenue,Pattersons Holdings (Bristol),77537,,
Chorley Borough Council,http://statistics.data.gov.uk/id/local-authority/30UE,Recreation & Sport,1037,Commercial Services,Miscellaneous Expenses,40200,Miscellaneous Expenses,5034,JANGRO PERFUMED GENERAL PURPOSE FLORAL DISINFECTANT  1.53 8 X 5 LITRE BC017-5 Total: 12.24,25/11/2020,0149749,12.24,Revenue,Pattersons Holdings (Bristol),77537,,
Chorley Borough Council,http://statistics.data.gov.uk/id/local-authority/30UE,Democratic Represent and  Mgnt,1007,Commercial Services,Miscellaneous Expenses,40200,Miscellaneous Expenses,5034,JANGRO ALCOHOL GEL HAND RUB 5 LTR. ALCOHOL BASED SKIN DISINFECTANT.  65.00 4 X 5 LITRE JH-00393 130,25/11/2020,0149749,104.00,Revenue,Pattersons Holdings (Bristol),77537,,
Chorley Borough Council,http://statistics.data.gov.uk/id/local-authority/30UE,Recreation & Sport,1037,Commercial Services,Miscellaneous Expenses,40200,Miscellaneous Expenses,5034,JANGRO REFUSE SACKS 18X29X39 180G HEAVY DUTY BLACK (200) 12.57 PACK OF 200 x 5 CM180 Total  = 62.85,25/11/2020,0149749,62.85,Revenue,Pattersons Holdings (Bristol),77537,,
Chorley Borough Council,http://statistics.data.gov.uk/id/local-authority/30UE,Democratic Represent and  Mgnt,1007,Commercial Services,Miscellaneous Expenses,40200,Miscellaneous Expenses,5034,JANGRO GLASS & MIRROR CLEANER 750ML 1.70 5 X 750 ML BA030-75 Total = 8.50,25/11/2020,0149749,8.50,Revenue,Pattersons Holdings (Bristol),77537,,
Chorley Borough Council,http://statistics.data.gov.uk/id/local-authority/30UE,Democratic Represent and  Mgnt,1007,Commercial Services,Miscellaneous Expenses,40200,Miscellaneous Expenses,5034,"JANGRO GENERAL PURPOSE THICKENED BLEACH FOR SINKS, DRAINS & TOILETS 5 LTR 3 X 5 LITRE BC015-5 ",25/11/2020,0149749,6.99,Revenue,Pattersons Holdings (Bristol),77537,,
Chorley Borough Council,http://statistics.data.gov.uk/id/local-authority/30UE,Recreation & Sport,1037,Commercial Services,Miscellaneous Expenses,40200,Miscellaneous Expenses,5034,"NUMATIC COMMERCIAL NRV200 DRY VACUUM 112.00 	EACH NC-00057",25/11/2020,0149749,112.00,Revenue,Pattersons Holdings (Bristol),77537,,
Chorley Borough Council,http://statistics.data.gov.uk/id/local-authority/30UE,Democratic Represent and  Mgnt,1007,Commercial Services,Miscellaneous Expenses,40200,Miscellaneous Expenses,5034,JANGRO PERFUMED THICKENED TOILET CLEANER  WITH A NEUTRAL PH FOR DAILY ROUTINE CLEANING 5LTR 3.53,25/11/2020,0149749,35.30,Revenue,Pattersons Holdings (Bristol),77537,,
Chorley Borough Council,http://statistics.data.gov.uk/id/local-authority/30UE,Recreation & Sport,1037,Commercial Services,Miscellaneous Expenses,40200,Miscellaneous Expenses,5034,AA300 � Toilet Rolls 2 x 25.93,04/11/2020,0150237,41.49,Revenue,Pattersons Holdings (Bristol),77537,,
Chorley Borough Council,http://statistics.data.gov.uk/id/local-authority/30UE,Democratic Represent and  Mgnt,1007,Commercial Services,Miscellaneous Expenses,40200,Miscellaneous Expenses,5034,AA021 � Toilet Rolls 1 x 30.06,04/11/2020,0150237,24.05,Revenue,Pattersons Holdings (Bristol),77537,,
Chorley Borough Council,http://statistics.data.gov.uk/id/local-authority/30UE,Recreation & Sport,1037,Commercial Services,Miscellaneous Expenses,40200,Miscellaneous Expenses,5034,AA102 � Toilet Rolls 1 x 23.09,04/11/2020,0150237,18.47,Revenue,Pattersons Holdings (Bristol),77537,,
Chorley Borough Council,http://statistics.data.gov.uk/id/local-authority/30UE,Democratic Represent and  Mgnt,1007,Commercial Services,Miscellaneous Expenses,40200,Miscellaneous Expenses,5034,AF113 � Blue roll x 10 10 x 7.77,04/11/2020,0150237,77.70,Revenue,Pattersons Holdings (Bristol),77537,,
Chorley Borough Council,http://statistics.data.gov.uk/id/local-authority/30UE,Recreation & Sport,1037,Commercial Services,Miscellaneous Expenses,40200,Miscellaneous Expenses,5034,BA030-75 X 4 Mirror + Glass Cleaner 4 x 1.70,04/11/2020,0150237,5.44,Revenue,Pattersons Holdings (Bristol),77537,,
Chorley Borough Council,http://statistics.data.gov.uk/id/local-authority/30UE,Democratic Represent and  Mgnt,1007,Commercial Services,Miscellaneous Expenses,40200,Miscellaneous Expenses,5034,JH-00360 X 3 Kitchen cleaner sanitiser 5lt x 2 2 x 6.80,04/11/2020,0150237,13.60,Revenue,Pattersons Holdings (Bristol),77537,,
Chorley Borough Council,http://statistics.data.gov.uk/id/local-authority/30UE,Recreation & Sport,1037,Commercial Services,Miscellaneous Expenses,40200,Miscellaneous Expenses,5034,JH -00018 kitchen sanitiser 750ml x 8 8 x 1.45,04/11/2020,0150237,11.60,Revenue,Pattersons Holdings (Bristol),77537,,
Chorley Borough Council,http://statistics.data.gov.uk/id/local-authority/30UE,Democratic Represent and  Mgnt,1007,Commercial Services,Miscellaneous Expenses,40200,Miscellaneous Expenses,5034,BCO17-5 General purpose  x 6 6 x 1.53,04/11/2020,0150237,9.18,Revenue,Pattersons Holdings (Bristol),77537,,
Chorley Borough Council,http://statistics.data.gov.uk/id/local-authority/30UE,Recreation & Sport,1037,Commercial Services,Miscellaneous Expenses,40200,Miscellaneous Expenses,5034,CM-180 Refuse bags x3 3 x 12.57,04/11/2020,0150237,37.71,Revenue,Pattersons Holdings (Bristol),77537,,
Chorley Borough Council,http://statistics.data.gov.uk/id/local-authority/30UE,Democratic Represent and  Mgnt,1007,Commercial Services,Miscellaneous Expenses,40200,Miscellaneous Expenses,5034,A8-9169W - Toilet brush & holder x 6 6 X 3.10,04/11/2020,0150237,18.60,Revenue,Pattersons Holdings (Bristol),77537,,
Chorley Borough Council,http://statistics.data.gov.uk/id/local-authority/30UE,Recreation & Sport,1037,Commercial Services,Miscellaneous Expenses,40200,Miscellaneous Expenses,5034,HA014 � Mop Heads  12 x blue 12 x 0.63,04/11/2020,0150237,7.56,Revenue,Pattersons Holdings (Bristol),77537,,
Chorley Borough Council,http://statistics.data.gov.uk/id/local-authority/30UE,Democratic Represent and  Mgnt,1007,Commercial Services,Miscellaneous Expenses,40200,Miscellaneous Expenses,5034,"HA014 � Mop Heads  10 x red, 10 x 0.63",04/11/2020,0150237,6.30,Revenue,Pattersons Holdings (Bristol),77537,,
Chorley Borough Council,http://statistics.data.gov.uk/id/local-authority/30UE,Recreation & Sport,1037,Commercial Services,Miscellaneous Expenses,40200,Miscellaneous Expenses,5034,HA014 � Mop Heads  3 x green 3 x 0.63,04/11/2020,0150237,1.89,Revenue,Pattersons Holdings (Bristol),77537,,
Chorley Borough Council,http://statistics.data.gov.uk/id/local-authority/30UE,Democratic Represent and  Mgnt,1007,Commercial Services,Miscellaneous Expenses,40200,Miscellaneous Expenses,5034,"HB075 � Mop & wringer set 15lt �  3 x blue, 1 x green 4 X 6.25",04/11/2020,0150237,23.75,Revenue,Pattersons Holdings (Bristol),77537,,
Chorley Borough Council,http://statistics.data.gov.uk/id/local-authority/30UE,Recreation & Sport,1037,Commercial Services,Miscellaneous Expenses,40200,Miscellaneous Expenses,5034,"HA025 � Aluminium pole  4 x blue, 4 x red 8 x 3.39",04/11/2020,0150237,27.12,Revenue,Pattersons Holdings (Bristol),77537,,
Chorley Borough Council,http://statistics.data.gov.uk/id/local-authority/30UE,Corporate Management,1008,Commercial Services,Cleaning Materials,40019,"Equipment, Furniture & Materia",5023,Centre feed roll 150m Blue 2 ply,04/11/2020,0150241,139.86,Revenue,Pattersons Holdings (Bristol),77537,,
Chorley Borough Council,http://statistics.data.gov.uk/id/local-authority/30UE,Corporate Management,1008,Commercial Services,Cleaning Materials,40019,"Equipment, Furniture & Materia",5023,JANGRO ALCOHOL GEL HAND RUB 5 LTR ALCOHOL BASED SKIN DISINFECTANT. USE AFTER ROUTINE HAND WASHING,04/11/2020,0150241,156.00,Revenue,Pattersons Holdings (Bristol),77537,,
Chorley Borough Council,http://statistics.data.gov.uk/id/local-authority/30UE,Recreation & Sport,1037,Policy & Governance,Miscellaneous Expenses,40200,Miscellaneous Expenses,5034,Paul Heyes Photography sessions for the leisure centres. Photographs to be taken at 3 different leisure centre sites.,11/11/2020,0149906,550.00,Revenue,Paul Heyes Photographer,20909,,
Chorley Borough Council,http://statistics.data.gov.uk/id/local-authority/30UE,Capital,Capital,Commercial Services,Main Contractor,03007,Capital Expenditure,Capital,Initial bat survey of Astley Hall for renovation scheme,25/11/2020,0150755,487.00,Capital,Pennine Ecological (Preston),76868,,
Chorley Borough Council,http://statistics.data.gov.uk/id/local-authority/30UE,Unapportionable Central OHeads,1009,Policy & Governance,HR Approved Occ Health Fees,15201,Indirect Employee Expenses,5002,Occupational Health Charges for August 2020,20/11/2020,0148963,356.00,Revenue,People Asset Management Limited,76487,,
Chorley Borough Council,http://statistics.data.gov.uk/id/local-authority/30UE,Central Support Services,1009,Policy & Governance,HR Approved Occ Health Fees,15201,Indirect Employee Expenses,5002,Occupational Health Charges for September 2020,20/11/2020,0149807,633.50,Revenue,People Asset Management Limited,76487,,
Chorley Borough Council,http://statistics.data.gov.uk/id/local-authority/30UE,Unapportionable Central OHeads,1009,Policy & Governance,HR Approved Occ Health Fees,15201,Indirect Employee Expenses,5002,Occupational Health Charges for October 2020,20/11/2020,0150638,337.00,Revenue,People Asset Management Limited,76487,,
Chorley Borough Council,http://statistics.data.gov.uk/id/local-authority/30UE,Central Support Services,1009,Customer & Digital,Printing,40043,"Printing, Stationery & General",5026,Garden Waste Subscription Permits 2020/21,18/11/2020,0150633,290.40,Revenue,Permiserv Ltd,77202,,
Chorley Borough Council,http://statistics.data.gov.uk/id/local-authority/30UE,Capital,Capital,Commercial Services,Main Contractor,03007,Capital Expenditure,Capital,Mortar analysis  - Astley Hall Renovation Scheme,18/11/2020,0150751,570.00,Capital,Peter Ellis,80930,,
Chorley Borough Council,http://statistics.data.gov.uk/id/local-authority/30UE,Service Management & Support,1009,Customer & Digital,Diesel/Derv,30007,Direct Transport Costs,5016,as per your quotation to supply and delivery 7000L Road diesel @0.87p/L,11/11/2020,0150366,"6,111.75",Revenue,Pilkington Oils,18075,,
Chorley Borough Council,http://statistics.data.gov.uk/id/local-authority/30UE,Development Control,1091,Customer & Digital,Planning Application Fees,60149,Customer & Client Receipts,5064,refund,20/11/2020,0150410,462.00,Revenue,Planning Portal Ltd,77808,,
Chorley Borough Council,http://statistics.data.gov.uk/id/local-authority/30UE,Open Spaces,1038,Early Intervention,Supplies-Grounds Maintenance,40025,"Equipment, Furniture & Materia",5023,Refurbishment of play area at Harvest Drive,25/11/2020,0149355,"27,112.01",Revenue,Playdale Playgrounds Limited,18672,,
Chorley Borough Council,http://statistics.data.gov.uk/id/local-authority/30UE,Open Spaces,1038,Early Intervention,Supplies-Grounds Maintenance,40025,"Equipment, Furniture & Materia",5023,Refurbishment of play area at Orchard Drive,25/11/2020,0149356,"37,212.86",Revenue,Playdale Playgrounds Limited,18672,,
Chorley Borough Council,http://statistics.data.gov.uk/id/local-authority/30UE,Precepts and Collection Fund,Precepts,Policy & Governance,LPA Precept,02010,Precepts & Collection Fund,Precept,PCC CTax precept,30/11/2020,0147961,"800,695.00",Revenue,Police & Crime Commissioner,17438,,
Chorley Borough Council,http://statistics.data.gov.uk/id/local-authority/30UE,Precepts and Collection Fund,Precepts,Policy & Governance,LPA Precept,02010,Precepts & Collection Fund,Precept,PCC conucil tax precept,30/11/2020,0148477,"800,695.00",Revenue,Police & Crime Commissioner,17438,,
Chorley Borough Council,http://statistics.data.gov.uk/id/local-authority/30UE,Precepts and Collection Fund,Precepts,Policy & Governance,LPA Precept,02010,Precepts & Collection Fund,Precept,pcc ctax prece,30/11/2020,0149165,"800,695.00",Revenue,Police & Crime Commissioner,17438,,
Chorley Borough Council,http://statistics.data.gov.uk/id/local-authority/30UE,Precepts and Collection Fund,Precepts,Policy & Governance,LPA Precept,02010,Precepts & Collection Fund,Precept,PCC ctax precepts,30/11/2020,0150816,"800,695.00",Revenue,Police & Crime Commissioner,17438,,
Chorley Borough Council,http://statistics.data.gov.uk/id/local-authority/30UE,Parking Services,1066,Commercial Services,Miscellaneous Expenses,40200,Miscellaneous Expenses,5034,6off - A3 - Aluminium composite with full mounted fluorescent yellow print. Flow plate Signage.,11/11/2020,0150432,262.83,Revenue,Poppy Signs Ltd,21898,,
Chorley Borough Council,http://statistics.data.gov.uk/id/local-authority/30UE,Parking Services,1066,Commercial Services,Miscellaneous Expenses,40200,Miscellaneous Expenses,5034,"quote ref 14569/1 manufacture, supply & install 2 full digital print vinyl overlays for Flat Iron Car Park tariff boards with amends",25/11/2020,0150523,285.83,Revenue,Poppy Signs Ltd,21898,,
Chorley Borough Council,http://statistics.data.gov.uk/id/local-authority/30UE,Corporate Management,1008,Policy & Governance,Miscellaneous Expenses,40200,Miscellaneous Expenses,5034,"60 A2 Correx panels with Hands Face Space COVID-19 safety messaging for town centre, village centre/neighbourhood areas.",25/11/2020,0150545,670.90,Revenue,Poppy Signs Ltd,21898,,
Chorley Borough Council,http://statistics.data.gov.uk/id/local-authority/30UE,Recreation & Sport,1037,Policy & Governance,Miscellaneous Expenses,40200,Miscellaneous Expenses,5034,Active Nation Re brand work Brinscall & Clayton Green Order 14497,20/11/2020,0150710,870.41,Revenue,Poppy Signs Ltd,21898,,
Chorley Borough Council,http://statistics.data.gov.uk/id/local-authority/30UE,Business Support,1095,Commercial Services,Miscellaneous Expenses,40200,Miscellaneous Expenses,5034,External signs for car park and reserved spaces,27/11/2020,0150748,822.58,Revenue,Poppy Signs Ltd,21898,,
Chorley Borough Council,http://statistics.data.gov.uk/id/local-authority/30UE,Business Support,1095,Commercial Services,Miscellaneous Expenses,40200,Miscellaneous Expenses,5034,Pavement Parking Signs x3,27/11/2020,0150749,285.00,Revenue,Poppy Signs Ltd,21898,,
Chorley Borough Council,http://statistics.data.gov.uk/id/local-authority/30UE,Business Support,1095,Commercial Services,Miscellaneous Expenses,40200,Miscellaneous Expenses,5034,x1 smoking sign,27/11/2020,0150749,49.67,Revenue,Poppy Signs Ltd,21898,,
Chorley Borough Council,http://statistics.data.gov.uk/id/local-authority/30UE,Business Support,1095,Commercial Services,Miscellaneous Expenses,40200,Miscellaneous Expenses,5034,Signs outside of lift x2,27/11/2020,0150749,139.87,Revenue,Poppy Signs Ltd,21898,,
Chorley Borough Council,http://statistics.data.gov.uk/id/local-authority/30UE,Business Support,1095,Commercial Services,Miscellaneous Expenses,40200,Miscellaneous Expenses,5034,Sign inside lift,27/11/2020,0150749,39.07,Revenue,Poppy Signs Ltd,21898,,
Chorley Borough Council,http://statistics.data.gov.uk/id/local-authority/30UE,Business Support,1095,Commercial Services,Miscellaneous Expenses,40200,Miscellaneous Expenses,5034,Hanging directional signs,27/11/2020,0150749,224.72,Revenue,Poppy Signs Ltd,21898,,
Chorley Borough Council,http://statistics.data.gov.uk/id/local-authority/30UE,Business Support,1095,Commercial Services,Miscellaneous Expenses,40200,Miscellaneous Expenses,5034,Other direction signs for walls and doors,27/11/2020,0150749,132.31,Revenue,Poppy Signs Ltd,21898,,
Chorley Borough Council,http://statistics.data.gov.uk/id/local-authority/30UE,Business Support,1095,Commercial Services,Miscellaneous Expenses,40200,Miscellaneous Expenses,5034,Vinyl sign and logo above reception,27/11/2020,0150749,393.50,Revenue,Poppy Signs Ltd,21898,,
Chorley Borough Council,http://statistics.data.gov.uk/id/local-authority/30UE,Parking Services,1066,Commercial Services,General Repairs - Reactive,20004,Repairs Maintenance & Alts,5005,"Re: Damaged Panels Cladding Manufacture, Supply and Install - 75mm L-angle capped over the edge of the cladding with hi-vis ",25/11/2020,0150750,517.18,Revenue,Poppy Signs Ltd,21898,,
Chorley Borough Council,http://statistics.data.gov.uk/id/local-authority/30UE,Business Support,1095,Commercial Services,Grants To Other Organisations,40127,Grants and Subscriptions,5031,grant,11/11/2020,0150294,"3,020.37",Revenue,PPC Protect Limited,80977,,
Chorley Borough Council,http://statistics.data.gov.uk/id/local-authority/30UE,Central Support Services,1009,Policy & Governance,Mayors Medals,40029,"Equipment, Furniture & Materia",5023,Repairs to Mayoral chains and silver mace. Supply of appropriate sanitiser/cleaner for precious metals and enamels.,18/11/2020,0150603,"1,360.00",Revenue,Precious Metals Craft & Design Workshop,77902,,
Chorley Borough Council,http://statistics.data.gov.uk/id/local-authority/30UE,Elections,1012,Policy & Governance,Printing,40043,"Printing, Stationery & General",5026,reminder canvass forms,11/11/2020,0150367,"1,320.76",Revenue,Print Image Network,21171,,
Chorley Borough Council,http://statistics.data.gov.uk/id/local-authority/30UE,Elections,1012,Policy & Governance,Printing,40043,"Printing, Stationery & General",5026,2nd ITR`s canvass 2020,18/11/2020,0150708,765.29,Revenue,Print Image Network,21171,,
Chorley Borough Council,http://statistics.data.gov.uk/id/local-authority/30UE,Other Short Term Creditors,,Policy & Governance,General Balances,00100,Balance Sheet,Balance,deds,13/11/2020,0150102,"4,436.50",Revenue,PRUDENTIAL,18178,,
Chorley Borough Council,http://statistics.data.gov.uk/id/local-authority/30UE,Interest Payable on Debt,1020,Policy & Governance,Interest Payable,09009,Interest Payments,5067,interest LN 508381 & 508382,30/11/2020,0147975,"74,306.79",Revenue,Public Works Loans Board,21480,,
Chorley Borough Council,http://statistics.data.gov.uk/id/local-authority/30UE,Interest Payable on Debt,1020,Policy & Governance,Interest Payable,09009,Interest Payments,5067,INTEREST LN 509641,30/11/2020,0148501,"296,669.32",Revenue,Public Works Loans Board,21480,,
Chorley Borough Council,http://statistics.data.gov.uk/id/local-authority/30UE,Interest Payable on Debt,1020,Policy & Governance,Interest Payable,09009,Interest Payments,5067,interest LN 509,30/11/2020,0148502,"18,442.33",Revenue,Public Works Loans Board,21480,,
Chorley Borough Council,http://statistics.data.gov.uk/id/local-authority/30UE,Interest Payable on Debt,1020,Policy & Governance,Interest Payable,09009,Interest Payments,5067,interest LN 509,30/11/2020,0148502,"19,305.00",Revenue,Public Works Loans Board,21480,,
Chorley Borough Council,http://statistics.data.gov.uk/id/local-authority/30UE,Corporate Management,1008,Commercial Services,Miscellaneous Expenses,40200,Miscellaneous Expenses,5034,Training Webinars for the Covid-19 Business Support 4 Webinars at 415 each,11/11/2020,0150430,674.38,Revenue,Purple Performance Ltd,80602,,
Chorley Borough Council,http://statistics.data.gov.uk/id/local-authority/30UE,Corporate Management,1008,Commercial Services,Miscellaneous Expenses,40200,Miscellaneous Expenses,5034,Training Webinars for the Covid-19 Business Support 4 Webinars at 415 each,11/11/2020,0150485,"1,452.50",Revenue,Purple Performance Ltd,80602,,
Chorley Borough Council,http://statistics.data.gov.uk/id/local-authority/30UE,Culture & Heritage,1036,Policy & Governance,Service Fees,40056,Services,5027,To hand-cut additional names onto Astley Park War Memorial. Place names as instructed on the 29/09/2020.,18/11/2020,0150713,"1,500.00",Revenue,Rawcliffe`s Of Chorley Ltd,17993,,
Chorley Borough Council,http://statistics.data.gov.uk/id/local-authority/30UE,Business Support,1095,Commercial Services,Miscellaneous Expenses,40200,Miscellaneous Expenses,5034,"Reduced rate as discussed with NAME REDACTED Option 1 8 Service Inspections for Mice, Rats including Call Outs @ 935.92",11/11/2020,0149780,470.20,Revenue,Rentokil,76639,,
Chorley Borough Council,http://statistics.data.gov.uk/id/local-authority/30UE,Business Support,1095,Commercial Services,Miscellaneous Expenses,40200,Miscellaneous Expenses,5034,As per quote reference: 02230857-0002 (discussed with NAME REDACTED) Supply & install 6 Metal Bait Safes for external ,18/11/2020,0150720,300.00,Revenue,Rentokil,76639,,
Chorley Borough Council,http://statistics.data.gov.uk/id/local-authority/30UE,Unapportionable Central OHeads,1009,Policy & Governance,Disposal Of Records,40055,"Printing, Stationery & General",5026,On site disposal of confidential waste at the Town Hall - Full day rate Date to be confirmed,18/11/2020,0149925,920.00,Revenue,Restore Datashred,16853,,
Chorley Borough Council,http://statistics.data.gov.uk/id/local-authority/30UE,Control Accounts,Control,Policy & Governance,General Balances,00100,Balance Sheet,Balance,aug 2020,30/11/2020,0148158,832.00,Revenue,Reward Gateway (UK) Ltd,66814,,
Chorley Borough Council,http://statistics.data.gov.uk/id/local-authority/30UE,Control Accounts,Control,Policy & Governance,General Balances,00100,Balance Sheet,Balance,ccv vouchers,30/11/2020,0148858,937.00,Revenue,Reward Gateway (UK) Ltd,66814,,
Chorley Borough Council,http://statistics.data.gov.uk/id/local-authority/30UE,Control Accounts,Control,Policy & Governance,General Balances,00100,Balance Sheet,Balance,ccv vouchers,30/11/2020,0149564,937.00,Revenue,Reward Gateway (UK) Ltd,66814,,
Chorley Borough Council,http://statistics.data.gov.uk/id/local-authority/30UE,Control Accounts,Control,Policy & Governance,General Balances,00100,Balance Sheet,Balance,03 nov 2020,30/11/2020,0150483,937.00,Revenue,Reward Gateway (UK) Ltd,66814,,
Chorley Borough Council,http://statistics.data.gov.uk/id/local-authority/30UE,Non Domestic Rates Redistribut,,Policy & Governance,Tariff to Business Rates Pool,49002,Expenditure not in NCOS,,lancs bus rates pool,30/11/2020,0147974,"585,289.00",Revenue,Ribble Valley Borough Council DIRECT DEBIT ONLY,21100,,
Chorley Borough Council,http://statistics.data.gov.uk/id/local-authority/30UE,Non Domestic Rates Redistribut,,Policy & Governance,Tariff to Business Rates Pool,49002,Expenditure not in NCOS,,lancs bus rates pool 2020/21 cbc,30/11/2020,0148901,"520,257.00",Revenue,Ribble Valley Borough Council DIRECT DEBIT ONLY,21100,,
Chorley Borough Council,http://statistics.data.gov.uk/id/local-authority/30UE,Non Domestic Rates Redistribut,,Policy & Governance,Tariff to Business Rates Pool,49002,Expenditure not in NCOS,,lancs bus rates pool,30/11/2020,0149958,"520,258.00",Revenue,Ribble Valley Borough Council DIRECT DEBIT ONLY,21100,,
Chorley Borough Council,http://statistics.data.gov.uk/id/local-authority/30UE,Non Domestic Rates Redistribut,,Policy & Governance,Tariff to Business Rates Pool,49002,Expenditure not in NCOS,,lancs bus rates pool,30/11/2020,0149959,"520,257.00",Revenue,Ribble Valley Borough Council DIRECT DEBIT ONLY,21100,,
Chorley Borough Council,http://statistics.data.gov.uk/id/local-authority/30UE,Central Support Services,1009,Commercial Services,Consultants` Fees,40077,Services,5027,Project Management & Quantity Surveying Services on Tatton Regeneration scheme - Contractor appointment to RIBA Stage 7,11/11/2020,0150473,"10,102.50",Revenue,Rider Levett Bucknall,67527,,
Chorley Borough Council,http://statistics.data.gov.uk/id/local-authority/30UE,Service Management & Support,1009,Customer & Digital,Supplies-Grounds Maintenance,40025,"Equipment, Furniture & Materia",5023,20 x Impact Line Marking Paint 10L @26.00each,04/11/2020,0150248,520.00,Revenue,Rigby Taylor Ltd,16299,,
Chorley Borough Council,http://statistics.data.gov.uk/id/local-authority/30UE,Service Management & Support,1009,Customer & Digital,Supplies-Grounds Maintenance,40025,"Equipment, Furniture & Materia",5023,12 x Trustee Amenity 5L @27.00each,04/11/2020,0150248,324.00,Revenue,Rigby Taylor Ltd,16299,,
Chorley Borough Council,http://statistics.data.gov.uk/id/local-authority/30UE,Capital,Capital,Policy & Governance,Other Contractor,03012,Capital Expenditure,Capital,MAXI016x24; MAXI017x24; ZOE014x24; ANG015x18; ANG017x18; ANG019x18; MAXI019x24; ANG032x18; JQY001x36,11/11/2020,0150355,"2,346.30",Capital,RJB Stone LTD t/a Sass & Belle,80514,,
Chorley Borough Council,http://statistics.data.gov.uk/id/local-authority/30UE,Central Support Services,1009,Commercial Services,Professional Fees,40063,Services,5027,"Tatton Development Contractor Pre Construction Pre Construction Fee 44,698.50 PSSC Fees 192,105.50",27/11/2020,0150891,"108,951.23",Revenue,Robertson CE Limited,81176,,
Chorley Borough Council,http://statistics.data.gov.uk/id/local-authority/30UE,Capital,Capital,Early Intervention,Consultants Fees,03025,Capital Expenditure,Capital,Westway Playing Fields - Stage 5 (construction),11/11/2020,0150255,818.68,Capital,Robinson Low Francis LLP,77155,,
Chorley Borough Council,http://statistics.data.gov.uk/id/local-authority/30UE,Democratic Represent and  Mgnt,1007,Policy & Governance,Grants To Other Organisations,40127,Grants and Subscriptions,5031,grant,13/11/2020,0150431,300.00,Revenue,Royal British Legion Chorley Branch,76099,,
Chorley Borough Council,http://statistics.data.gov.uk/id/local-authority/30UE,Elections,1012,Policy & Governance,Postages,40082,Communication and Computing,5028,business reply from 1 April 2020  - RRHA-KZGB-CAXA,13/11/2020,0150185,"1,036.66",Revenue,Royal Mail Group Plc,17522,,
Chorley Borough Council,http://statistics.data.gov.uk/id/local-authority/30UE,Business Support,1095,Commercial Services,Miscellaneous Expenses,40200,Miscellaneous Expenses,5034,Additional works - BREEAM / HEA 04 Thermal Comfort  report,11/11/2020,0150397,600.00,Revenue,RPS Consulting Services Ltd,20128,,
Chorley Borough Council,http://statistics.data.gov.uk/id/local-authority/30UE,Planning Policy,1092,Policy & Governance,Professional Fees,40063,Services,5027,Advice on potential challenge of the Pear Tree Lane appeal decision,18/11/2020,0149760,"1,800.00",Revenue,Ruth Stockley,20070,,
Chorley Borough Council,http://statistics.data.gov.uk/id/local-authority/30UE,Central Support Services,1009,Customer & Digital,Miscellaneous Expenses,40200,Miscellaneous Expenses,5034,"1.Improvements to Bloomfield Road surface � Levelling off of existing surface, spreading plainings and rolling the surface ",25/11/2020,0150649,"1,470.00",Revenue,Scambler Plant Hire Ltd,16710,,
Chorley Borough Council,http://statistics.data.gov.uk/id/local-authority/30UE,Service Management & Support,1009,Commercial Services,Tools & Equipment - Maintenance,40005,"Equipment, Furniture & Materia",5023,Service of air compressor at Bengal St in the workshop,20/11/2020,0150692,358.00,Revenue,Scorpion Compressed Air Ltd,81120,,
Chorley Borough Council,http://statistics.data.gov.uk/id/local-authority/30UE,Capital,Capital,Commercial Services,Main Contractor,03007,Capital Expenditure,Capital,Alker Lane Stage 3 fees,20/11/2020,0149429,"2,500.00",Capital,Scott Hughes Design Limited,80630,,
Chorley Borough Council,http://statistics.data.gov.uk/id/local-authority/30UE,Central Support Services,1009,Commercial Services,Professional Fees,40063,Services,5027,Civil and Structural Design Services,20/11/2020,0149674,"2,750.00",Revenue,Scott Hughes Design Limited,80630,,
Chorley Borough Council,http://statistics.data.gov.uk/id/local-authority/30UE,Business Support,1095,Commercial Services,External Contractor,40198,Miscellaneous Expenses,5034,In respect of concierge services for PRIMROSE GARDENS for period  01/04/2020 to 31/03/2020,18/11/2020,0150398,"6,699.03",Revenue,Sector Security Services,19269,,
Chorley Borough Council,http://statistics.data.gov.uk/id/local-authority/30UE,Homelessness,1075,Commercial Services,External Contractor,40198,Miscellaneous Expenses,5034,In respect of Concierge services for the period 01/04/2020 - 31/03/2021,18/11/2020,0150399,"6,782.91",Revenue,Sector Security Services,19269,,
Chorley Borough Council,http://statistics.data.gov.uk/id/local-authority/30UE,Recreation & Sport,1037,Commercial Services,Miscellaneous Expenses,40200,Miscellaneous Expenses,5034,Horizontal Baby Changing Station  x 4  (JAN132) 185.90 NET x 4 = 743.60,11/11/2020,0150243,743.60,Revenue,Seton Ltd,16674,,
Chorley Borough Council,http://statistics.data.gov.uk/id/local-authority/30UE,Service Management & Support,1009,Customer & Digital,Vehicles and Plant Operating Lease,30029,Contrct Hire & Operating Lease,5018,Lease of PO15 HRL Ransome Highway for 15 mths from 12 Aug 20,11/11/2020,0149672,"3,950.00",Revenue,SG EQUIPMENT FINANCE LTD,18156,,
Chorley Borough Council,http://statistics.data.gov.uk/id/local-authority/30UE,Service Management & Support,1009,Customer & Digital,Vehicles and Plant Operating Lease,30029,Contrct Hire & Operating Lease,5018,Lease of PO15 HZB Kubota Utility for 15 mths from 12 Aug 20,11/11/2020,0149672,"1,750.00",Revenue,SG EQUIPMENT FINANCE LTD,18156,,
Chorley Borough Council,http://statistics.data.gov.uk/id/local-authority/30UE,Service Management & Support,1009,Customer & Digital,Vehicles and Plant Operating Lease,30029,Contrct Hire & Operating Lease,5018,Lease of John Deere Ride On Mower for 15 mths from 12 Aug 20,11/11/2020,0149761,"1,810.00",Revenue,SG EQUIPMENT FINANCE LTD,18156,,
Chorley Borough Council,http://statistics.data.gov.uk/id/local-authority/30UE,Planning Policy,1092,Policy & Governance,Professional Fees,40063,Services,5027,R NAME REDACTED v Chorley Borough Council and Others - Reviewing Supp. Detailed Grounds & Witness Statement 26.08.20,18/11/2020,0149762,300.00,Revenue,Simon Pickles,77744,,
Chorley Borough Council,http://statistics.data.gov.uk/id/local-authority/30UE,Planning Policy,1092,Policy & Governance,Professional Fees,40063,Services,5027,Advice on the revised standard methodology following the Pear Tree Lane Appeal Decision,18/11/2020,0149763,"3,100.00",Revenue,Simon Pickles,77744,,
Chorley Borough Council,http://statistics.data.gov.uk/id/local-authority/30UE,Central Support Services,1009,Early Intervention,Miscellaneous Expenses,40200,Miscellaneous Expenses,5034,Mediation for - COM 2807: ADDRESS REDACTED,25/11/2020,0150648,650.00,Revenue,Smile Mediation Ltd,62536,,
Chorley Borough Council,http://statistics.data.gov.uk/id/local-authority/30UE,Central Support Services,1009,Commercial Services,Consultants` Fees,40077,Services,5027,gas meter,20/11/2020,0149622,315.14,Revenue,SMS Connections Ltd,80917,,
Chorley Borough Council,http://statistics.data.gov.uk/id/local-authority/30UE,Central Support Services,1009,Customer & Digital,IT Software - Annual Licences,40101,Communication and Computing,5028,AutoCAD LT 2021 Commercial New Single-user ELD Annual Subscription,11/11/2020,0148903,"2,960.00",Revenue,Softcat Ltd,69996,,
Chorley Borough Council,http://statistics.data.gov.uk/id/local-authority/30UE,Central Support Services,1009,Commercial Services,Window Cleaning,20034,Cleaning and Domestic Supplies,5012,window cleaning at the Town Hall,04/11/2020,0149039,378.00,Revenue,Sparkle Window Cleaning (Michael Jennings),77989,,
Chorley Borough Council,http://statistics.data.gov.uk/id/local-authority/30UE,Unapportionable Central OHeads,1009,Commercial Services,Window Cleaning,20034,Cleaning and Domestic Supplies,5012,window cleaning at union st,04/11/2020,0149039,296.00,Revenue,Sparkle Window Cleaning (Michael Jennings),77989,,
Chorley Borough Council,http://statistics.data.gov.uk/id/local-authority/30UE,Central Support Services,1009,Commercial Services,Consultants` Fees,40077,Services,5027,concrete condition survey at Brinscall baths,18/11/2020,0150627,"3,960.00",Revenue,Specialist UK Restorations Ltd,80825,,
Chorley Borough Council,http://statistics.data.gov.uk/id/local-authority/30UE,Recreation & Sport,1037,Early Intervention,Consultants` Fees,40077,Services,5027,Leisure Procurement,11/11/2020,0149556,"1,500.00",Revenue,Sport Leisure and Culture Consultancy,77651,,
Chorley Borough Council,http://statistics.data.gov.uk/id/local-authority/30UE,Control Accounts,Control,Policy & Governance,General Balances,00100,Balance Sheet,Balance,Deductions from payroll,25/11/2020,0150826,438.34,Revenue,St Catherines Hospice Promotions,72375,,
Chorley Borough Council,http://statistics.data.gov.uk/id/local-authority/30UE,Central Support Services,1009,Early Intervention,Miscellaneous Expenses,40200,Miscellaneous Expenses,5034,neighbourhood working,11/11/2020,0149957,500.00,Revenue,St Laurence`s PCC,17814,,
Chorley Borough Council,http://statistics.data.gov.uk/id/local-authority/30UE,Capital,Capital,Early Intervention,Consultants Fees,03025,Capital Expenditure,Capital,Westway Pavilion Contract - Implementation Stage from Contract Let through to the `end of defects`.  Based on the remaining ,25/11/2020,0150429,"5,000.00",Capital,Steve Wells Associates Ltd,77157,,
Chorley Borough Council,http://statistics.data.gov.uk/id/local-authority/30UE,Capital,Capital,Early Intervention,Grants,03002,Capital Expenditure,Capital,ADDRESS REDACTED,11/11/2020,0149956,"2,428.50",Capital,Stringfellow Bldg Cntrctrs Ltd,17893,,
Chorley Borough Council,http://statistics.data.gov.uk/id/local-authority/30UE,Capital,Capital,Early Intervention,Grants,03002,Capital Expenditure,Capital,20/00086/CAG NAME REDACTED,04/11/2020,0150170,"4,866.50",Capital,Stringfellow Bldg Cntrctrs Ltd,17893,,
Chorley Borough Council,http://statistics.data.gov.uk/id/local-authority/30UE,Capital,Capital,Early Intervention,Grants,03002,Capital Expenditure,Capital,ADDRESS REDACTED,13/11/2020,0150556,"3,863.50",Capital,Stringfellow Bldg Cntrctrs Ltd,17893,,
Chorley Borough Council,http://statistics.data.gov.uk/id/local-authority/30UE,Service Management Support,1009,Commercial Services,Asset Maintenance Fund,20012,Repairs Maintenance & Alts,5005,Scaffold Hire - 13wks for Astley,18/11/2020,0150747,879.45,Revenue,Stringfellow Bldg Cntrctrs Ltd,17893,,
Chorley Borough Council,http://statistics.data.gov.uk/id/local-authority/30UE,Business Support,1095,Commercial Services,Refuse Collection,20037,Cleaning and Domestic Supplies,5012,CANCELLED BY CREDIT,11/11/2020,0149568,"8,110.04",Revenue,SUEZ R&R UK LTD,17615,,
Chorley Borough Council,http://statistics.data.gov.uk/id/local-authority/30UE,Business Support,1095,Commercial Services,Refuse Collection,20037,Cleaning and Domestic Supplies,5012,cancelled by credit,11/11/2020,0150402,819.20,Revenue,SUEZ R&R UK LTD,17615,,
Chorley Borough Council,http://statistics.data.gov.uk/id/local-authority/30UE,Unapportionable Central OHeads,1009,Customer & Digital,Refuse Collection,20037,Cleaning and Domestic Supplies,5012,Trade waste collection & disposal from (1 Apr 20 - 31 Mar 21)   Civic Offices Union Street General Waste 2 X 1100L bin 3/week,27/11/2020,0150575,256.56,Revenue,SUEZ R&R UK LTD,17615,,
Chorley Borough Council,http://statistics.data.gov.uk/id/local-authority/30UE,Central Support Services,1009,Customer & Digital,Refuse Collection,20037,Cleaning and Domestic Supplies,5012,Trade waste collection & disposal from (1/4/20 - 31/4/2021)   Civic Offices Union Street RECYCLING 1 X 1100L bin 1/week,27/11/2020,0150575,35.19,Revenue,SUEZ R&R UK LTD,17615,,
Chorley Borough Council,http://statistics.data.gov.uk/id/local-authority/30UE,Unapportionable Central OHeads,1009,Customer & Digital,Refuse Collection,20037,Cleaning and Domestic Supplies,5012,Trade waste collection & disposal from (1/4/20 - 31/4/2021)  Town Hall GENERAL WASTE 1 X 1100L 3/week,27/11/2020,0150575,128.28,Revenue,SUEZ R&R UK LTD,17615,,
Chorley Borough Council,http://statistics.data.gov.uk/id/local-authority/30UE,Central Support Services,1009,Customer & Digital,Refuse Collection,20037,Cleaning and Domestic Supplies,5012,Trade waste collection & disposal from (1/4/20 - 31/4/2021) Town Hall RECYCLING 1 X 1100L 3/Week,27/11/2020,0150575,35.19,Revenue,SUEZ R&R UK LTD,17615,,
Chorley Borough Council,http://statistics.data.gov.uk/id/local-authority/30UE,Business Support,1095,Customer & Digital,Refuse Collection,20037,Cleaning and Domestic Supplies,5012,Trade waste collection & disposal from (1/4/20 - 31/4/2021) Strawberry fields Digital Park GENERAL WASTE 3 X 1100L 1/week,27/11/2020,0150575,128.28,Revenue,SUEZ R&R UK LTD,17615,,
Chorley Borough Council,http://statistics.data.gov.uk/id/local-authority/30UE,Business Support,1095,Customer & Digital,Refuse Collection,20037,Cleaning and Domestic Supplies,5012,Trade waste collection & disposal from (1/4/20 - 31/4/2021) Strawberry Fields digital park RECYCLING 3 X 1100L 1/week,27/11/2020,0150575,105.57,Revenue,SUEZ R&R UK LTD,17615,,
Chorley Borough Council,http://statistics.data.gov.uk/id/local-authority/30UE,Community Development,1097,Customer & Digital,Refuse Collection,20037,Cleaning and Domestic Supplies,5012,Trade waste collection & disposal from (1/4/20 - 31/4/2021) MP`s Office (35-39) Market Street 1  1100L,27/11/2020,0150575,42.76,Revenue,SUEZ R&R UK LTD,17615,,
Chorley Borough Council,http://statistics.data.gov.uk/id/local-authority/30UE,Democratic Represent and  Mgnt,1007,Customer & Digital,Refuse Collection,20037,Cleaning and Domestic Supplies,5012,Trade waste collection & disposal from (1/4/20 - 31/4/2021) Tatton CC Silverdale Road 1x 100L bin 1/fortnight,27/11/2020,0150575,21.33,Revenue,SUEZ R&R UK LTD,17615,,
Chorley Borough Council,http://statistics.data.gov.uk/id/local-authority/30UE,Democratic Represent and  Mgnt,1007,Customer & Digital,Refuse Collection,20037,Cleaning and Domestic Supplies,5012,Trade waste collection & disposal from (1/4/20 - 31/4/2021) Eaves Green CC  1  X 360L bin 1/week,27/11/2020,0150575,29.49,Revenue,SUEZ R&R UK LTD,17615,,
Chorley Borough Council,http://statistics.data.gov.uk/id/local-authority/30UE,Democratic Represent and  Mgnt,1007,Customer & Digital,Refuse Collection,20037,Cleaning and Domestic Supplies,5012,Trade waste collection & disposal from (1/4/20 - 31/4/2021) Astley Hall 1 X 1100L bin 1/week,27/11/2020,0150575,42.76,Revenue,SUEZ R&R UK LTD,17615,,
Chorley Borough Council,http://statistics.data.gov.uk/id/local-authority/30UE,Recreation & Sport,1037,Customer & Digital,Miscellaneous Expenses,40200,Miscellaneous Expenses,5034,Trade waste collection & disposal from (1/4/20 - 31/4/2021) Lancaster Way CC at Buckshaw Village 1 X 360L bin 1/week,27/11/2020,0150575,29.49,Revenue,SUEZ R&R UK LTD,17615,,
Chorley Borough Council,http://statistics.data.gov.uk/id/local-authority/30UE,Recreation & Sport,1037,Customer & Digital,Miscellaneous Expenses,40200,Miscellaneous Expenses,5034,Trade waste collection & disposal from (1/4/20 - 31/4/2021) Buttermere Green CC 1 X 360L BIN 1/week,27/11/2020,0150575,29.49,Revenue,SUEZ R&R UK LTD,17615,,
Chorley Borough Council,http://statistics.data.gov.uk/id/local-authority/30UE,Democratic Represent and  Mgnt,1007,Customer & Digital,Refuse Collection,20037,Cleaning and Domestic Supplies,5012,Trade waste collection & disposal from (1/4/20 - 31/4/2021) Clayton Brook Village Hall 6 X black sack 1/week,27/11/2020,0150575,22.71,Revenue,SUEZ R&R UK LTD,17615,,
Chorley Borough Council,http://statistics.data.gov.uk/id/local-authority/30UE,Recreation & Sport,1037,Customer & Digital,Refuse Collection,20037,Cleaning and Domestic Supplies,5012,Trade waste collection & disposal from (1/4/20 - 31/4/2021) Astley Village CC 1 x 360L bin 1/week,27/11/2020,0150575,29.49,Revenue,SUEZ R&R UK LTD,17615,,
Chorley Borough Council,http://statistics.data.gov.uk/id/local-authority/30UE,Business Support,1095,Customer & Digital,Refuse Collection,20037,Cleaning and Domestic Supplies,5012,New Market Street,27/11/2020,0150575,105.57,Revenue,SUEZ R&R UK LTD,17615,,
Chorley Borough Council,http://statistics.data.gov.uk/id/local-authority/30UE,Business Support,1095,Commercial Services,Refuse Collection,20037,Cleaning and Domestic Supplies,5012,"Calico Lounge - General Waste, 3 x 1100L bins, (65kg weight allowance and 14p per kilo thereafter)  9.83 +VAT per bin per lift",27/11/2020,0150576,128.28,Revenue,SUEZ R&R UK LTD,17615,,
Chorley Borough Council,http://statistics.data.gov.uk/id/local-authority/30UE,Business Support,1095,Commercial Services,Refuse Collection,20037,Cleaning and Domestic Supplies,5012,"Calico Lounge - Food Waste, 2 x 240L bins, 9.43 +VAT per bin per lift x 52 lifts � Total 980.72",27/11/2020,0150576,65.25,Revenue,SUEZ R&R UK LTD,17615,,
Chorley Borough Council,http://statistics.data.gov.uk/id/local-authority/30UE,Business Support,1095,Commercial Services,Refuse Collection,20037,Cleaning and Domestic Supplies,5012,"Calico Lounge - Glass Waste, 4 x 240L bins, 3.84 +VAT per bin per lift x 52 weeks � Total 798.72",27/11/2020,0150576,143.19,Revenue,SUEZ R&R UK LTD,17615,,
Chorley Borough Council,http://statistics.data.gov.uk/id/local-authority/30UE,Business Support,1095,Commercial Services,Refuse Collection,20037,Cleaning and Domestic Supplies,5012,Any Excess Weight Charges from Market Walk Extension and Calico Lounge bins 5000,27/11/2020,0150576,117.32,Revenue,SUEZ R&R UK LTD,17615,,
Chorley Borough Council,http://statistics.data.gov.uk/id/local-authority/30UE,Business Support,1095,Commercial Services,Refuse Collection,20037,Cleaning and Domestic Supplies,5012,"Market Walk Extension  - General Waste, 8 x 1100L bins, (65kg weight allowance & 14p per kilo thereafter)  9.83 +VAT per bin ",18/11/2020,0150579,170.65,Revenue,SUEZ R&R UK LTD,17615,,
Chorley Borough Council,http://statistics.data.gov.uk/id/local-authority/30UE,Business Support,1095,Commercial Services,Refuse Collection,20037,Cleaning and Domestic Supplies,5012,"Market Walk Extension - Mixed Recycling,  8 x 1100L bins, . (35kg weight allowance and 10p per kilo thereafter) 8.09 +VAT ",18/11/2020,0150579,140.44,Revenue,SUEZ R&R UK LTD,17615,,
Chorley Borough Council,http://statistics.data.gov.uk/id/local-authority/30UE,Business Support,1095,Commercial Services,Refuse Collection,20037,Cleaning and Domestic Supplies,5012,2020/21 - Market Walk Yard 2 - 8 yard FEL for general waste @49.27 per lift - Total 2562.04,18/11/2020,0150583,154.47,Revenue,SUEZ R&R UK LTD,17615,,
Chorley Borough Council,http://statistics.data.gov.uk/id/local-authority/30UE,Business Support,1095,Commercial Services,Refuse Collection,20037,Cleaning and Domestic Supplies,5012,2020/21 - Market Walk Yard 3 - 2 x 8 yard FEL general waste @49.27 per lift (per FEL) - Total 5124.08,18/11/2020,0150583,221.24,Revenue,SUEZ R&R UK LTD,17615,,
Chorley Borough Council,http://statistics.data.gov.uk/id/local-authority/30UE,Business Support,1095,Commercial Services,Refuse Collection,20037,Cleaning and Domestic Supplies,5012,"2020/21- To provide a bakkie cage for cardboard in Service Yard 3 @ Market Walk Shopping Centre, Chorley. Apr 20�Mar 21",27/11/2020,0150584,12.00,Revenue,SUEZ R&R UK LTD,17615,,
Chorley Borough Council,http://statistics.data.gov.uk/id/local-authority/30UE,Business Support,1095,Commercial Services,Refuse Collection,20037,Cleaning and Domestic Supplies,5012,2020/21 - Market Walk Yard 1 - General Waste compacted - 35 yard roll on/roll off skip from compactor 88.1 per exchange,27/11/2020,0150584,88.10,Revenue,SUEZ R&R UK LTD,17615,,
Chorley Borough Council,http://statistics.data.gov.uk/id/local-authority/30UE,Business Support,1095,Commercial Services,Refuse Collection,20037,Cleaning and Domestic Supplies,5012,2020/21 - Market Walk Yard 1 - General Waste compacted - 35 yard roll on/roll off skip from compactor disposal costs per tonne,27/11/2020,0150584,792.18,Revenue,SUEZ R&R UK LTD,17615,,
Chorley Borough Council,http://statistics.data.gov.uk/id/local-authority/30UE,Business Support,1095,Commercial Services,Refuse Collection,20037,Cleaning and Domestic Supplies,5012,2020/21 - Market Walk Yard 1 - 35 yard roll on/roll off cardboard skip @25 rental per month - no haulage or disposal costs,27/11/2020,0150584,25.00,Revenue,SUEZ R&R UK LTD,17615,,
Chorley Borough Council,http://statistics.data.gov.uk/id/local-authority/30UE,Business Support,1095,Commercial Services,Refuse Collection,20037,Cleaning and Domestic Supplies,5012,2020/21 - Market Walk Yard 2 - 35 yard roll on/roll off cardboard skip @25 rental per month - no haulage or disposal costs,27/11/2020,0150584,25.00,Revenue,SUEZ R&R UK LTD,17615,,
Chorley Borough Council,http://statistics.data.gov.uk/id/local-authority/30UE,Business Support,1095,Commercial Services,Refuse Collection,20037,Cleaning and Domestic Supplies,5012,2020/21 - Market Walk Yard 3 - 35 yard roll on/roll off cardboard skip @25 rental per month - no haulage or disposal costs,27/11/2020,0150584,25.00,Revenue,SUEZ R&R UK LTD,17615,,
Chorley Borough Council,http://statistics.data.gov.uk/id/local-authority/30UE,Business Support,1095,Commercial Services,Refuse Collection,20037,Cleaning and Domestic Supplies,5012,2020/21 - Market Walk Yard 3 - 35 yard roll on/roll off plastic skip @25 rental per month - no haulage or disposal costs,27/11/2020,0150584,25.00,Revenue,SUEZ R&R UK LTD,17615,,
Chorley Borough Council,http://statistics.data.gov.uk/id/local-authority/30UE,Business Support,1095,Commercial Services,Refuse Collection,20037,Cleaning and Domestic Supplies,5012,2020/21 - Market Walk Yard 3 - 35 yard roll on/roll off plastic skip @25 rental per month - no haulage or disposal costs,27/11/2020,0150584,"1,903.53",Revenue,SUEZ R&R UK LTD,17615,,
Chorley Borough Council,http://statistics.data.gov.uk/id/local-authority/30UE,Business Support,1095,Commercial Services,Refuse Collection,20037,Cleaning and Domestic Supplies,5012,2020/21 - Market Walk Yard 3 - 35 yard roll on/roll off plastic skip @25 rental per month - no haulage or disposal costs,27/11/2020,0150584,233.10,Revenue,SUEZ R&R UK LTD,17615,,
Chorley Borough Council,http://statistics.data.gov.uk/id/local-authority/30UE,Democratic Represent and  Mgnt,1007,Early Intervention,Grounds Maintenance Contractor,20043,Grounds Maintenance Costs,5013,"Skip for Crosse Hall Allotments, off Crosse Hall Lane, Chorley, PR6 9AW (14yard)   The driver needs to know pedestrian gate ",27/11/2020,0150754,304.14,Revenue,SUEZ R&R UK LTD,17615,,
Chorley Borough Council,http://statistics.data.gov.uk/id/local-authority/30UE,Capital,Capital,Early Intervention,Main Contractor,03007,Capital Expenditure,Capital,"Topographical Survey  Quote 20J078 for Longfield Avenue, Coppull to survey brief supplied. To be carried out as soon as possible",25/11/2020,0150689,550.00,Capital,Survey Operations Ltd,55910,,
Chorley Borough Council,http://statistics.data.gov.uk/id/local-authority/30UE,Service Management & Support,1009,Early Intervention,External Contractor,40198,Miscellaneous Expenses,5034,Mowing of Lower Burgh Meadows.  Remove bales off site. Contact NAME REDACTED prior to starting the job to arrange opening,11/11/2020,0150350,"1,175.00",Revenue,T & L Kirkham,17058,,
Chorley Borough Council,http://statistics.data.gov.uk/id/local-authority/30UE,Democratic Represent and  Mgnt,1007,Early Intervention,Grounds Maintenance Contractor,20043,Grounds Maintenance Costs,5013,"Meadow Mowing of Valley Bottoms off Yarrow Valley Way. Cut, bail and remove bails from site in the areas detailed. Please note ",11/11/2020,0150351,"1,325.00",Revenue,T & L Kirkham,17058,,
Chorley Borough Council,http://statistics.data.gov.uk/id/local-authority/30UE,Open Spaces,1038,Early Intervention,Grounds Maintenance Contractor,20043,Grounds Maintenance Costs,5013,"Meadow Mowing at Blainscough Local Nature Reserve. Mow, bail and remove bails from site .  Also cut the hedge as in previous ",11/11/2020,0150352,800.00,Revenue,T & L Kirkham,17058,,
Chorley Borough Council,http://statistics.data.gov.uk/id/local-authority/30UE,Central Support Services,1009,Customer & Digital,ICT Software Implementation,40114,Communication and Computing,5028,"CCTV - Tech Sol, ongoing repairs and maintenance",20/11/2020,0150227,345.00,Revenue,Technology Solutions,72376,,
Chorley Borough Council,http://statistics.data.gov.uk/id/local-authority/30UE,Business Support,1095,Commercial Services,Security Service,40062,Services,5027,Security at SF for October 2020,11/11/2020,0150478,"6,894.15",Revenue,The ExcluSec Group Ltd,78056,,
Chorley Borough Council,http://statistics.data.gov.uk/id/local-authority/30UE,Central Support Services,1009,Customer & Digital,Computer - Support Services,40111,Communication and Computing,5028,Wifi and cabling surveys at 3 x leisure sites,27/11/2020,0149771,650.00,Revenue,The Networking People (NorthWest) Ltd T/a TNP Ltd,73446,,
Chorley Borough Council,http://statistics.data.gov.uk/id/local-authority/30UE,Central Support Services,1009,Customer & Digital,Computer - Support Services,40111,Communication and Computing,5028,Wifi and cabling surveys at 3 x leisure sites,27/11/2020,0149802,"1,300.00",Revenue,The Networking People (NorthWest) Ltd T/a TNP Ltd,73446,,
Chorley Borough Council,http://statistics.data.gov.uk/id/local-authority/30UE,Culture & Heritage,1036,Policy & Governance,Exhibitions & Special Events,40158,Miscellaneous Expenses,5034,"A5 landscape brochure for children - 12 pp, printed on 120gsm uncoated paper throughout, PDF supplied to print +  studio work",11/11/2020,0149105,96.23,Revenue,The Print Quarter,17987,,
Chorley Borough Council,http://statistics.data.gov.uk/id/local-authority/30UE,Culture & Heritage,1036,Policy & Governance,Lifelong Learning Activities,40194,Miscellaneous Expenses,5034,"A5 landscape brochure for children - 12 pp,  printed on 120gsm uncoated paper throughout, PDF supplied to print + studio work",11/11/2020,0149105,195.37,Revenue,The Print Quarter,17987,,
Chorley Borough Council,http://statistics.data.gov.uk/id/local-authority/30UE,Corporate Management,1008,Policy & Governance,Miscellaneous Expenses,40200,Miscellaneous Expenses,5034,18 x A1 posters for town centre A-Boards for Hands Face Space Messaging - funded by ERDF RHSS,25/11/2020,0150746,306.00,Revenue,The Print Quarter,17987,,
Chorley Borough Council,http://statistics.data.gov.uk/id/local-authority/30UE,Central Support Services,1009,Policy & Governance,General Subscriptions,40146,Grants and Subscriptions,5031,Subscription to Westlaw UK Services - Encyclopaedia of Environmental Health Law and Practice from 01/09/20 to 31/08/21.,18/11/2020,0149768,"1,904.60",Revenue,Thomson Reuters RE;Sweet & Maxwell Limited,17932,,
Chorley Borough Council,http://statistics.data.gov.uk/id/local-authority/30UE,Unapportionable Central OHeads,1009,Policy & Governance,Exhibitions & Special Events,40158,Miscellaneous Expenses,5034,Contribution to event insurance for Christmas Markets,04/11/2020,0150174,514.20,Revenue,Totally Locally Chorley,77188,,
Chorley Borough Council,http://statistics.data.gov.uk/id/local-authority/30UE,Corporate Management,1008,Commercial Services,Miscellaneous Expenses,40200,Miscellaneous Expenses,5034,"Provision of, transportation & placing on site at various locations in Chorley of 20 no. `Townscape PLT/C125 City planter",25/11/2020,0150852,"2,356.00",Revenue,Townscape products ltd,78064,,
Chorley Borough Council,http://statistics.data.gov.uk/id/local-authority/30UE,Corporate Management,1008,Commercial Services,Miscellaneous Expenses,40200,Miscellaneous Expenses,5034,"�Provision of, transportation & placing on site at various locations in Chorley 11 no. `Townscape Counter terror sentry block ",25/11/2020,0150853,"4,390.21",Revenue,Townscape products ltd,78064,,
Chorley Borough Council,http://statistics.data.gov.uk/id/local-authority/30UE,Unapportionable Central OHeads,1009,Commercial Services,General Repairs - Reactive,20004,Repairs Maintenance & Alts,5005,"Supply, install and commission chlorine dosing pump for All Seasons Leisure Centre - NAME REDACTED K72 pump",11/11/2020,0150437,941.32,Revenue,Trusted Facilities Management,80871,,
Chorley Borough Council,http://statistics.data.gov.uk/id/local-authority/30UE,Elections,1012,Policy & Governance,Tools & Equipment - Maintenance,40005,"Equipment, Furniture & Materia",5023,Contract Renewal for: Mailpost 125 Single Sided Letter Opener Serial Number: TBC Period: 04/05/2020 to 03/05/2021,20/11/2020,0150742,480.00,Revenue,Twofold Ltd,77795,,
Chorley Borough Council,http://statistics.data.gov.uk/id/local-authority/30UE,Service Management & Support,1009,Policy & Governance,Petrol,30005,Direct Transport Costs,5016,JULY,30/11/2020,0148069,423.45,Revenue,Uk Fuels Ltd,57996,,
Chorley Borough Council,http://statistics.data.gov.uk/id/local-authority/30UE,Service Management & Support,1009,Customer & Digital,Petrol,30005,Direct Transport Costs,5016,30 Aug 2020,30/11/2020,0148734,520.55,Revenue,Uk Fuels Ltd,57996,,
Chorley Borough Council,http://statistics.data.gov.uk/id/local-authority/30UE,Service Management & Support,1009,Customer & Digital,Petrol,30005,Direct Transport Costs,5016,27 sept 2020,30/11/2020,0149517,389.54,Revenue,Uk Fuels Ltd,57996,,
Chorley Borough Council,http://statistics.data.gov.uk/id/local-authority/30UE,Service Management & Support,1009,Customer & Digital,Petrol,30005,Direct Transport Costs,5016,25 Oct 2020,30/11/2020,0150291,381.48,Revenue,Uk Fuels Ltd,57996,,
Chorley Borough Council,http://statistics.data.gov.uk/id/local-authority/30UE,Unapportionable Central OHeads,1009,Customer & Digital,Service Fees,40056,Services,5027,Daily Hybrid Mail & Annual Billing,11/11/2020,0149815,731.14,Revenue,UKMAIL Ltd (Mail),57758,,
Chorley Borough Council,http://statistics.data.gov.uk/id/local-authority/30UE,Unapportionable Central OHeads,1009,Customer & Digital,Service Fees,40056,Services,5027,Daily Hybrid Mail & Annual Billing,04/11/2020,0149967,614.82,Revenue,UKMAIL Ltd (Mail),57758,,
Chorley Borough Council,http://statistics.data.gov.uk/id/local-authority/30UE,Central Support Services,1009,Customer & Digital,Service Fees,40056,Services,5027,Daily Hybrid Mail & Annual Billing,04/11/2020,0149969,669.66,Revenue,UKMAIL Ltd (Mail),57758,,
Chorley Borough Council,http://statistics.data.gov.uk/id/local-authority/30UE,Unapportionable Central OHeads,1009,Customer & Digital,Service Fees,40056,Services,5027,Daily Hybrid Mail & Annual Billing,04/11/2020,0149972,"1,835.71",Revenue,UKMAIL Ltd (Mail),57758,,
Chorley Borough Council,http://statistics.data.gov.uk/id/local-authority/30UE,Central Support Services,1009,Customer & Digital,Service Fees,40056,Services,5027,Daily Hybrid Mail & Annual Billing,27/11/2020,0150290,912.33,Revenue,UKMAIL Ltd (Mail),57758,,
Chorley Borough Council,http://statistics.data.gov.uk/id/local-authority/30UE,Unapportionable Central OHeads,1009,Customer & Digital,Service Fees,40056,Services,5027,Daily Hybrid Mail & Annual Billing,27/11/2020,0150522,710.35,Revenue,UKMAIL Ltd (Mail),57758,,
Chorley Borough Council,http://statistics.data.gov.uk/id/local-authority/30UE,Control Accounts,Control,Policy & Governance,General Balances,00100,Balance Sheet,Balance,Monthly deductions from Payroll,25/11/2020,0150825,"1,903.81",Revenue,Unify Credit Union Ltd,55509,,
Chorley Borough Council,http://statistics.data.gov.uk/id/local-authority/30UE,Central Support Services,1009,Commercial Services,Training Course Fees,17010,Indirect Employee Expenses,5002,MSc course - Real Estate and Property Management,20/11/2020,0149800,"2,820.00",Revenue,University Of Salford,16234,,
Chorley Borough Council,http://statistics.data.gov.uk/id/local-authority/30UE,Capital,Capital,Early Intervention,Grants,03002,Capital Expenditure,Capital,ADDRESS REDACTED,11/11/2020,0149954,"4,233.75",Capital,UPS Building and Maintenance Ltd,76235,,
Chorley Borough Council,http://statistics.data.gov.uk/id/local-authority/30UE,Capital,Capital,Early Intervention,Grants,03002,Capital Expenditure,Capital,ADDRESS REDACTED,11/11/2020,0149955,"4,258.90",Capital,UPS Building and Maintenance Ltd,76235,,
Chorley Borough Council,http://statistics.data.gov.uk/id/local-authority/30UE,Capital,Capital,Early Intervention,Grants,03002,Capital Expenditure,Capital,ADDRESS REDACTED,04/11/2020,0150287,"9,145.00",Capital,UPS Building and Maintenance Ltd,76235,,
Chorley Borough Council,http://statistics.data.gov.uk/id/local-authority/30UE,Capital,Capital,Early Intervention,Grants,03002,Capital Expenditure,Capital,ADDRESS REDACTED,11/11/2020,0150408,"3,696.25",Capital,UPS Building and Maintenance Ltd,76235,,
Chorley Borough Council,http://statistics.data.gov.uk/id/local-authority/30UE,Capital,Capital,Early Intervention,Grants,03002,Capital Expenditure,Capital,ADDRESS REDACTED,11/11/2020,0150409,"3,812.50",Capital,UPS Building and Maintenance Ltd,76235,,
Chorley Borough Council,http://statistics.data.gov.uk/id/local-authority/30UE,Capital,Capital,Early Intervention,Grants,03002,Capital Expenditure,Capital,ADDRESS REDACTED,13/11/2020,0150555,"3,541.25",Capital,UPS Building and Maintenance Ltd,76235,,
Chorley Borough Council,http://statistics.data.gov.uk/id/local-authority/30UE,Capital,Capital,Early Intervention,Grants,03002,Capital Expenditure,Capital,ADDRESS REDACTED,18/11/2020,0150628,"3,422.50",Capital,UPS Building and Maintenance Ltd,76235,,
Chorley Borough Council,http://statistics.data.gov.uk/id/local-authority/30UE,Capital,Capital,Early Intervention,Grants,03002,Capital Expenditure,Capital,ADDRESS REDACTED,18/11/2020,0150629,"4,496.40",Capital,UPS Building and Maintenance Ltd,76235,,
Chorley Borough Council,http://statistics.data.gov.uk/id/local-authority/30UE,Corporate Management,1008,Customer & Digital,"Hackney Badges, Plates Etc.",40023,"Equipment, Furniture & Materia",5023,"Flexiplate, Clear, Size 4F, Type A Adhesive x 2 packs of 50 @ 136.93 each",18/11/2020,0150712,273.86,Revenue,VIP-SYSTEM LIMITED,69902,,
Chorley Borough Council,http://statistics.data.gov.uk/id/local-authority/30UE,Regulatory Services,1048,Customer & Digital,"Hackney Badges, Plates Etc.",40023,"Equipment, Furniture & Materia",5023,"Harpoon Security Button, Yellow x 8 packs of 50 @ 14.45 each",18/11/2020,0150712,115.60,Revenue,VIP-SYSTEM LIMITED,69902,,
Chorley Borough Council,http://statistics.data.gov.uk/id/local-authority/30UE,Corporate Management,1008,Customer & Digital,"Hackney Badges, Plates Etc.",40023,"Equipment, Furniture & Materia",5023,"Quick Release Key Only, Clear x 2 packs of 50 @ 57.69 each",18/11/2020,0150712,115.38,Revenue,VIP-SYSTEM LIMITED,69902,,
Chorley Borough Council,http://statistics.data.gov.uk/id/local-authority/30UE,Regulatory Services,1048,Customer & Digital,"Hackney Badges, Plates Etc.",40023,"Equipment, Furniture & Materia",5023,"Holgram Label, Self-Adhesive, 20mm Circle, Voiding, Genuine VIP Pattern x 1 pack of 500 @ 104.81",18/11/2020,0150712,104.81,Revenue,VIP-SYSTEM LIMITED,69902,,
Chorley Borough Council,http://statistics.data.gov.uk/id/local-authority/30UE,Central Support Services,1009,Customer & Digital,Telephones - Rentals,40083,Communication and Computing,5028,19 june 2020,20/11/2020,0150404,"2,146.75",Revenue,Virgin Media Payments Ltd,17632,,
Chorley Borough Council,http://statistics.data.gov.uk/id/local-authority/30UE,Central Support Services,1009,Customer & Digital,Computer Equipment - Security,40106,Communication and Computing,5028,01 oct 2020,20/11/2020,0149869,"2,086.52",Revenue,Vodafone Ltd,60180,,
Chorley Borough Council,http://statistics.data.gov.uk/id/local-authority/30UE,Recreation & Sport,1037,Customer & Digital,Computer Equipment-Purchase,40098,Communication and Computing,5028,hl 225 21.5in hdmi monitors x 22,11/11/2020,0149799,"1,298.00",Revenue,Vohkus Limited,67630,,
Chorley Borough Council,http://statistics.data.gov.uk/id/local-authority/30UE,Capital,Capital,Early Intervention,Main Contractor,03007,Capital Expenditure,Capital,Construction of new sports pavilion and changing facility at Westway Playing Fields,11/11/2020,0149798,"119,824.87",Capital,Walter Carefoot Construction (Ltd),80601,,
Chorley Borough Council,http://statistics.data.gov.uk/id/local-authority/30UE,Capital,Capital,Policy & Governance,Other Contractor,03012,Capital Expenditure,Capital,"Natural History Ruler, Prehistoric Ed Colouring Postcards-, British History Ruler, Kings and Queens Coin Poster, Yorick Skull",20/11/2020,0150634,"1,305.00",Capital,Westair Reproductions Ltd,80855,,
Chorley Borough Council,http://statistics.data.gov.uk/id/local-authority/30UE,Capital,Capital,Early Intervention,Main Contractor,03007,Capital Expenditure,Capital,"Wetland Engineering to investigate, model, design, report / oversee the build of a wetland at Carr Brook Linear Park as quotation",18/11/2020,0150548,"2,092.00",Capital,Wetland Engineering,80769,,
Chorley Borough Council,http://statistics.data.gov.uk/id/local-authority/30UE,Unapportionable Central OHeads,1009,Chief Executive,Postages,40082,Communication and Computing,5028,"Mail collections for Town Hall and Union Street, April 20 to March 21",11/11/2020,0150184,272.55,Revenue,Whistl North Limited,67256,,
Chorley Borough Council,http://statistics.data.gov.uk/id/local-authority/30UE,Central Support Services,1009,Early Intervention,Miscellaneous Expenses,40200,Miscellaneous Expenses,5034,8 A4 Landscape outdoor post mounted noticeboard 30mm Depth frame Single key lock door With Header panel to include text,11/11/2020,0150368,555.00,Revenue,White Hill Direct Ltd.,64098,,
Chorley Borough Council,http://statistics.data.gov.uk/id/local-authority/30UE,Service Management & Support,1009,Customer & Digital,Supplies-Grounds Maintenance,40025,"Equipment, Furniture & Materia",5023,Quantity x 12- H Key padlock @ 12.71 each Quantity x12- N Key padlock @ 8.75 ech,04/11/2020,0150262,257.52,Revenue,Wilcock & Sons,18008,,
Chorley Borough Council,http://statistics.data.gov.uk/id/local-authority/30UE,Elections,1012,Policy & Governance,Rent/Hire Of Premises,20017,Premises Rents,5007,room hire for polling station 2 may 2019 Borough and European 23 May 2019,11/11/2020,0143819,296.66,Revenue,Withnell Fold Primary School,18233,,
Chorley Borough Council,http://statistics.data.gov.uk/id/local-authority/30UE,Capital,Capital,Policy & Governance,Other Contractor,03012,Capital Expenditure,Capital,Anne Boleyn - 12; Charles Dickens - 12; Henry VIII - 12; Jane Austen - 12; Queen - 12; ,11/11/2020,0150258,236.64,Capital,Yarto Europe Limited,80961,,
Chorley Borough Council,http://statistics.data.gov.uk/id/local-authority/30UE,Capital,Capital,Policy & Governance,Other Contractor,03012,Capital Expenditure,Capital,non vat,11/11/2020,0150258,29.40,Capital,Yarto Europe Limited,80961,,
Chorley Borough Council,http://statistics.data.gov.uk/id/local-authority/30UE,Business Support,1095,Commercial Services,Grants To Other Organisations,40127,Grants and Subscriptions,5031,grant,11/11/2020,0150407,"2,220.00",Revenue,Youngstart Ltd,80956,,
